Workbook

Sheet Time Set
AA1: =DATE(YEAR(B5),1,1) -> 2019-01-01
A2: Contract | B2: R-12345 | C2: Enter in the Contract, Amount (3) , Work Type (4), and NTP (5) | X2: Production | AA2: =DATE(YEAR(AA1),MONTH(AA1)+1,1) -> 2019-02-01
A3: Original Amount | P3: Project Type | Q3: Contract Amount | R3: Work Days | S3: Type | T3: Start Date | U3: Completion Date (April) | X3: Regression | AA3: =DATE(YEAR(AA2),MONTH(AA2)+1,1) -> 2019-03-01
A4: Type | B4: Mill and Asphalt Resurface | D4: =VLOOKUP(B4,Table14[],4,TRUE) -> H | P4: Asphalt Resurface | Q4: 1000000 | R4: =3*10^(-5)*$B$3+23.291 -> 23.291 | S4: H | T4: 2017-04-01 | U4: =+WORKDAY(T4,R4) -> 2017-05-03 | AA4: 2019-04-01
A5: NTP | B5: 2019-04-01 | P5: Bridge Painting | Q5: 1000000 | R5: =0.0164*B3^0.7047 -> 0 | S5: B | T5: 2017-04-01 | U5: 2017-04-01 | AA5: 2019-05-01
B6: 5 | P6: Bridge Rehabilitation (Deck Replacement) | Q6: 1000000 | R6: =35.28*LN(B3)-360.64 ->  | S6: B | T6: 2017-04-01 | AA6: 2019-06-01
A7: Method | B7: Regression | P7: Bridge Rehabilitation (Superstructure Repair) | Q7: 1000000 | R7: =26.67*LN(B3)-259.2 ->  | S7: B | T7: 2017-04-01 | AA7: 2019-07-01
A8: Work Days | B8: =IF(B3="","",VLOOKUP(B4,Table14[],3,TRUE)) ->  | P8: Bridge Replacement (US) | Q8: 1000000 | R8: =41.257*LN(B3)-445.28 ->  | S8: B | T8: 2017-04-01 | AA8: 2019-08-01
A9: Regression Completion | C9: click to get the completion date using regression equations | P9: Bridge Replacement (SR) | Q9: 1000000 | R9: =30.862*LN(B3)-310.53 ->  | S9: B | T9: 2017-04-01 | AA9: 2019-09-01
A10: Method | B10: Production | P10: Bridge Replacement (CR) | Q10: 1000000 | R10: =48.795*LN(B3)-537.95 ->  | S10: B | T10: 2017-04-01
A11: Work Days | B11: =IF(B5=0,"",TimeSet[[#Totals],[WORKDAYS]]) -> 0 | C11: Click to go to the Production tab to enter controlling items | P11: Intersection Improvement | Q11: 1000000 | R11: =18.87761*LN(B3)-189.62836 ->  | S11: H | T11: 2017-04-01 | AA11: =DATE(YEAR(AA9),MONTH(AA9)+1,1) -> 2019-10-01
A12: Production Completion | B12: =IF(B5=0,"",TimeSet[[#Totals],[Start/Finish]]) -> 2019-04-11 | P12: Mill and Asphalt Resurface | Q12: 1000000 | R12: =39.895*LN(B3)-455.48 ->  | S12: H | T12: 2017-04-01 | AA12: 2019-11-01
P13: New Road Construction | Q13: 1000000 | R13: =3*10^(-5)*B3+19.894 -> 19.894 | S13: H | T13: 2017-04-01 | U13: 2017-04-27 | AA13: 2019-12-01
P14: Pavement Rehabilitation | Q14: 1000000 | R14: =1.2507*B3^0.3108 -> 0 | S14: H | T14: 2017-04-01 | U14: 2017-04-01
P15: Road Rehabiliation | Q15: 1000000 | R15: =0.00001675*B3+67.211 -> 67.211 | S15: H | T15: 2017-04-01 | U15: 2017-07-04 | AA15: 5
P16: Small Structure Replacement | Q16: 1000000 | R16: =0.0319*B3^0.5866 -> 0 | S16: H | T16: 2017-04-01 | U16: 2017-04-01 | AA16: 6
P17: Small Structure Replacement | Q17: 1000000 | R17: =9*10^(-5)*B3+33.696 -> 33.696 | S17: H | T17: 2017-04-01 | U17: 2017-05-17 | AA17: 7
P18: Wedge and Level | Q18: 1000000 | R18: =7*10^-5*B3+10.598 -> 10.598 | S18: H | T18: 2017-04-01 | U18: 2017-04-14

Sheet Production
A1: Seq | B1: Construction Activity | C1: Work Type (H,B,C) | D1: Production Rate | E1: QUANTITY | F1: UNIT | G1: CREWS / SHIFTS | H1: WORKDAYS | I1: Comments | J1: Start/Finish | N1: Template | P1: Work Type(H,L,B) | Q1: MEAN VALUE | R1: QUANTITY | S1: UNIT | T1: CREWS / SHIFTS | U1: WORKDAYS | V1: comments | W1: start/finish | Z1: =+'Time Set'!B5 -> 2019-04-01 | AA1: =+DATE(YEAR(Z1),1,1) -> 2019-01-01
A2: 0 | B2: Notice to Proceed | C2: C | D2: 1 | E2: 10 | F2: DAYS | G2: 1 | H2: =(IF(D2="","",ROUNDUP((E2/D2)/G2,0))) -> 10 | I2: Do not Delete Row; May edit Activity or Start Date | J2: 2019-04-11 | P2: =IF(O2="","",INDEX(Production[Work Type],MATCH(O2,Production[CONSTRUCTION ACTIVITY],0))) ->  | Q2: =IF(O2="","",INDEX(Production[MEAN VALUE],MATCH(O2,Production[CONSTRUCTION ACTIVITY],0))) ->  | S2: =IF(O2="","",INDEX(Production[UNIT],MATCH(O2,Production[CONSTRUCTION ACTIVITY],0))) ->  | T2: 1 | U2: =(IF(Q2="","",ROUNDUP((R2/Q2)/T2,0))) ->  | V2: Enter Comments | AA2: =+DATE(YEAR(AA1),MONTH(AA1)+1,1) -> 2019-02-01
A3: Total | I3: Do not Delete Row | J3: =SUBTOTAL(104,TimeSet[Start/Finish]) -> 2019-04-11 | AA3: =+DATE(YEAR(AA2),MONTH(AA2)+1,1) -> 2019-03-01
C4: =IF(B4="","",INDEX($D1:$D2,MATCH(B4,$B1:$B2,0))) ->  | E4: =IF(B4="","",INDEX($C1:$C2,MATCH(B4,$B1:$B2,0))) ->  | G4: =IF(C4="","",D4/C4) ->  | AA4: =+DATE(YEAR(AA3),MONTH(AA3)+1,1) -> 2019-04-01
C5: =IF(B5="","",INDEX($D1:$D2,MATCH(B5,$B1:$B2,0))) ->  | E5: =IF(B5="","",INDEX($C1:$C2,MATCH(B5,$B1:$B2,0))) ->  | AA5: 2019-05-01
AA6: 2019-06-01
AA7: 2019-07-01
AA8: 2019-08-01
AA9: 2019-09-01
AA10: 2019-10-01
C21: =IF(B21="","",INDEX($D1:$D19,MATCH(B21,$B1:$B19,0))) ->  | E21: =IF(B21="","",INDEX($C1:$C19,MATCH(B21,$B1:$B19,0))) -> 
C22: =IF(B22="","",INDEX($D1:$D20,MATCH(B22,$B1:$B20,0))) ->  | E22: =IF(B22="","",INDEX($C1:$C20,MATCH(B22,$B1:$B20,0))) -> 
C23: =IF(B23="","",INDEX($D1:$D21,MATCH(B23,$B1:$B21,0))) ->  | E23: =IF(B23="","",INDEX($C1:$C21,MATCH(B23,$B1:$B21,0))) -> 
C24: =IF(B24="","",INDEX($D1:$D22,MATCH(B24,$B1:$B22,0))) ->  | E24: =IF(B24="","",INDEX($C1:$C22,MATCH(B24,$B1:$B22,0))) -> 
C25: =IF(B25="","",INDEX($D1:$D23,MATCH(B25,$B1:$B23,0))) ->  | E25: =IF(B25="","",INDEX($C1:$C23,MATCH(B25,$B1:$B23,0))) -> 
C26: =IF(B26="","",INDEX($D1:$D24,MATCH(B26,$B1:$B24,0))) ->  | E26: =IF(B26="","",INDEX($C1:$C24,MATCH(B26,$B1:$B24,0))) -> 
C27: =IF(B27="","",INDEX($D1:$D25,MATCH(B27,$B1:$B25,0))) ->  | E27: =IF(B27="","",INDEX($C1:$C25,MATCH(B27,$B1:$B25,0))) -> 
C28: =IF(B28="","",INDEX($D1:$D26,MATCH(B28,$B1:$B26,0))) ->  | E28: =IF(B28="","",INDEX($C1:$C26,MATCH(B28,$B1:$B26,0))) -> 
C29: =IF(B29="","",INDEX($D1:$D27,MATCH(B29,$B1:$B27,0))) ->  | E29: =IF(B29="","",INDEX($C1:$C27,MATCH(B29,$B1:$B27,0))) -> 
C30: =IF(B30="","",INDEX($D1:$D28,MATCH(B30,$B1:$B28,0))) ->  | E30: =IF(B30="","",INDEX($C1:$C28,MATCH(B30,$B1:$B28,0))) -> 
C31: =IF(B31="","",INDEX($D1:$D29,MATCH(B31,$B1:$B29,0))) ->  | E31: =IF(B31="","",INDEX($C1:$C29,MATCH(B31,$B1:$B29,0))) -> 
C32: =IF(B32="","",INDEX($D1:$D30,MATCH(B32,$B1:$B30,0))) ->  | E32: =IF(B32="","",INDEX($C1:$C30,MATCH(B32,$B1:$B30,0))) -> 
C33: =IF(B33="","",INDEX($D1:$D31,MATCH(B33,$B1:$B31,0))) ->  | E33: =IF(B33="","",INDEX($C1:$C31,MATCH(B33,$B1:$B31,0))) -> 
C34: =IF(B34="","",INDEX($D1:$D32,MATCH(B34,$B1:$B32,0))) ->  | E34: =IF(B34="","",INDEX($C1:$C32,MATCH(B34,$B1:$B32,0))) -> 
C35: =IF(B35="","",INDEX($D1:$D33,MATCH(B35,$B1:$B33,0))) ->  | E35: =IF(B35="","",INDEX($C1:$C33,MATCH(B35,$B1:$B33,0))) -> 
C36: =IF(B36="","",INDEX($D1:$D34,MATCH(B36,$B1:$B34,0))) ->  | E36: =IF(B36="","",INDEX($C1:$C34,MATCH(B36,$B1:$B34,0))) -> 
C37: =IF(B37="","",INDEX($D1:$D35,MATCH(B37,$B1:$B35,0))) ->  | E37: =IF(B37="","",INDEX($C1:$C35,MATCH(B37,$B1:$B35,0))) -> 
C38: =IF(B38="","",INDEX($D1:$D36,MATCH(B38,$B1:$B36,0))) ->  | E38: =IF(B38="","",INDEX($C1:$C36,MATCH(B38,$B1:$B36,0))) -> 
C39: =IF(B39="","",INDEX($D1:$D37,MATCH(B39,$B1:$B37,0))) ->  | E39: =IF(B39="","",INDEX($C1:$C37,MATCH(B39,$B1:$B37,0))) -> 
C40: =IF(B40="","",INDEX($D1:$D38,MATCH(B40,$B1:$B38,0))) ->  | E40: =IF(B40="","",INDEX($C1:$C38,MATCH(B40,$B1:$B38,0))) -> 
C41: =IF(B41="","",INDEX($D1:$D39,MATCH(B41,$B1:$B39,0))) ->  | E41: =IF(B41="","",INDEX($C1:$C39,MATCH(B41,$B1:$B39,0))) -> 
C42: =IF(B42="","",INDEX($D1:$D40,MATCH(B42,$B1:$B40,0))) ->  | E42: =IF(B42="","",INDEX($C1:$C40,MATCH(B42,$B1:$B40,0))) -> 
C43: =IF(B43="","",INDEX($D1:$D41,MATCH(B43,$B1:$B41,0))) ->  | E43: =IF(B43="","",INDEX($C1:$C41,MATCH(B43,$B1:$B41,0))) -> 
C44: =IF(B44="","",INDEX($D1:$D42,MATCH(B44,$B1:$B42,0))) ->  | E44: =IF(B44="","",INDEX($C1:$C42,MATCH(B44,$B1:$B42,0))) -> 
C45: =IF(B45="","",INDEX($D1:$D43,MATCH(B45,$B1:$B43,0))) ->  | E45: =IF(B45="","",INDEX($C1:$C43,MATCH(B45,$B1:$B43,0))) -> 
C46: =IF(B46="","",INDEX($D1:$D44,MATCH(B46,$B1:$B44,0))) ->  | E46: =IF(B46="","",INDEX($C1:$C44,MATCH(B46,$B1:$B44,0))) -> 
C47: =IF(B47="","",INDEX($D1:$D45,MATCH(B47,$B1:$B45,0))) ->  | E47: =IF(B47="","",INDEX($C1:$C45,MATCH(B47,$B1:$B45,0))) -> 
C48: =IF(B48="","",INDEX($D1:$D46,MATCH(B48,$B1:$B46,0))) ->  | E48: =IF(B48="","",INDEX($C1:$C46,MATCH(B48,$B1:$B46,0))) -> 
C49: =IF(B49="","",INDEX($D1:$D47,MATCH(B49,$B1:$B47,0))) ->  | E49: =IF(B49="","",INDEX($C1:$C47,MATCH(B49,$B1:$B47,0))) -> 
C50: =IF(B50="","",INDEX($D1:$D48,MATCH(B50,$B1:$B48,0))) ->  | E50: =IF(B50="","",INDEX($C1:$C48,MATCH(B50,$B1:$B48,0))) -> 
C51: =IF(B51="","",INDEX($D1:$D49,MATCH(B51,$B1:$B49,0))) ->  | E51: =IF(B51="","",INDEX($C1:$C49,MATCH(B51,$B1:$B49,0))) -> 
C52: =IF(B52="","",INDEX($D1:$D50,MATCH(B52,$B1:$B50,0))) ->  | E52: =IF(B52="","",INDEX($C1:$C50,MATCH(B52,$B1:$B50,0))) -> 
C53: =IF(B53="","",INDEX($D1:$D51,MATCH(B53,$B1:$B51,0))) ->  | E53: =IF(B53="","",INDEX($C1:$C51,MATCH(B53,$B1:$B51,0))) -> 
C54: =IF(B54="","",INDEX($D1:$D52,MATCH(B54,$B1:$B52,0))) ->  | E54: =IF(B54="","",INDEX($C1:$C52,MATCH(B54,$B1:$B52,0))) -> 
C55: =IF(B55="","",INDEX($D1:$D53,MATCH(B55,$B1:$B53,0))) ->  | E55: =IF(B55="","",INDEX($C1:$C53,MATCH(B55,$B1:$B53,0))) -> 
C56: =IF(B56="","",INDEX($D1:$D54,MATCH(B56,$B1:$B54,0))) ->  | E56: =IF(B56="","",INDEX($C1:$C54,MATCH(B56,$B1:$B54,0))) -> 
C57: =IF(B57="","",INDEX($D1:$D55,MATCH(B57,$B1:$B55,0))) ->  | E57: =IF(B57="","",INDEX($C1:$C55,MATCH(B57,$B1:$B55,0))) -> 
C58: =IF(B58="","",INDEX($D1:$D56,MATCH(B58,$B1:$B56,0))) ->  | E58: =IF(B58="","",INDEX($C1:$C56,MATCH(B58,$B1:$B56,0))) -> 
C59: =IF(B59="","",INDEX($D1:$D57,MATCH(B59,$B1:$B57,0))) ->  | E59: =IF(B59="","",INDEX($C1:$C57,MATCH(B59,$B1:$B57,0))) -> 
C60: =IF(B60="","",INDEX($D1:$D58,MATCH(B60,$B1:$B58,0))) ->  | E60: =IF(B60="","",INDEX($C1:$C58,MATCH(B60,$B1:$B58,0))) -> 
C61: =IF(B61="","",INDEX($D1:$D59,MATCH(B61,$B1:$B59,0))) ->  | E61: =IF(B61="","",INDEX($C1:$C59,MATCH(B61,$B1:$B59,0))) -> 
C62: =IF(B62="","",INDEX($D1:$D60,MATCH(B62,$B1:$B60,0))) ->  | E62: =IF(B62="","",INDEX($C1:$C60,MATCH(B62,$B1:$B60,0))) -> 
C63: =IF(B63="","",INDEX($D1:$D61,MATCH(B63,$B1:$B61,0))) ->  | E63: =IF(B63="","",INDEX($C1:$C61,MATCH(B63,$B1:$B61,0))) -> 
C64: =IF(B64="","",INDEX($D1:$D62,MATCH(B64,$B1:$B62,0))) ->  | E64: =IF(B64="","",INDEX($C1:$C62,MATCH(B64,$B1:$B62,0))) -> 
C65: =IF(B65="","",INDEX($D1:$D63,MATCH(B65,$B1:$B63,0))) ->  | E65: =IF(B65="","",INDEX($C1:$C63,MATCH(B65,$B1:$B63,0))) -> 
C66: =IF(B66="","",INDEX($D1:$D64,MATCH(B66,$B1:$B64,0))) ->  | E66: =IF(B66="","",INDEX($C1:$C64,MATCH(B66,$B1:$B64,0))) ->  | G66: =IF(C66="","",D66/C66) -> 
C67: =IF(B67="","",INDEX($D1:$D65,MATCH(B67,$B1:$B65,0))) ->  | E67: =IF(B67="","",INDEX($C1:$C65,MATCH(B67,$B1:$B65,0))) -> 
C68: =IF(B68="","",INDEX($D1:$D66,MATCH(B68,$B1:$B66,0))) ->  | E68: =IF(B68="","",INDEX($C1:$C66,MATCH(B68,$B1:$B66,0))) -> 
C69: =IF(B69="","",INDEX($D1:$D67,MATCH(B69,$B1:$B67,0))) ->  | E69: =IF(B69="","",INDEX($C1:$C67,MATCH(B69,$B1:$B67,0))) -> 
C70: =IF(B70="","",INDEX($D1:$D68,MATCH(B70,$B1:$B68,0))) ->  | E70: =IF(B70="","",INDEX($C1:$C68,MATCH(B70,$B1:$B68,0))) -> 
C71: =IF(B71="","",INDEX($D1:$D69,MATCH(B71,$B1:$B69,0))) ->  | E71: =IF(B71="","",INDEX($C1:$C69,MATCH(B71,$B1:$B69,0))) -> 
C72: =IF(B72="","",INDEX($D1:$D70,MATCH(B72,$B1:$B70,0))) ->  | E72: =IF(B72="","",INDEX($C1:$C70,MATCH(B72,$B1:$B70,0))) -> 
C73: =IF(B73="","",INDEX($D1:$D71,MATCH(B73,$B1:$B71,0))) ->  | E73: =IF(B73="","",INDEX($C1:$C71,MATCH(B73,$B1:$B71,0))) -> 
C74: =IF(B74="","",INDEX($D1:$D72,MATCH(B74,$B1:$B72,0))) ->  | E74: =IF(B74="","",INDEX($C1:$C72,MATCH(B74,$B1:$B72,0))) -> 
C75: =IF(B75="","",INDEX($D1:$D73,MATCH(B75,$B1:$B73,0))) ->  | E75: =IF(B75="","",INDEX($C1:$C73,MATCH(B75,$B1:$B73,0))) -> 
C76: =IF(B76="","",INDEX($D1:$D74,MATCH(B76,$B1:$B74,0))) ->  | E76: =IF(B76="","",INDEX($C1:$C74,MATCH(B76,$B1:$B74,0))) -> 
C77: =IF(B77="","",INDEX($D1:$D75,MATCH(B77,$B1:$B75,0))) ->  | E77: =IF(B77="","",INDEX($C1:$C75,MATCH(B77,$B1:$B75,0))) -> 
C78: =IF(B78="","",INDEX($D1:$D76,MATCH(B78,$B1:$B76,0))) ->  | E78: =IF(B78="","",INDEX($C1:$C76,MATCH(B78,$B1:$B76,0))) -> 
C79: =IF(B79="","",INDEX($D1:$D77,MATCH(B79,$B1:$B77,0))) ->  | E79: =IF(B79="","",INDEX($C1:$C77,MATCH(B79,$B1:$B77,0))) -> 
C80: =IF(B80="","",INDEX($D1:$D78,MATCH(B80,$B1:$B78,0))) ->  | E80: =IF(B80="","",INDEX($C1:$C78,MATCH(B80,$B1:$B78,0))) -> 
C81: =IF(B81="","",INDEX($D1:$D79,MATCH(B81,$B1:$B79,0))) ->  | E81: =IF(B81="","",INDEX($C1:$C79,MATCH(B81,$B1:$B79,0))) -> 
C82: =IF(B82="","",INDEX($D1:$D80,MATCH(B82,$B1:$B80,0))) ->  | E82: =IF(B82="","",INDEX($C1:$C80,MATCH(B82,$B1:$B80,0))) -> 
C83: =IF(B83="","",INDEX($D1:$D81,MATCH(B83,$B1:$B81,0))) ->  | E83: =IF(B83="","",INDEX($C1:$C81,MATCH(B83,$B1:$B81,0))) -> 
C84: =IF(B84="","",INDEX($D1:$D82,MATCH(B84,$B1:$B82,0))) ->  | E84: =IF(B84="","",INDEX($C1:$C82,MATCH(B84,$B1:$B82,0))) -> 
C85: =IF(B85="","",INDEX($D1:$D83,MATCH(B85,$B1:$B83,0))) ->  | E85: =IF(B85="","",INDEX($C1:$C83,MATCH(B85,$B1:$B83,0))) -> 
C86: =IF(B86="","",INDEX($D1:$D84,MATCH(B86,$B1:$B84,0))) ->  | E86: =IF(B86="","",INDEX($C1:$C84,MATCH(B86,$B1:$B84,0))) -> 
C87: =IF(B87="","",INDEX($D1:$D85,MATCH(B87,$B1:$B85,0))) ->  | E87: =IF(B87="","",INDEX($C1:$C85,MATCH(B87,$B1:$B85,0))) -> 
C88: =IF(B88="","",INDEX($D1:$D86,MATCH(B88,$B1:$B86,0))) ->  | E88: =IF(B88="","",INDEX($C1:$C86,MATCH(B88,$B1:$B86,0))) -> 
C89: =IF(B89="","",INDEX($D1:$D87,MATCH(B89,$B1:$B87,0))) ->  | E89: =IF(B89="","",INDEX($C1:$C87,MATCH(B89,$B1:$B87,0))) -> 
C90: =IF(B90="","",INDEX($D1:$D88,MATCH(B90,$B1:$B88,0))) ->  | E90: =IF(B90="","",INDEX($C1:$C88,MATCH(B90,$B1:$B88,0))) -> 
C91: =IF(B91="","",INDEX($D1:$D89,MATCH(B91,$B1:$B89,0))) ->  | E91: =IF(B91="","",INDEX($C1:$C89,MATCH(B91,$B1:$B89,0))) -> 
C92: =IF(B92="","",INDEX($D1:$D90,MATCH(B92,$B1:$B90,0))) ->  | E92: =IF(B92="","",INDEX($C1:$C90,MATCH(B92,$B1:$B90,0))) -> 
C93: =IF(B93="","",INDEX($D1:$D91,MATCH(B93,$B1:$B91,0))) ->  | E93: =IF(B93="","",INDEX($C1:$C91,MATCH(B93,$B1:$B91,0))) -> 
C94: =IF(B94="","",INDEX($D1:$D92,MATCH(B94,$B1:$B92,0))) ->  | E94: =IF(B94="","",INDEX($C1:$C92,MATCH(B94,$B1:$B92,0))) -> 
C95: =IF(B95="","",INDEX($D1:$D93,MATCH(B95,$B1:$B93,0))) ->  | E95: =IF(B95="","",INDEX($C1:$C93,MATCH(B95,$B1:$B93,0))) -> 
C96: =IF(B96="","",INDEX($D1:$D94,MATCH(B96,$B1:$B94,0))) ->  | E96: =IF(B96="","",INDEX($C1:$C94,MATCH(B96,$B1:$B94,0))) -> 
C97: =IF(B97="","",INDEX($D1:$D95,MATCH(B97,$B1:$B95,0))) ->  | E97: =IF(B97="","",INDEX($C1:$C95,MATCH(B97,$B1:$B95,0))) -> 
C98: =IF(B98="","",INDEX($D1:$D96,MATCH(B98,$B1:$B96,0))) ->  | E98: =IF(B98="","",INDEX($C1:$C96,MATCH(B98,$B1:$B96,0))) -> 
C99: =IF(B99="","",INDEX($D1:$D97,MATCH(B99,$B1:$B97,0))) ->  | E99: =IF(B99="","",INDEX($C1:$C97,MATCH(B99,$B1:$B97,0))) -> 
C100: =IF(B100="","",INDEX($D1:$D98,MATCH(B100,$B1:$B98,0))) ->  | E100: =IF(B100="","",INDEX($C1:$C98,MATCH(B100,$B1:$B98,0))) -> 
C101: =IF(B101="","",INDEX($D1:$D99,MATCH(B101,$B1:$B99,0))) ->  | E101: =IF(B101="","",INDEX($C1:$C99,MATCH(B101,$B1:$B99,0))) -> 
C102: =IF(B102="","",INDEX($D1:$D100,MATCH(B102,$B1:$B100,0))) ->  | E102: =IF(B102="","",INDEX($C1:$C100,MATCH(B102,$B1:$B100,0))) -> 
C103: =IF(B103="","",INDEX($D1:$D101,MATCH(B103,$B1:$B101,0))) ->  | E103: =IF(B103="","",INDEX($C1:$C101,MATCH(B103,$B1:$B101,0))) -> 
C104: =IF(B104="","",INDEX($D1:$D102,MATCH(B104,$B1:$B102,0))) ->  | E104: =IF(B104="","",INDEX($C1:$C102,MATCH(B104,$B1:$B102,0))) -> 
C105: =IF(B105="","",INDEX($D1:$D103,MATCH(B105,$B1:$B103,0))) ->  | E105: =IF(B105="","",INDEX($C1:$C103,MATCH(B105,$B1:$B103,0))) -> 
C106: =IF(B106="","",INDEX($D1:$D104,MATCH(B106,$B1:$B104,0))) ->  | E106: =IF(B106="","",INDEX($C1:$C104,MATCH(B106,$B1:$B104,0))) -> 
C107: =IF(B107="","",INDEX($D1:$D105,MATCH(B107,$B1:$B105,0))) ->  | E107: =IF(B107="","",INDEX($C1:$C105,MATCH(B107,$B1:$B105,0))) -> 
C108: =IF(B108="","",INDEX($D1:$D106,MATCH(B108,$B1:$B106,0))) ->  | E108: =IF(B108="","",INDEX($C1:$C106,MATCH(B108,$B1:$B106,0))) -> 
C109: =IF(B109="","",INDEX($D1:$D107,MATCH(B109,$B1:$B107,0))) ->  | E109: =IF(B109="","",INDEX($C1:$C107,MATCH(B109,$B1:$B107,0))) -> 
C110: =IF(B110="","",INDEX($D1:$D108,MATCH(B110,$B1:$B108,0))) ->  | E110: =IF(B110="","",INDEX($C1:$C108,MATCH(B110,$B1:$B108,0))) -> 
C111: =IF(B111="","",INDEX($D1:$D109,MATCH(B111,$B1:$B109,0))) ->  | E111: =IF(B111="","",INDEX($C1:$C109,MATCH(B111,$B1:$B109,0))) -> 
C112: =IF(B112="","",INDEX($D1:$D110,MATCH(B112,$B1:$B110,0))) ->  | E112: =IF(B112="","",INDEX($C1:$C110,MATCH(B112,$B1:$B110,0))) -> 
C113: =IF(B113="","",INDEX($D1:$D111,MATCH(B113,$B1:$B111,0))) ->  | E113: =IF(B113="","",INDEX($C1:$C111,MATCH(B113,$B1:$B111,0))) -> 
C114: =IF(B114="","",INDEX($D1:$D112,MATCH(B114,$B1:$B112,0))) ->  | E114: =IF(B114="","",INDEX($C1:$C112,MATCH(B114,$B1:$B112,0))) -> 
C115: =IF(B115="","",INDEX($D1:$D113,MATCH(B115,$B1:$B113,0))) ->  | E115: =IF(B115="","",INDEX($C1:$C113,MATCH(B115,$B1:$B113,0))) -> 
C116: =IF(B116="","",INDEX($D1:$D114,MATCH(B116,$B1:$B114,0))) ->  | E116: =IF(B116="","",INDEX($C1:$C114,MATCH(B116,$B1:$B114,0))) -> 
C117: =IF(B117="","",INDEX($D1:$D115,MATCH(B117,$B1:$B115,0))) ->  | E117: =IF(B117="","",INDEX($C1:$C115,MATCH(B117,$B1:$B115,0))) -> 
C118: =IF(B118="","",INDEX($D1:$D116,MATCH(B118,$B1:$B116,0))) ->  | E118: =IF(B118="","",INDEX($C1:$C116,MATCH(B118,$B1:$B116,0))) -> 
C119: =IF(B119="","",INDEX($D1:$D117,MATCH(B119,$B1:$B117,0))) ->  | E119: =IF(B119="","",INDEX($C1:$C117,MATCH(B119,$B1:$B117,0))) -> 
C120: =IF(B120="","",INDEX($D4:$D118,MATCH(B120,$B4:$B118,0))) ->  | E120: =IF(B120="","",INDEX($C4:$C118,MATCH(B120,$B4:$B118,0))) -> 
C121: =IF(B121="","",INDEX($D4:$D119,MATCH(B121,$B4:$B119,0))) ->  | E121: =IF(B121="","",INDEX($C4:$C119,MATCH(B121,$B4:$B119,0))) -> 
C122: =IF(B122="","",INDEX($D4:$D120,MATCH(B122,$B4:$B120,0))) ->  | E122: =IF(B122="","",INDEX($C4:$C120,MATCH(B122,$B4:$B120,0))) -> 
C123: =IF(B123="","",INDEX($D4:$D121,MATCH(B123,$B4:$B121,0))) ->  | E123: =IF(B123="","",INDEX($C4:$C121,MATCH(B123,$B4:$B121,0))) -> 
C124: =IF(B124="","",INDEX($D4:$D122,MATCH(B124,$B4:$B122,0))) ->  | E124: =IF(B124="","",INDEX($C4:$C122,MATCH(B124,$B4:$B122,0))) -> 
G130: =IF(C130="","",D130/C130) -> 
G131: =IF(C131="","",D131/C131) -> 

Sheet Med&Heavy
B1: 2019-05-30 | R1: January | T1: February | V1: March | X1: April | Z1: May | AB1: June | AD1: July | AF1: August | AH1: September | AJ1: October | AL1: November | AN1: December
D2: =DATE(YEAR(B1),1,1) -> 2019-01-01 | J2: Medium & Heavy Grading (R,RS,M) | R2: =DATE(YEAR('Time Set'!$B$5),1,1) -> 2019-01-01 | S2: =WEEKDAY(R2,2) -> 2 | T2: =DATE(YEAR('Time Set'!$B$5),2,1) -> 2019-02-01 | U2: =WEEKDAY(T2,2) -> 5 | V2: =DATE(YEAR('Time Set'!$B$5),3,1) -> 2019-03-01 | W2: =WEEKDAY(V2,2) -> 5 | X2: =DATE(YEAR('Time Set'!$B$5),4,1) -> 2019-04-01 | Y2: =WEEKDAY(X2,2) -> 1 | Z2: =DATE(YEAR('Time Set'!$B$5),5,1) -> 2019-05-01 | AA2: =WEEKDAY(Z2,2) -> 3 | AB2: =DATE(YEAR('Time Set'!$B$5),6,1) -> 2019-06-01 | AC2: =WEEKDAY(AB2,2) -> 6 | AD2: =DATE(YEAR('Time Set'!$B$5),7,1) -> 2019-07-01 | AE2: =WEEKDAY(AD2,2) -> 1 | AF2: =DATE(YEAR('Time Set'!$B$5),8,1) -> 2019-08-01 | AG2: =WEEKDAY(AF2,2) -> 4 | AH2: =DATE(YEAR('Time Set'!$B$5),9,1) -> 2019-09-01 | AI2: =WEEKDAY(AH2,2) -> 7 | AJ2: =DATE(YEAR('Time Set'!$B$5),10,1) -> 2019-10-01 | AK2: =WEEKDAY(AJ2,2) -> 2 | AL2: =DATE(YEAR('Time Set'!$B$5),11,1) -> 2019-11-01 | AM2: =WEEKDAY(AL2,2) -> 5 | AN2: =DATE(YEAR('Time Set'!$B$5),12,1) -> 2019-12-01 | AO2: =WEEKDAY(AN2,2) -> 7
B3: 0 | C3: =DATE(YEAR(B1),1,1) -> 2019-01-01 | E3: =DATE(YEAR(D2),2,1) -> 2019-02-01 | R3: =+R2+1 -> 2019-01-02 | S3: =WEEKDAY(R3,2) -> 3 | T3: =+T2+1 -> 2019-02-02 | U3: =WEEKDAY(T3,2) -> 6 | V3: =+V2+1 -> 2019-03-02 | W3: =WEEKDAY(V3,2) -> 6 | X3: =+X2+1 -> 2019-04-02 | Y3: =WEEKDAY(X3,2) -> 2 | Z3: =+Z2+1 -> 2019-05-02 | AA3: =WEEKDAY(Z3,2) -> 4 | AB3: =+AB2+1 -> 2019-06-02 | AC3: =WEEKDAY(AB3,2) -> 7 | AD3: =+AD2+1 -> 2019-07-02 | AE3: =WEEKDAY(AD3,2) -> 2 | AF3: =+AF2+1 -> 2019-08-02 | AG3: =WEEKDAY(AF3,2) -> 5 | AH3: =+AH2+1 -> 2019-09-02 | AI3: =WEEKDAY(AH3,2) -> 1 | AJ3: =+AJ2+1 -> 2019-10-02 | AK3: =WEEKDAY(AJ3,2) -> 3 | AL3: =+AL2+1 -> 2019-11-02 | AM3: =WEEKDAY(AL3,2) -> 6 | AN3: =+AN2+1 -> 2019-12-02 | AO3: =WEEKDAY(AN3,2) -> 1
B4: 0 | C4: =DATE(YEAR(C3),MONTH(C3)+1,1) -> 2019-02-01 | F4: =DATE(YEAR(D2),3,1) -> 2019-03-01 | J4: Distribution of Working Days by | R4: =+R3+1 -> 2019-01-03 | S4: 4 | T4: =+T3+1 -> 2019-02-03 | U4: 7 | V4: =+V3+1 -> 2019-03-03 | W4: 7 | X4: =+X3+1 -> 2019-04-03 | Y4: 3 | Z4: =+Z3+1 -> 2019-05-03 | AA4: 5 | AB4: =+AB3+1 -> 2019-06-03 | AC4: 1 | AD4: =+AD3+1 -> 2019-07-03 | AE4: 3 | AF4: =+AF3+1 -> 2019-08-03 | AG4: 6 | AH4: =+AH3+1 -> 2019-09-03 | AI4: 2 | AJ4: =+AJ3+1 -> 2019-10-03 | AK4: 4 | AL4: =+AL3+1 -> 2019-11-03 | AM4: 7 | AN4: =+AN3+1 -> 2019-12-03 | AO4: 2
B5: 0 | C5: =DATE(YEAR(C4),MONTH(C4)+1,1) -> 2019-03-01 | G5: =DATE(YEAR(D2),4,1) -> 2019-04-01 | J5: Months, Cumulative Total per Month | R5: 2019-01-04 | S5: 5 | T5: 2019-02-04 | U5: 1 | V5: 2019-03-04 | W5: 1 | X5: 2019-04-04 | Y5: 4 | Z5: 2019-05-04 | AA5: 6 | AB5: 2019-06-04 | AC5: 2 | AD5: 2019-07-04 | AE5: 4 | AF5: 2019-08-04 | AG5: 7 | AH5: 2019-09-04 | AI5: 3 | AJ5: 2019-10-04 | AK5: 5 | AL5: 2019-11-04 | AM5: 1 | AN5: 2019-12-04 | AO5: 3
A6: 4 | B6: =+IF('Time Set'!$B$6=5,A6,IF('Time Set'!$B$6=6,A6+Y32, IF('Time Set'!$B$6=7, A6+Y32+Y33, 0))) -> 4 | C6: 2019-04-01 | D6: =+D5+$B6 -> 4 | E6: 4 | F6: 4 | G6: =+B6 -> 4 | H6: =DATE(YEAR(D2),5,1) -> 2019-05-01 | R6: 2019-01-05 | S6: 6 | T6: 2019-02-05 | U6: 2 | V6: 2019-03-05 | W6: 2 | X6: 2019-04-05 | Y6: 5 | Z6: 2019-05-05 | AA6: 7 | AB6: 2019-06-05 | AC6: 3 | AD6: 2019-07-05 | AE6: 5 | AF6: 2019-08-05 | AG6: 1 | AH6: 2019-09-05 | AI6: 4 | AJ6: 2019-10-05 | AK6: 6 | AL6: 2019-11-05 | AM6: 2 | AN6: 2019-12-05 | AO6: 4
A7: 14 | B7: =+IF('Time Set'!$B$6=5,A7,IF('Time Set'!$B$6=6,A7+AA33, IF('Time Set'!$B$6=7, A7+AA33+AA34, 0))) -> 14 | C7: 2019-05-01 | D7: 18 | E7: 18 | F7: 18 | G7: =+G6+$B7 -> 18 | H7: =+B7 -> 14 | I7: =DATE(YEAR(D2),6,1) -> 2019-06-01 | R7: 2019-01-06 | S7: 7 | T7: 2019-02-06 | U7: 3 | V7: 2019-03-06 | W7: 3 | X7: 2019-04-06 | Y7: 6 | Z7: 2019-05-06 | AA7: 1 | AB7: 2019-06-06 | AC7: 4 | AD7: 2019-07-06 | AE7: 6 | AF7: 2019-08-06 | AG7: 2 | AH7: 2019-09-06 | AI7: 5 | AJ7: 2019-10-06 | AK7: 7 | AL7: 2019-11-06 | AM7: 3 | AN7: 2019-12-06 | AO7: 5
A8: 16 | B8: =+IF('Time Set'!$B$6=5,A8,IF('Time Set'!$B$6=6,A8+AC32, IF('Time Set'!$B$6=7, A8+AC32+AC33, 0))) -> 16 | C8: 2019-06-01 | D8: =+D7+$B8 -> 34 | E8: =+E7+$B8 -> 34 | F8: 34 | G8: 34 | H8: =+H7+$B8 -> 30 | I8: =+B8 -> 16 | J8: =DATE(YEAR(D2),7,1) -> 2019-07-01 | R8: 2019-01-07 | S8: 1 | T8: 2019-02-07 | U8: 4 | V8: 2019-03-07 | W8: 4 | X8: 2019-04-07 | Y8: 7 | Z8: 2019-05-07 | AA8: 2 | AB8: 2019-06-07 | AC8: 5 | AD8: 2019-07-07 | AE8: 7 | AF8: 2019-08-07 | AG8: 3 | AH8: 2019-09-07 | AI8: 6 | AJ8: 2019-10-07 | AK8: 1 | AL8: 2019-11-07 | AM8: 4 | AN8: 2019-12-07 | AO8: 6
A9: 16 | B9: =+IF('Time Set'!$B$6=5,A9,IF('Time Set'!$B$6=6,A9+AE33, IF('Time Set'!$B$6=7, A9+AE33+AE34, 0))) -> 16 | C9: 2019-07-01 | D9: 50 | E9: 50 | F9: 50 | G9: 50 | H9: 46 | I9: 32 | J9: =+B9 -> 16 | K9: =DATE(YEAR(D2),8,1) -> 2019-08-01 | R9: 2019-01-08 | S9: 2 | T9: 2019-02-08 | U9: 5 | V9: 2019-03-08 | W9: 5 | X9: 2019-04-08 | Y9: 1 | Z9: 2019-05-08 | AA9: 3 | AB9: 2019-06-08 | AC9: 6 | AD9: 2019-07-08 | AE9: 1 | AF9: 2019-08-08 | AG9: 4 | AH9: 2019-09-08 | AI9: 7 | AJ9: 2019-10-08 | AK9: 2 | AL9: 2019-11-08 | AM9: 5 | AN9: 2019-12-08 | AO9: 7
A10: 18 | B10: =+IF('Time Set'!$B$6=5,A10,IF('Time Set'!$B$6=6,A10+AG33, IF('Time Set'!$B$6=7, A10+AG33+AG34, 0))) -> 18 | C10: 2019-08-01 | D10: 68 | E10: 68 | F10: 68 | G10: 68 | H10: 64 | I10: 50 | J10: 34 | K10: =+B10 -> 18 | L10: =DATE(YEAR(D2),9,1) -> 2019-09-01 | R10: 2019-01-09 | S10: 3 | T10: 2019-02-09 | U10: 6 | V10: 2019-03-09 | W10: 6 | X10: 2019-04-09 | Y10: 2 | Z10: 2019-05-09 | AA10: 4 | AB10: 2019-06-09 | AC10: 7 | AD10: 2019-07-09 | AE10: 2 | AF10: 2019-08-09 | AG10: 5 | AH10: 2019-09-09 | AI10: 1 | AJ10: 2019-10-09 | AK10: 3 | AL10: 2019-11-09 | AM10: 6 | AN10: 2019-12-09 | AO10: 1
A11: 15 | B11: =+IF('Time Set'!$B$6=5,A11,IF('Time Set'!$B$6=6,A11+AI32, IF('Time Set'!$B$6=7, A11+AI32+AI33, 0))) -> 15 | C11: 2019-09-01 | D11: 83 | E11: 83 | F11: 83 | G11: 83 | H11: 79 | I11: 65 | J11: 49 | K11: 33 | L11: =+B11 -> 15 | M11: =DATE(YEAR(D2),10,1) -> 2019-10-01 | R11: 2019-01-10 | S11: 4 | T11: 2019-02-10 | U11: 7 | V11: 2019-03-10 | W11: 7 | X11: 2019-04-10 | Y11: 3 | Z11: 2019-05-10 | AA11: 5 | AB11: 2019-06-10 | AC11: 1 | AD11: 2019-07-10 | AE11: 3 | AF11: 2019-08-10 | AG11: 6 | AH11: 2019-09-10 | AI11: 2 | AJ11: 2019-10-10 | AK11: 4 | AL11: 2019-11-10 | AM11: 7 | AN11: 2019-12-10 | AO11: 2
A12: 16 | B12: =+IF('Time Set'!$B$6=5,A12,IF('Time Set'!$B$6=6,A12+AK33, IF('Time Set'!$B$6=7, A12+AK33+AK34,0))) -> 16 | C12: 2019-10-01 | D12: 99 | E12: 99 | F12: 99 | G12: 99 | H12: 95 | I12: 81 | J12: 65 | K12: 49 | L12: 31 | M12: =+B12 -> 16 | N12: =DATE(YEAR(D2),11,1) -> 2019-11-01 | R12: 2019-01-11 | S12: 5 | T12: 2019-02-11 | U12: 1 | V12: 2019-03-11 | W12: 1 | X12: 2019-04-11 | Y12: 4 | Z12: 2019-05-11 | AA12: 6 | AB12: 2019-06-11 | AC12: 2 | AD12: 2019-07-11 | AE12: 4 | AF12: 2019-08-11 | AG12: 7 | AH12: 2019-09-11 | AI12: 3 | AJ12: 2019-10-11 | AK12: 5 | AL12: 2019-11-11 | AM12: 1 | AN12: 2019-12-11 | AO12: 3
A13: 8 | B13: =+IF('Time Set'!$B$6=5,A13,IF('Time Set'!$B$6=6,A13+AM32, IF('Time Set'!$B$6=7, A13+AM32+AM33, 0))) -> 8 | C13: 2019-11-01 | D13: 107 | E13: 107 | F13: 107 | G13: 107 | H13: 103 | I13: 89 | J13: 73 | K13: 57 | L13: 39 | M13: 24 | N13: =+B13 -> 8 | O13: =DATE(YEAR(D2),12,1) -> 2019-12-01 | R13: 2019-01-12 | S13: 6 | T13: 2019-02-12 | U13: 2 | V13: 2019-03-12 | W13: 2 | X13: 2019-04-12 | Y13: 5 | Z13: 2019-05-12 | AA13: 7 | AB13: 2019-06-12 | AC13: 3 | AD13: 2019-07-12 | AE13: 5 | AF13: 2019-08-12 | AG13: 1 | AH13: 2019-09-12 | AI13: 4 | AJ13: 2019-10-12 | AK13: 6 | AL13: 2019-11-12 | AM13: 2 | AN13: 2019-12-12 | AO13: 4
B14: 0 | C14: 2019-12-01 | D14: 107 | E14: =+E13+$B14 -> 107 | F14: 107 | G14: 107 | H14: 103 | I14: 89 | J14: 73 | K14: 57 | L14: 39 | M14: 24 | N14: 8 | O14: =+B14 -> 0 | R14: 2019-01-13 | S14: 7 | T14: 2019-02-13 | U14: 3 | V14: 2019-03-13 | W14: 3 | X14: 2019-04-13 | Y14: 6 | Z14: 2019-05-13 | AA14: 1 | AB14: 2019-06-13 | AC14: 4 | AD14: 2019-07-13 | AE14: 6 | AF14: 2019-08-13 | AG14: 2 | AH14: 2019-09-13 | AI14: 5 | AJ14: 2019-10-13 | AK14: 7 | AL14: 2019-11-13 | AM14: 3 | AN14: 2019-12-13 | AO14: 5
B15: 0 | C15: 2020-01-01 | D15: 107 | E15: 107 | F15: 107 | G15: 107 | H15: 103 | I15: 89 | J15: 73 | K15: 57 | L15: 39 | M15: 24 | N15: 8 | O15: =+O14+$B15 -> 0 | R15: 2019-01-14 | S15: 1 | T15: 2019-02-14 | U15: 4 | V15: 2019-03-14 | W15: 4 | X15: 2019-04-14 | Y15: 7 | Z15: 2019-05-14 | AA15: 2 | AB15: 2019-06-14 | AC15: 5 | AD15: 2019-07-14 | AE15: 7 | AF15: 2019-08-14 | AG15: 3 | AH15: 2019-09-14 | AI15: 6 | AJ15: 2019-10-14 | AK15: 1 | AL15: 2019-11-14 | AM15: 4 | AN15: 2019-12-14 | AO15: 6
B16: =+B4 -> 0 | C16: 2020-02-01 | D16: 107 | E16: 107 | F16: 107 | G16: 107 | H16: 103 | I16: 89 | J16: 73 | K16: 57 | L16: 39 | M16: 24 | N16: 8 | O16: =+O15+$B16 -> 0 | R16: 2019-01-15 | S16: 2 | T16: 2019-02-15 | U16: 5 | V16: 2019-03-15 | W16: 5 | X16: 2019-04-15 | Y16: 1 | Z16: 2019-05-15 | AA16: 3 | AB16: 2019-06-15 | AC16: 6 | AD16: 2019-07-15 | AE16: 1 | AF16: 2019-08-15 | AG16: 4 | AH16: 2019-09-15 | AI16: 7 | AJ16: 2019-10-15 | AK16: 2 | AL16: 2019-11-15 | AM16: 5 | AN16: 2019-12-15 | AO16: 7
B17: =+B5 -> 0 | C17: 2020-03-01 | D17: 107 | E17: 107 | F17: 107 | G17: 107 | H17: 103 | I17: 89 | J17: 73 | K17: 57 | L17: 39 | M17: 24 | N17: 8 | O17: =+O16+$B17 -> 0 | R17: 2019-01-16 | S17: 3 | T17: 2019-02-16 | U17: 6 | V17: 2019-03-16 | W17: 6 | X17: 2019-04-16 | Y17: 2 | Z17: 2019-05-16 | AA17: 4 | AB17: 2019-06-16 | AC17: 7 | AD17: 2019-07-16 | AE17: 2 | AF17: 2019-08-16 | AG17: 5 | AH17: 2019-09-16 | AI17: 1 | AJ17: 2019-10-16 | AK17: 3 | AL17: 2019-11-16 | AM17: 6 | AN17: 2019-12-16 | AO17: 1
A18: 4 | B18: =+IF('Time Set'!$B$6=5,A18,IF('Time Set'!$B$6=6,A18+Y64, IF('Time Set'!$B$6=7, A18+Y64+Y65, 0))) -> 4 | C18: 2020-04-01 | D18: 111 | E18: 111 | F18: 111 | G18: 111 | H18: 107 | I18: 93 | J18: 77 | K18: 61 | L18: 43 | M18: 28 | N18: 12 | O18: =+O17+$B18 -> 4 | R18: 2019-01-17 | S18: 4 | T18: 2019-02-17 | U18: 7 | V18: 2019-03-17 | W18: 7 | X18: 2019-04-17 | Y18: 3 | Z18: 2019-05-17 | AA18: 5 | AB18: 2019-06-17 | AC18: 1 | AD18: 2019-07-17 | AE18: 3 | AF18: 2019-08-17 | AG18: 6 | AH18: 2019-09-17 | AI18: 2 | AJ18: 2019-10-17 | AK18: 4 | AL18: 2019-11-17 | AM18: 7 | AN18: 2019-12-17 | AO18: 2
A19: 14 | B19: =+IF('Time Set'!$B$6=5,A19,IF('Time Set'!$B$6=6,A19+AA66, IF('Time Set'!$B$6=7, A19+AA66+AA67, 0))) -> 14 | C19: 2020-05-01 | D19: 125 | E19: =+E18+$B19 -> 125 | F19: 125 | G19: 125 | H19: 121 | I19: 107 | J19: 91 | K19: 75 | L19: 57 | M19: 42 | N19: 26 | O19: 18 | R19: 2019-01-18 | S19: 5 | T19: 2019-02-18 | U19: 1 | V19: 2019-03-18 | W19: 1 | X19: 2019-04-18 | Y19: 4 | Z19: 2019-05-18 | AA19: 6 | AB19: 2019-06-18 | AC19: 2 | AD19: 2019-07-18 | AE19: 4 | AF19: 2019-08-18 | AG19: 7 | AH19: 2019-09-18 | AI19: 3 | AJ19: 2019-10-18 | AK19: 5 | AL19: 2019-11-18 | AM19: 1 | AN19: 2019-12-18 | AO19: 3
A20: 16 | B20: =+IF('Time Set'!$B$6=5,A20,IF('Time Set'!$B$6=6,A20+AC64, IF('Time Set'!$B$6=7, A20+AC64+AC65, 0))) -> 16 | C20: 2020-06-01 | D20: 141 | E20: 141 | F20: 141 | G20: 141 | H20: 137 | I20: 123 | J20: 107 | K20: 91 | L20: 73 | M20: 58 | N20: 42 | O20: 34 | R20: 2019-01-19 | S20: 6 | T20: 2019-02-19 | U20: 2 | V20: 2019-03-19 | W20: 2 | X20: 2019-04-19 | Y20: 5 | Z20: 2019-05-19 | AA20: 7 | AB20: 2019-06-19 | AC20: 3 | AD20: 2019-07-19 | AE20: 5 | AF20: 2019-08-19 | AG20: 1 | AH20: 2019-09-19 | AI20: 4 | AJ20: 2019-10-19 | AK20: 6 | AL20: 2019-11-19 | AM20: 2 | AN20: 2019-12-19 | AO20: 4
A21: 16 | B21: =+IF('Time Set'!$B$6=5,A21,IF('Time Set'!$B$6=6,A21+AE66, IF('Time Set'!$B$6=7, A21+AE66+AE67, 0))) -> 16 | C21: 2020-07-01 | D21: 157 | E21: 157 | F21: 157 | G21: 157 | H21: 153 | I21: 139 | J21: 123 | K21: 107 | L21: 89 | M21: 74 | N21: 58 | O21: 50 | R21: 2019-01-20 | S21: 7 | T21: 2019-02-20 | U21: 3 | V21: 2019-03-20 | W21: 3 | X21: 2019-04-20 | Y21: 6 | Z21: 2019-05-20 | AA21: 1 | AB21: 2019-06-20 | AC21: 4 | AD21: 2019-07-20 | AE21: 6 | AF21: 2019-08-20 | AG21: 2 | AH21: 2019-09-20 | AI21: 5 | AJ21: 2019-10-20 | AK21: 7 | AL21: 2019-11-20 | AM21: 3 | AN21: 2019-12-20 | AO21: 5
A22: 18 | B22: =+IF('Time Set'!$B$6=5,A22,IF('Time Set'!$B$6=6,A22+AG66, IF('Time Set'!$B$6=7, A22+AG66+AG67, 0))) -> 18 | C22: 2020-08-01 | D22: 175 | E22: 175 | F22: 175 | G22: 175 | H22: 171 | I22: 157 | J22: 141 | K22: 125 | L22: 107 | M22: 92 | N22: 76 | O22: 68 | R22: 2019-01-21 | S22: 1 | T22: 2019-02-21 | U22: 4 | V22: 2019-03-21 | W22: 4 | X22: 2019-04-21 | Y22: 7 | Z22: 2019-05-21 | AA22: 2 | AB22: 2019-06-21 | AC22: 5 | AD22: 2019-07-21 | AE22: 7 | AF22: 2019-08-21 | AG22: 3 | AH22: 2019-09-21 | AI22: 6 | AJ22: 2019-10-21 | AK22: 1 | AL22: 2019-11-21 | AM22: 4 | AN22: 2019-12-21 | AO22: 6
A23: 15 | B23: =+IF('Time Set'!$B$6=5,A23,IF('Time Set'!$B$6=6,A23+AI64, IF('Time Set'!$B$6=7, A23+AI64+AI65, 0))) -> 15 | C23: 2020-09-01 | D23: 190 | E23: 190 | F23: 190 | G23: 190 | H23: 186 | I23: 172 | J23: 156 | K23: 140 | L23: 122 | M23: 107 | N23: 91 | O23: 83 | R23: 2019-01-22 | S23: 2 | T23: 2019-02-22 | U23: 5 | V23: 2019-03-22 | W23: 5 | X23: 2019-04-22 | Y23: 1 | Z23: 2019-05-22 | AA23: 3 | AB23: 2019-06-22 | AC23: 6 | AD23: 2019-07-22 | AE23: 1 | AF23: 2019-08-22 | AG23: 4 | AH23: 2019-09-22 | AI23: 7 | AJ23: 2019-10-22 | AK23: 2 | AL23: 2019-11-22 | AM23: 5 | AN23: 2019-12-22 | AO23: 7
A24: 16 | B24: =+IF('Time Set'!$B$6=5,A24,IF('Time Set'!$B$6=6,A24+AK66, IF('Time Set'!$B$6=7, A24+AK66+AK67,0))) -> 16 | C24: 2020-10-01 | D24: 206 | E24: 206 | F24: 206 | G24: 206 | H24: 202 | I24: 188 | J24: 172 | K24: 156 | L24: 138 | M24: 123 | N24: 107 | O24: 99 | R24: =+R23+1 -> 2019-01-23 | S24: 3 | T24: 2019-02-23 | U24: 6 | V24: 2019-03-23 | W24: 6 | X24: 2019-04-23 | Y24: 2 | Z24: 2019-05-23 | AA24: 4 | AB24: 2019-06-23 | AC24: 7 | AD24: 2019-07-23 | AE24: 2 | AF24: 2019-08-23 | AG24: 5 | AH24: 2019-09-23 | AI24: 1 | AJ24: 2019-10-23 | AK24: 3 | AL24: 2019-11-23 | AM24: 6 | AN24: 2019-12-23 | AO24: 1
A25: 8 | B25: =+IF('Time Set'!$B$6=5,A25,IF('Time Set'!$B$6=6,A25+AM64, IF('Time Set'!$B$6=7, A25+AM64+AM65, 0))) -> 8 | C25: 2020-11-01 | D25: 214 | E25: 214 | F25: 214 | G25: 214 | H25: 210 | I25: 196 | J25: 180 | K25: 164 | L25: 146 | M25: 131 | N25: 115 | O25: 107 | R25: 2019-01-24 | S25: 4 | T25: 2019-02-24 | U25: 7 | V25: 2019-03-24 | W25: 7 | X25: 2019-04-24 | Y25: 3 | Z25: 2019-05-24 | AA25: 5 | AB25: 2019-06-24 | AC25: 1 | AD25: 2019-07-24 | AE25: 3 | AF25: 2019-08-24 | AG25: 6 | AH25: 2019-09-24 | AI25: 2 | AJ25: 2019-10-24 | AK25: 4 | AL25: 2019-11-24 | AM25: 7 | AN25: 2019-12-24 | AO25: 2
B26: =+B14 -> 0 | C26: 2020-12-01 | D26: 214 | E26: =+E25+$B26 -> 214 | F26: 214 | G26: 214 | H26: 210 | I26: 196 | J26: 180 | K26: 164 | L26: 146 | M26: 131 | N26: 115 | O26: 107 | R26: 2019-01-25 | S26: 5 | T26: 2019-02-25 | U26: 1 | V26: 2019-03-25 | W26: 1 | X26: 2019-04-25 | Y26: 4 | Z26: 2019-05-25 | AA26: 6 | AB26: 2019-06-25 | AC26: 2 | AD26: 2019-07-25 | AE26: 4 | AF26: 2019-08-25 | AG26: 7 | AH26: 2019-09-25 | AI26: 3 | AJ26: 2019-10-25 | AK26: 5 | AL26: 2019-11-25 | AM26: 1 | AN26: 2019-12-25 | AO26: 3
B27: =+B15 -> 0 | C27: 2021-01-01 | D27: 214 | E27: 214 | F27: 214 | G27: 214 | H27: 210 | I27: 196 | J27: 180 | K27: 164 | L27: 146 | M27: 131 | N27: 115 | O27: 107 | R27: 2019-01-26 | S27: 6 | T27: 2019-02-26 | U27: 2 | V27: 2019-03-26 | W27: 2 | X27: 2019-04-26 | Y27: 5 | Z27: 2019-05-26 | AA27: 7 | AB27: 2019-06-26 | AC27: 3 | AD27: 2019-07-26 | AE27: 5 | AF27: 2019-08-26 | AG27: 1 | AH27: 2019-09-26 | AI27: 4 | AJ27: 2019-10-26 | AK27: 6 | AL27: 2019-11-26 | AM27: 2 | AN27: 2019-12-26 | AO27: 4
B28: =+B16 -> 0 | C28: 2021-02-01 | D28: 214 | E28: 214 | F28: 214 | G28: 214 | H28: 210 | I28: 196 | J28: 180 | K28: 164 | L28: 146 | M28: 131 | N28: 115 | O28: 107 | R28: 2019-01-27 | S28: 7 | T28: 2019-02-27 | U28: 3 | V28: 2019-03-27 | W28: 3 | X28: 2019-04-27 | Y28: 6 | Z28: 2019-05-27 | AA28: 1 | AB28: 2019-06-27 | AC28: 4 | AD28: 2019-07-27 | AE28: 6 | AF28: 2019-08-27 | AG28: 2 | AH28: 2019-09-27 | AI28: 5 | AJ28: 2019-10-27 | AK28: 7 | AL28: 2019-11-27 | AM28: 3 | AN28: 2019-12-27 | AO28: 5
B29: =+B17 -> 0 | C29: 2021-03-01 | D29: 214 | E29: 214 | F29: 214 | G29: 214 | H29: 210 | I29: 196 | J29: 180 | K29: 164 | L29: 146 | M29: 131 | N29: 115 | O29: 107 | R29: 2019-01-28 | S29: 1 | T29: 2019-02-28 | U29: 4 | V29: 2019-03-28 | W29: 4 | X29: 2019-04-28 | Y29: 7 | Z29: 2019-05-28 | AA29: 2 | AB29: 2019-06-28 | AC29: 5 | AD29: 2019-07-28 | AE29: 7 | AF29: 2019-08-28 | AG29: 3 | AH29: 2019-09-28 | AI29: 6 | AJ29: 2019-10-28 | AK29: 1 | AL29: 2019-11-28 | AM29: 4 | AN29: 2019-12-28 | AO29: 6
A30: 4 | B30: =+IF('Time Set'!$B$6=5,A30,IF('Time Set'!$B$6=6,A30+Y96, IF('Time Set'!$B$6=7, A30+Y96+Y97, 0))) -> 4 | C30: 2021-04-01 | D30: 218 | E30: 218 | F30: 218 | G30: 218 | H30: 214 | I30: 200 | J30: 184 | K30: 168 | L30: 150 | M30: 135 | N30: 119 | O30: 111 | R30: =+R29+1 -> 2019-01-29 | S30: 2 | V30: 2019-03-29 | W30: 5 | X30: 2019-04-29 | Y30: 1 | Z30: 2019-05-29 | AA30: 3 | AB30: 2019-06-29 | AC30: 6 | AD30: 2019-07-29 | AE30: 1 | AF30: 2019-08-29 | AG30: 4 | AH30: 2019-09-29 | AI30: 7 | AJ30: 2019-10-29 | AK30: 2 | AL30: 2019-11-29 | AM30: 5 | AN30: 2019-12-29 | AO30: 7
A31: 14 | B31: =+IF('Time Set'!$B$6=5,A31,IF('Time Set'!$B$6=6,A31+Y99, IF('Time Set'!$B$6=7, A31+Y99+Y100, 0))) -> 14 | C31: 2021-05-01 | D31: =+D30+$B31 -> 232 | E31: 232 | F31: 232 | G31: 232 | H31: 228 | I31: 214 | J31: 198 | K31: 182 | L31: 164 | M31: 149 | N31: 133 | O31: 125 | R31: =+R30+1 -> 2019-01-30 | S31: 3 | T31: Saturday | U31: =COUNTIF(U2:U29,6) -> 4 | V31: 2019-03-30 | W31: 6 | X31: 2019-04-30 | Y31: 2 | Z31: 2019-05-30 | AA31: 4 | AB31: 2019-06-30 | AC31: 7 | AD31: 2019-07-30 | AE31: 2 | AF31: 2019-08-30 | AG31: 5 | AH31: 2019-09-30 | AI31: 1 | AJ31: 2019-10-30 | AK31: 3 | AL31: 2019-11-30 | AM31: 6 | AN31: 2019-12-30 | AO31: 1
A32: 16 | B32: =+IF('Time Set'!$B$6=5,A32,IF('Time Set'!$B$6=6,A32+Y96, IF('Time Set'!$B$6=7, A32+Y96+Y97, 0))) -> 16 | C32: 2021-06-01 | D32: 248 | E32: 248 | F32: 248 | G32: 248 | H32: 244 | I32: 230 | J32: 214 | K32: 198 | L32: 180 | M32: 165 | N32: 149 | O32: 141 | R32: =+R31+1 -> 2019-01-31 | S32: 4 | T32: Sunday | U32: =COUNTIF(U2:U29,7) -> 4 | V32: 2019-03-31 | W32: 7 | X32: Saturday | Y32: =COUNTIF(Y2:Y31,6) -> 4 | Z32: 2019-05-31 | AA32: 5 | AB32: Saturday | AC32: =COUNTIF(AC2:AC31,6) -> 5 | AD32: 2019-07-31 | AE32: 3 | AF32: 2019-08-31 | AG32: 6 | AH32: Saturday | AI32: =COUNTIF(AI2:AI31,6) -> 4 | AJ32: 2019-10-31 | AK32: 4 | AL32: Saturday | AM32: =COUNTIF(AM2:AM31,6) -> 5 | AN32: 2019-12-31 | AO32: 2
A33: 16 | B33: =+IF('Time Set'!$B$6=5,A33,IF('Time Set'!$B$6=6,A33+Y99, IF('Time Set'!$B$6=7, A33+Y99+Y100, 0))) -> 16 | C33: 2021-07-01 | D33: 264 | E33: 264 | F33: 264 | G33: 264 | H33: 260 | I33: 246 | J33: 230 | K33: 214 | L33: 196 | M33: 181 | N33: 165 | O33: 157 | R33: Saturday | S33: =COUNTIF(S2:S32,6) -> 4 | T33: =DATE(YEAR('Time Set'!$B$5)+1,2,1) -> 2020-02-01 | U33: =WEEKDAY(T33,2) -> 6 | V33: Saturday | W33: =COUNTIF(W2:W32,6) -> 5 | X33: Sunday | Y33: =COUNTIF(Y2:Y31,7) -> 4 | Z33: Saturday | AA33: =COUNTIF(AA2:AA32,6) -> 4 | AB33: Sunday | AC33: =COUNTIF(AC2:AC31,7) -> 5 | AD33: Saturday | AE33: =COUNTIF(AE2:AE32,6) -> 4 | AF33: Saturday | AG33: =COUNTIF(AG2:AG32,6) -> 5 | AH33: Sunday | AI33: =COUNTIF(AI2:AI31,7) -> 5 | AJ33: Saturday | AK33: =COUNTIF(AK2:AK32,6) -> 4 | AL33: Sunday | AM33: =COUNTIF(AM2:AM31,7) -> 4 | AN33: Saturday | AO33: =COUNTIF(AO2:AO32,6) -> 4
A34: 18 | B34: =+IF('Time Set'!$B$6=5,A34,IF('Time Set'!$B$6=6,A34+Y199, IF('Time Set'!$B$6=7, A34+Y99+Y100, 0))) -> 18 | C34: 2021-08-01 | D34: 282 | E34: 282 | F34: 282 | G34: 282 | H34: 278 | I34: 264 | J34: 248 | K34: 232 | L34: 214 | M34: 199 | N34: 183 | O34: 175 | R34: Sunday | S34: =COUNTIF(S2:S32,7) -> 4 | T34: =+T33+1 -> 2020-02-02 | U34: 7 | V34: Sunday | W34: =COUNTIF(W2:W32,7) -> 5 | X34: =DATE(YEAR('Time Set'!$B$5)+1,4,1) -> 2020-04-01 | Y34: =WEEKDAY(X34,2) -> 3 | Z34: Sunday | AA34: =COUNTIF(AA2:AA32,7) -> 4 | AB34: =DATE(YEAR('Time Set'!$B$5)+1,6,1) -> 2020-06-01 | AC34: =WEEKDAY(AB34,2) -> 1 | AD34: Sunday | AE34: =COUNTIF(AE2:AE32,7) -> 4 | AF34: Sunday | AG34: =COUNTIF(AG2:AG32,7) -> 4 | AH34: =DATE(YEAR('Time Set'!$B$5)+1,9,1) -> 2020-09-01 | AI34: =WEEKDAY(AH34,2) -> 2 | AJ34: Sunday | AK34: =COUNTIF(AK2:AK32,7) -> 4 | AL34: =DATE(YEAR('Time Set'!$B$5)+1,11,1) -> 2020-11-01 | AM34: =WEEKDAY(AL34,2) -> 7 | AN34: Sunday | AO34: =COUNTIF(AO2:AO32,7) -> 5
A35: 15 | B35: =+IF('Time Set'!$B$6=5,A35,IF('Time Set'!$B$6=6,A35+Y96, IF('Time Set'!$B$6=7, A35+Y96+Y97, 0))) -> 15 | C35: 2021-09-01 | D35: 297 | E35: 297 | F35: 297 | G35: 297 | H35: 293 | I35: 279 | J35: 263 | K35: 247 | L35: 229 | M35: 214 | N35: 198 | O35: 190 | R35: =DATE(YEAR('Time Set'!B5)+1,1,1) -> 2020-01-01 | S35: =WEEKDAY(R35,2) -> 3 | T35: =+T34+1 -> 2020-02-03 | U35: 1 | V35: =DATE(YEAR('Time Set'!$B$5)+1,3,1) -> 2020-03-01 | W35: =WEEKDAY(V35,2) -> 7 | X35: =+X34+1 -> 2020-04-02 | Y35: =WEEKDAY(X35,2) -> 4 | Z35: =DATE(YEAR('Time Set'!$B$5)+1,5,1) -> 2020-05-01 | AA35: =WEEKDAY(Z35,2) -> 5 | AB35: =+AB34+1 -> 2020-06-02 | AC35: =WEEKDAY(AB35,2) -> 2 | AD35: =DATE(YEAR('Time Set'!$B$5)+1,7,1) -> 2020-07-01 | AE35: =WEEKDAY(AD35,2) -> 3 | AF35: =DATE(YEAR('Time Set'!$B$5)+1,8,1) -> 2020-08-01 | AG35: =WEEKDAY(AF35,2) -> 6 | AH35: =+AH34+1 -> 2020-09-02 | AI35: =WEEKDAY(AH35,2) -> 3 | AJ35: =DATE(YEAR('Time Set'!$B$5)+1,10,1) -> 2020-10-01 | AK35: =WEEKDAY(AJ35,2) -> 4 | AL35: =+AL34+1 -> 2020-11-02 | AM35: =WEEKDAY(AL35,2) -> 1 | AN35: =DATE(YEAR('Time Set'!$B$5)+1,12,1) -> 2020-12-01 | AO35: =WEEKDAY(AN35,2) -> 2
A36: 16 | B36: =+IF('Time Set'!$B$6=5,A36,IF('Time Set'!$B$6=6,A36+Y99, IF('Time Set'!$B$6=7, A36+Y99+Y100, 0))) -> 16 | C36: 2021-10-01 | D36: =+D35+$B36 -> 313 | E36: 313 | F36: 313 | G36: 313 | H36: 309 | I36: 295 | J36: 279 | K36: 263 | L36: 245 | M36: 230 | N36: 214 | O36: 206 | R36: =+R35+1 -> 2020-01-02 | S36: =WEEKDAY(R36,2) -> 4 | T36: 2020-02-04 | U36: 2 | V36: =+V35+1 -> 2020-03-02 | W36: =WEEKDAY(V36,2) -> 1 | X36: =+X35+1 -> 2020-04-03 | Y36: 5 | Z36: =+Z35+1 -> 2020-05-02 | AA36: =WEEKDAY(Z36,2) -> 6 | AB36: =+AB35+1 -> 2020-06-03 | AC36: 3 | AD36: =+AD35+1 -> 2020-07-02 | AE36: =WEEKDAY(AD36,2) -> 4 | AF36: =+AF35+1 -> 2020-08-02 | AG36: =WEEKDAY(AF36,2) -> 7 | AH36: =+AH35+1 -> 2020-09-03 | AI36: 4 | AJ36: =+AJ35+1 -> 2020-10-02 | AK36: =WEEKDAY(AJ36,2) -> 5 | AL36: =+AL35+1 -> 2020-11-03 | AM36: 2 | AN36: =+AN35+1 -> 2020-12-02 | AO36: =WEEKDAY(AN36,2) -> 3
A37: 8 | B37: =+IF('Time Set'!$B$6=5,A37,IF('Time Set'!$B$6=6,A37+Y96, IF('Time Set'!$B$6=7, A37+Y96+Y97, 0))) -> 8 | C37: 2021-11-01 | D37: 321 | E37: 321 | F37: 321 | G37: 321 | H37: 317 | I37: 303 | J37: 287 | K37: 271 | L37: 253 | M37: 238 | N37: 222 | O37: 214 | R37: =+R36+1 -> 2020-01-03 | S37: =WEEKDAY(R37,2) -> 5 | T37: 2020-02-05 | U37: 3 | V37: =+V36+1 -> 2020-03-03 | W37: 2 | X37: 2020-04-04 | Y37: 6 | Z37: =+Z36+1 -> 2020-05-03 | AA37: 7 | AB37: 2020-06-04 | AC37: 4 | AD37: =+AD36+1 -> 2020-07-03 | AE37: 5 | AF37: =+AF36+1 -> 2020-08-03 | AG37: 1 | AH37: 2020-09-04 | AI37: 5 | AJ37: =+AJ36+1 -> 2020-10-03 | AK37: 6 | AL37: 2020-11-04 | AM37: 3 | AN37: =+AN36+1 -> 2020-12-03 | AO37: 4
B38: =+B26 -> 0 | C38: 2021-12-01 | R38: 2020-01-04 | S38: 6 | T38: 2020-02-06 | U38: 4 | V38: 2020-03-04 | W38: 3 | X38: 2020-04-05 | Y38: 7 | Z38: 2020-05-04 | AA38: 1 | AB38: 2020-06-05 | AC38: 5 | AD38: 2020-07-04 | AE38: 6 | AF38: 2020-08-04 | AG38: 2 | AH38: 2020-09-05 | AI38: 6 | AJ38: 2020-10-04 | AK38: 7 | AL38: 2020-11-05 | AM38: 4 | AN38: 2020-12-04 | AO38: 5
R39: 2020-01-05 | S39: 7 | T39: 2020-02-07 | U39: 5 | V39: 2020-03-05 | W39: 4 | X39: 2020-04-06 | Y39: 1 | Z39: 2020-05-05 | AA39: 2 | AB39: 2020-06-06 | AC39: 6 | AD39: 2020-07-05 | AE39: 7 | AF39: 2020-08-05 | AG39: 3 | AH39: 2020-09-06 | AI39: 7 | AJ39: 2020-10-05 | AK39: 1 | AL39: 2020-11-06 | AM39: 5 | AN39: 2020-12-05 | AO39: 6
R40: 2020-01-06 | S40: 1 | T40: 2020-02-08 | U40: 6 | V40: 2020-03-06 | W40: 5 | X40: 2020-04-07 | Y40: 2 | Z40: 2020-05-06 | AA40: 3 | AB40: 2020-06-07 | AC40: 7 | AD40: 2020-07-06 | AE40: 1 | AF40: 2020-08-06 | AG40: 4 | AH40: 2020-09-07 | AI40: 1 | AJ40: 2020-10-06 | AK40: 2 | AL40: 2020-11-07 | AM40: 6 | AN40: 2020-12-06 | AO40: 7
R41: 2020-01-07 | S41: 2 | T41: 2020-02-09 | U41: 7 | V41: 2020-03-07 | W41: 6 | X41: 2020-04-08 | Y41: 3 | Z41: 2020-05-07 | AA41: 4 | AB41: 2020-06-08 | AC41: 1 | AD41: 2020-07-07 | AE41: 2 | AF41: 2020-08-07 | AG41: 5 | AH41: 2020-09-08 | AI41: 2 | AJ41: 2020-10-07 | AK41: 3 | AL41: 2020-11-08 | AM41: 7 | AN41: 2020-12-07 | AO41: 1
R42: 2020-01-08 | S42: 3 | T42: 2020-02-10 | U42: 1 | V42: 2020-03-08 | W42: 7 | X42: 2020-04-09 | Y42: 4 | Z42: 2020-05-08 | AA42: 5 | AB42: 2020-06-09 | AC42: 2 | AD42: 2020-07-08 | AE42: 3 | AF42: 2020-08-08 | AG42: 6 | AH42: 2020-09-09 | AI42: 3 | AJ42: 2020-10-08 | AK42: 4 | AL42: 2020-11-09 | AM42: 1 | AN42: 2020-12-08 | AO42: 2
R43: 2020-01-09 | S43: 4 | T43: 2020-02-11 | U43: 2 | V43: 2020-03-09 | W43: 1 | X43: 2020-04-10 | Y43: 5 | Z43: 2020-05-09 | AA43: 6 | AB43: 2020-06-10 | AC43: 3 | AD43: 2020-07-09 | AE43: 4 | AF43: 2020-08-09 | AG43: 7 | AH43: 2020-09-10 | AI43: 4 | AJ43: 2020-10-09 | AK43: 5 | AL43: 2020-11-10 | AM43: 2 | AN43: 2020-12-09 | AO43: 3
R44: 2020-01-10 | S44: 5 | T44: 2020-02-12 | U44: 3 | V44: 2020-03-10 | W44: 2 | X44: 2020-04-11 | Y44: 6 | Z44: 2020-05-10 | AA44: 7 | AB44: 2020-06-11 | AC44: 4 | AD44: 2020-07-10 | AE44: 5 | AF44: 2020-08-10 | AG44: 1 | AH44: 2020-09-11 | AI44: 5 | AJ44: 2020-10-10 | AK44: 6 | AL44: 2020-11-11 | AM44: 3 | AN44: 2020-12-10 | AO44: 4
R45: 2020-01-11 | S45: 6 | T45: 2020-02-13 | U45: 4 | V45: 2020-03-11 | W45: 3 | X45: 2020-04-12 | Y45: 7 | Z45: 2020-05-11 | AA45: 1 | AB45: 2020-06-12 | AC45: 5 | AD45: 2020-07-11 | AE45: 6 | AF45: 2020-08-11 | AG45: 2 | AH45: 2020-09-12 | AI45: 6 | AJ45: 2020-10-11 | AK45: 7 | AL45: 2020-11-12 | AM45: 4 | AN45: 2020-12-11 | AO45: 5
R46: 2020-01-12 | S46: 7 | T46: 2020-02-14 | U46: 5 | V46: 2020-03-12 | W46: 4 | X46: 2020-04-13 | Y46: 1 | Z46: 2020-05-12 | AA46: 2 | AB46: 2020-06-13 | AC46: 6 | AD46: 2020-07-12 | AE46: 7 | AF46: 2020-08-12 | AG46: 3 | AH46: 2020-09-13 | AI46: 7 | AJ46: 2020-10-12 | AK46: 1 | AL46: 2020-11-13 | AM46: 5 | AN46: 2020-12-12 | AO46: 6
R47: 2020-01-13 | S47: 1 | T47: 2020-02-15 | U47: 6 | V47: 2020-03-13 | W47: 5 | X47: 2020-04-14 | Y47: 2 | Z47: 2020-05-13 | AA47: 3 | AB47: 2020-06-14 | AC47: 7 | AD47: 2020-07-13 | AE47: 1 | AF47: 2020-08-13 | AG47: 4 | AH47: 2020-09-14 | AI47: 1 | AJ47: 2020-10-13 | AK47: 2 | AL47: 2020-11-14 | AM47: 6 | AN47: 2020-12-13 | AO47: 7
R48: 2020-01-14 | S48: 2 | T48: 2020-02-16 | U48: 7 | V48: 2020-03-14 | W48: 6 | X48: 2020-04-15 | Y48: 3 | Z48: 2020-05-14 | AA48: 4 | AB48: 2020-06-15 | AC48: 1 | AD48: 2020-07-14 | AE48: 2 | AF48: 2020-08-14 | AG48: 5 | AH48: 2020-09-15 | AI48: 2 | AJ48: 2020-10-14 | AK48: 3 | AL48: 2020-11-15 | AM48: 7 | AN48: 2020-12-14 | AO48: 1
R49: 2020-01-15 | S49: 3 | T49: 2020-02-17 | U49: 1 | V49: 2020-03-15 | W49: 7 | X49: 2020-04-16 | Y49: 4 | Z49: 2020-05-15 | AA49: 5 | AB49: 2020-06-16 | AC49: 2 | AD49: 2020-07-15 | AE49: 3 | AF49: 2020-08-15 | AG49: 6 | AH49: 2020-09-16 | AI49: 3 | AJ49: 2020-10-15 | AK49: 4 | AL49: 2020-11-16 | AM49: 1 | AN49: 2020-12-15 | AO49: 2
R50: 2020-01-16 | S50: 4 | T50: 2020-02-18 | U50: 2 | V50: 2020-03-16 | W50: 1 | X50: 2020-04-17 | Y50: 5 | Z50: 2020-05-16 | AA50: 6 | AB50: 2020-06-17 | AC50: 3 | AD50: 2020-07-16 | AE50: 4 | AF50: 2020-08-16 | AG50: 7 | AH50: 2020-09-17 | AI50: 4 | AJ50: 2020-10-16 | AK50: 5 | AL50: 2020-11-17 | AM50: 2 | AN50: 2020-12-16 | AO50: 3
R51: 2020-01-17 | S51: 5 | T51: 2020-02-19 | U51: 3 | V51: 2020-03-17 | W51: 2 | X51: 2020-04-18 | Y51: 6 | Z51: 2020-05-17 | AA51: 7 | AB51: 2020-06-18 | AC51: 4 | AD51: 2020-07-17 | AE51: 5 | AF51: 2020-08-17 | AG51: 1 | AH51: 2020-09-18 | AI51: 5 | AJ51: 2020-10-17 | AK51: 6 | AL51: 2020-11-18 | AM51: 3 | AN51: 2020-12-17 | AO51: 4
R52: 2020-01-18 | S52: 6 | T52: 2020-02-20 | U52: 4 | V52: 2020-03-18 | W52: 3 | X52: 2020-04-19 | Y52: 7 | Z52: 2020-05-18 | AA52: 1 | AB52: 2020-06-19 | AC52: 5 | AD52: 2020-07-18 | AE52: 6 | AF52: 2020-08-18 | AG52: 2 | AH52: 2020-09-19 | AI52: 6 | AJ52: 2020-10-18 | AK52: 7 | AL52: 2020-11-19 | AM52: 4 | AN52: 2020-12-18 | AO52: 5
R53: 2020-01-19 | S53: 7 | T53: 2020-02-21 | U53: 5 | V53: 2020-03-19 | W53: 4 | X53: 2020-04-20 | Y53: 1 | Z53: 2020-05-19 | AA53: 2 | AB53: 2020-06-20 | AC53: 6 | AD53: 2020-07-19 | AE53: 7 | AF53: 2020-08-19 | AG53: 3 | AH53: 2020-09-20 | AI53: 7 | AJ53: 2020-10-19 | AK53: 1 | AL53: 2020-11-20 | AM53: 5 | AN53: 2020-12-19 | AO53: 6
R54: 2020-01-20 | S54: 1 | T54: 2020-02-22 | U54: 6 | V54: 2020-03-20 | W54: 5 | X54: 2020-04-21 | Y54: 2 | Z54: 2020-05-20 | AA54: 3 | AB54: 2020-06-21 | AC54: 7 | AD54: 2020-07-20 | AE54: 1 | AF54: 2020-08-20 | AG54: 4 | AH54: 2020-09-21 | AI54: 1 | AJ54: 2020-10-20 | AK54: 2 | AL54: 2020-11-21 | AM54: 6 | AN54: 2020-12-20 | AO54: 7
R55: 2020-01-21 | S55: 2 | T55: 2020-02-23 | U55: 7 | V55: 2020-03-21 | W55: 6 | X55: 2020-04-22 | Y55: 3 | Z55: 2020-05-21 | AA55: 4 | AB55: 2020-06-22 | AC55: 1 | AD55: 2020-07-21 | AE55: 2 | AF55: 2020-08-21 | AG55: 5 | AH55: 2020-09-22 | AI55: 2 | AJ55: 2020-10-21 | AK55: 3 | AL55: 2020-11-22 | AM55: 7 | AN55: 2020-12-21 | AO55: 1
R56: 2020-01-22 | S56: 3 | T56: 2020-02-24 | U56: 1 | V56: 2020-03-22 | W56: 7 | X56: 2020-04-23 | Y56: 4 | Z56: 2020-05-22 | AA56: 5 | AB56: 2020-06-23 | AC56: 2 | AD56: 2020-07-22 | AE56: 3 | AF56: 2020-08-22 | AG56: 6 | AH56: 2020-09-23 | AI56: 3 | AJ56: 2020-10-22 | AK56: 4 | AL56: 2020-11-23 | AM56: 1 | AN56: 2020-12-22 | AO56: 2
R57: 2020-01-23 | S57: 4 | T57: 2020-02-25 | U57: 2 | V57: 2020-03-23 | W57: 1 | X57: 2020-04-24 | Y57: 5 | Z57: 2020-05-23 | AA57: 6 | AB57: 2020-06-24 | AC57: 3 | AD57: 2020-07-23 | AE57: 4 | AF57: 2020-08-23 | AG57: 7 | AH57: 2020-09-24 | AI57: 4 | AJ57: 2020-10-23 | AK57: 5 | AL57: 2020-11-24 | AM57: 2 | AN57: 2020-12-23 | AO57: 3
R58: 2020-01-24 | S58: 5 | T58: 2020-02-26 | U58: 3 | V58: 2020-03-24 | W58: 2 | X58: 2020-04-25 | Y58: 6 | Z58: 2020-05-24 | AA58: 7 | AB58: 2020-06-25 | AC58: 4 | AD58: 2020-07-24 | AE58: 5 | AF58: 2020-08-24 | AG58: 1 | AH58: 2020-09-25 | AI58: 5 | AJ58: 2020-10-24 | AK58: 6 | AL58: 2020-11-25 | AM58: 3 | AN58: 2020-12-24 | AO58: 4
R59: 2020-01-25 | S59: 6 | T59: 2020-02-27 | U59: 4 | V59: 2020-03-25 | W59: 3 | X59: 2020-04-26 | Y59: 7 | Z59: 2020-05-25 | AA59: 1 | AB59: 2020-06-26 | AC59: 5 | AD59: 2020-07-25 | AE59: 6 | AF59: 2020-08-25 | AG59: 2 | AH59: 2020-09-26 | AI59: 6 | AJ59: 2020-10-25 | AK59: 7 | AL59: 2020-11-26 | AM59: 4 | AN59: 2020-12-25 | AO59: 5
R60: 2020-01-26 | S60: 7 | T60: 2020-02-28 | U60: 5 | V60: 2020-03-26 | W60: 4 | X60: 2020-04-27 | Y60: 1 | Z60: 2020-05-26 | AA60: 2 | AB60: 2020-06-27 | AC60: 6 | AD60: 2020-07-26 | AE60: 7 | AF60: 2020-08-26 | AG60: 3 | AH60: 2020-09-27 | AI60: 7 | AJ60: 2020-10-26 | AK60: 1 | AL60: 2020-11-27 | AM60: 5 | AN60: 2020-12-26 | AO60: 6
R61: 2020-01-27 | S61: 1 | T61: 2020-02-29 | U61: 6 | V61: 2020-03-27 | W61: 5 | X61: 2020-04-28 | Y61: 2 | Z61: 2020-05-27 | AA61: 3 | AB61: 2020-06-28 | AC61: 7 | AD61: 2020-07-27 | AE61: 1 | AF61: 2020-08-27 | AG61: 4 | AH61: 2020-09-28 | AI61: 1 | AJ61: 2020-10-27 | AK61: 2 | AL61: 2020-11-28 | AM61: 6 | AN61: 2020-12-27 | AO61: 7
R62: 2020-01-28 | S62: 2 | T62: Saturday | U62: =COUNTIF(U33:U60,6) -> 4 | V62: 2020-03-28 | W62: 6 | X62: 2020-04-29 | Y62: 3 | Z62: 2020-05-28 | AA62: 4 | AB62: 2020-06-29 | AC62: 1 | AD62: 2020-07-28 | AE62: 2 | AF62: 2020-08-28 | AG62: 5 | AH62: 2020-09-29 | AI62: 2 | AJ62: 2020-10-28 | AK62: 3 | AL62: 2020-11-29 | AM62: 7 | AN62: 2020-12-28 | AO62: 1
R63: 2020-01-29 | S63: 3 | T63: Sunday | U63: =COUNTIF(U33:U60,7) -> 4 | V63: 2020-03-29 | W63: 7 | X63: 2020-04-30 | Y63: 4 | Z63: 2020-05-29 | AA63: 5 | AB63: 2020-06-30 | AC63: 2 | AD63: 2020-07-29 | AE63: 3 | AF63: 2020-08-29 | AG63: 6 | AH63: 2020-09-30 | AI63: 3 | AJ63: 2020-10-29 | AK63: 4 | AL63: 2020-11-30 | AM63: 1 | AN63: 2020-12-29 | AO63: 2
R64: 2020-01-30 | S64: 4 | T64: =DATE(YEAR('Time Set'!$B$5)+2,2,1) -> 2021-02-01 | U64: 1 | V64: 2020-03-30 | W64: 1 | X64: Saturday | Y64: =COUNTIF(Y34:Y63,6) -> 4 | Z64: 2020-05-30 | AA64: 6 | AB64: Saturday | AC64: =COUNTIF(AC34:AC63,6) -> 4 | AD64: 2020-07-30 | AE64: 4 | AF64: 2020-08-30 | AG64: 7 | AH64: Saturday | AI64: =COUNTIF(AI34:AI63,6) -> 4 | AJ64: 2020-10-30 | AK64: 5 | AL64: Saturday | AM64: =COUNTIF(AM34:AM63,6) -> 4 | AN64: 2020-12-30 | AO64: 3
R65: 2020-01-31 | S65: 5 | T65: =+T64+1 -> 2021-02-02 | U65: 2 | V65: 2020-03-31 | W65: 2 | X65: Sunday | Y65: =COUNTIF(Y34:Y63,7) -> 4 | Z65: 2020-05-31 | AA65: 7 | AB65: Sunday | AC65: =COUNTIF(AC34:AC63,7) -> 4 | AD65: 2020-07-31 | AE65: 5 | AF65: 2020-08-31 | AG65: 1 | AH65: Sunday | AI65: =COUNTIF(AI34:AI63,7) -> 4 | AJ65: 2020-10-31 | AK65: 6 | AL65: Sunday | AM65: =COUNTIF(AM34:AM63,7) -> 5 | AN65: 2020-12-31 | AO65: 4
R66: Saturday | S66: =COUNTIF(S35:S65,6) -> 4 | T66: =+T65+1 -> 2021-02-03 | U66: 3 | V66: Saturday | W66: =COUNTIF(W35:W65,6) -> 4 | X66: =DATE(YEAR('Time Set'!$B$5)+2,4,1) -> 2021-04-01 | Y66: =WEEKDAY(X66,2) -> 4 | Z66: Saturday | AA66: =COUNTIF(AA35:AA65,6) -> 5 | AB66: =DATE(YEAR('Time Set'!$B$5)+2,6,1) -> 2021-06-01 | AC66: =WEEKDAY(AB66,2) -> 2 | AD66: Saturday | AE66: =COUNTIF(AE35:AE65,6) -> 4 | AF66: Saturday | AG66: =COUNTIF(AG35:AG65,6) -> 5 | AH66: =DATE(YEAR('Time Set'!$B$5)+2,9,1) -> 2021-09-01 | AI66: =WEEKDAY(AH66,2) -> 3 | AJ66: Saturday | AK66: =COUNTIF(AK35:AK65,6) -> 5 | AL66: =DATE(YEAR('Time Set'!$B$5)+2,11,1) -> 2021-11-01 | AM66: =WEEKDAY(AL66,2) -> 1 | AN66: Saturday | AO66: =COUNTIF(AO35:AO65,6) -> 4
R67: Sunday | S67: =COUNTIF(S35:S65,7) -> 4 | T67: 2021-02-04 | U67: 4 | V67: Sunday | W67: =COUNTIF(W35:W65,7) -> 5 | X67: =+X66+1 -> 2021-04-02 | Y67: =WEEKDAY(X67,2) -> 5 | Z67: Sunday | AA67: =COUNTIF(AA35:AA65,7) -> 5 | AB67: =+AB66+1 -> 2021-06-02 | AC67: =WEEKDAY(AB67,2) -> 3 | AD67: Sunday | AE67: =COUNTIF(AE35:AE65,7) -> 4 | AF67: Sunday | AG67: =COUNTIF(AG35:AG65,7) -> 5 | AH67: =+AH66+1 -> 2021-09-02 | AI67: =WEEKDAY(AH67,2) -> 4 | AJ67: Sunday | AK67: =COUNTIF(AK35:AK65,7) -> 4 | AL67: =+AL66+1 -> 2021-11-02 | AM67: =WEEKDAY(AL67,2) -> 2 | AN67: Sunday | AO67: =COUNTIF(AO35:AO65,7) -> 4
R68: =DATE(YEAR('Time Set'!B5)+2,1,1) -> 2021-01-01 | S68: =WEEKDAY(R68,2) -> 5 | T68: 2021-02-05 | U68: 5 | V68: =DATE(YEAR('Time Set'!$B$5)+2,3,1) -> 2021-03-01 | W68: =WEEKDAY(V68,2) -> 1 | X68: =+X67+1 -> 2021-04-03 | Y68: 6 | Z68: =DATE(YEAR('Time Set'!$B$5)+2,5,1) -> 2021-05-01 | AA68: =WEEKDAY(Z68,2) -> 6 | AB68: =+AB67+1 -> 2021-06-03 | AC68: 4 | AD68: =DATE(YEAR('Time Set'!$B$5)+2,7,1) -> 2021-07-01 | AE68: =WEEKDAY(AD68,2) -> 4 | AF68: =DATE(YEAR('Time Set'!$B$5)+2,8,1) -> 2021-08-01 | AG68: =WEEKDAY(AF68,2) -> 7 | AH68: =+AH67+1 -> 2021-09-03 | AI68: 5 | AJ68: =DATE(YEAR('Time Set'!$B$5)+2,10,1) -> 2021-10-01 | AK68: =WEEKDAY(AJ68,2) -> 5 | AL68: =+AL67+1 -> 2021-11-03 | AM68: 3 | AN68: =DATE(YEAR('Time Set'!$B$5)+2,12,1) -> 2021-12-01 | AO68: =WEEKDAY(AN68,2) -> 3
R69: =+R68+1 -> 2021-01-02 | S69: =WEEKDAY(R69,2) -> 6 | T69: 2021-02-06 | U69: 6 | V69: =+V68+1 -> 2021-03-02 | W69: =WEEKDAY(V69,2) -> 2 | X69: 2021-04-04 | Y69: 7 | Z69: =+Z68+1 -> 2021-05-02 | AA69: =WEEKDAY(Z69,2) -> 7 | AB69: 2021-06-04 | AC69: 5 | AD69: =+AD68+1 -> 2021-07-02 | AE69: =WEEKDAY(AD69,2) -> 5 | AF69: =+AF68+1 -> 2021-08-02 | AG69: =WEEKDAY(AF69,2) -> 1 | AH69: 2021-09-04 | AI69: 6 | AJ69: =+AJ68+1 -> 2021-10-02 | AK69: =WEEKDAY(AJ69,2) -> 6 | AL69: 2021-11-04 | AM69: 4 | AN69: =+AN68+1 -> 2021-12-02 | AO69: =WEEKDAY(AN69,2) -> 4
R70: =+R69+1 -> 2021-01-03 | S70: 7 | T70: 2021-02-07 | U70: 7 | V70: =+V69+1 -> 2021-03-03 | W70: 3 | X70: 2021-04-05 | Y70: 1 | Z70: =+Z69+1 -> 2021-05-03 | AA70: 1 | AB70: 2021-06-05 | AC70: 6 | AD70: =+AD69+1 -> 2021-07-03 | AE70: 6 | AF70: =+AF69+1 -> 2021-08-03 | AG70: 2 | AH70: 2021-09-05 | AI70: 7 | AJ70: =+AJ69+1 -> 2021-10-03 | AK70: 7 | AL70: 2021-11-05 | AM70: 5 | AN70: =+AN69+1 -> 2021-12-03 | AO70: 5
R71: 2021-01-04 | S71: 1 | T71: 2021-02-08 | U71: 1 | V71: 2021-03-04 | W71: 4 | X71: 2021-04-06 | Y71: 2 | Z71: 2021-05-04 | AA71: 2 | AB71: 2021-06-06 | AC71: 7 | AD71: 2021-07-04 | AE71: 7 | AF71: 2021-08-04 | AG71: 3 | AH71: 2021-09-06 | AI71: 1 | AJ71: 2021-10-04 | AK71: 1 | AL71: 2021-11-06 | AM71: 6 | AN71: 2021-12-04 | AO71: 6
R72: 2021-01-05 | S72: 2 | T72: 2021-02-09 | U72: 2 | V72: 2021-03-05 | W72: 5 | X72: 2021-04-07 | Y72: 3 | Z72: 2021-05-05 | AA72: 3 | AB72: 2021-06-07 | AC72: 1 | AD72: 2021-07-05 | AE72: 1 | AF72: 2021-08-05 | AG72: 4 | AH72: 2021-09-07 | AI72: 2 | AJ72: 2021-10-05 | AK72: 2 | AL72: 2021-11-07 | AM72: 7 | AN72: 2021-12-05 | AO72: 7
R73: 2021-01-06 | S73: 3 | T73: 2021-02-10 | U73: 3 | V73: 2021-03-06 | W73: 6 | X73: 2021-04-08 | Y73: 4 | Z73: 2021-05-06 | AA73: 4 | AB73: 2021-06-08 | AC73: 2 | AD73: 2021-07-06 | AE73: 2 | AF73: 2021-08-06 | AG73: 5 | AH73: 2021-09-08 | AI73: 3 | AJ73: 2021-10-06 | AK73: 3 | AL73: 2021-11-08 | AM73: 1 | AN73: 2021-12-06 | AO73: 1
R74: 2021-01-07 | S74: 4 | T74: 2021-02-11 | U74: 4 | V74: 2021-03-07 | W74: 7 | X74: 2021-04-09 | Y74: 5 | Z74: 2021-05-07 | AA74: 5 | AB74: 2021-06-09 | AC74: 3 | AD74: 2021-07-07 | AE74: 3 | AF74: 2021-08-07 | AG74: 6 | AH74: 2021-09-09 | AI74: 4 | AJ74: 2021-10-07 | AK74: 4 | AL74: 2021-11-09 | AM74: 2 | AN74: 2021-12-07 | AO74: 2
R75: 2021-01-08 | S75: 5 | T75: 2021-02-12 | U75: 5 | V75: 2021-03-08 | W75: 1 | X75: 2021-04-10 | Y75: 6 | Z75: 2021-05-08 | AA75: 6 | AB75: 2021-06-10 | AC75: 4 | AD75: 2021-07-08 | AE75: 4 | AF75: 2021-08-08 | AG75: 7 | AH75: 2021-09-10 | AI75: 5 | AJ75: 2021-10-08 | AK75: 5 | AL75: 2021-11-10 | AM75: 3 | AN75: 2021-12-08 | AO75: 3
R76: 2021-01-09 | S76: 6 | T76: 2021-02-13 | U76: 6 | V76: 2021-03-09 | W76: 2 | X76: 2021-04-11 | Y76: 7 | Z76: 2021-05-09 | AA76: 7 | AB76: 2021-06-11 | AC76: 5 | AD76: 2021-07-09 | AE76: 5 | AF76: 2021-08-09 | AG76: 1 | AH76: 2021-09-11 | AI76: 6 | AJ76: 2021-10-09 | AK76: 6 | AL76: 2021-11-11 | AM76: 4 | AN76: 2021-12-09 | AO76: 4
R77: 2021-01-10 | S77: 7 | T77: 2021-02-14 | U77: 7 | V77: 2021-03-10 | W77: 3 | X77: 2021-04-12 | Y77: 1 | Z77: 2021-05-10 | AA77: 1 | AB77: 2021-06-12 | AC77: 6 | AD77: 2021-07-10 | AE77: 6 | AF77: 2021-08-10 | AG77: 2 | AH77: 2021-09-12 | AI77: 7 | AJ77: 2021-10-10 | AK77: 7 | AL77: 2021-11-12 | AM77: 5 | AN77: 2021-12-10 | AO77: 5
R78: 2021-01-11 | S78: 1 | T78: 2021-02-15 | U78: 1 | V78: 2021-03-11 | W78: 4 | X78: 2021-04-13 | Y78: 2 | Z78: 2021-05-11 | AA78: 2 | AB78: 2021-06-13 | AC78: 7 | AD78: 2021-07-11 | AE78: 7 | AF78: 2021-08-11 | AG78: 3 | AH78: 2021-09-13 | AI78: 1 | AJ78: 2021-10-11 | AK78: 1 | AL78: 2021-11-13 | AM78: 6 | AN78: 2021-12-11 | AO78: 6
R79: 2021-01-12 | S79: 2 | T79: 2021-02-16 | U79: 2 | V79: 2021-03-12 | W79: 5 | X79: 2021-04-14 | Y79: 3 | Z79: 2021-05-12 | AA79: 3 | AB79: 2021-06-14 | AC79: 1 | AD79: 2021-07-12 | AE79: 1 | AF79: 2021-08-12 | AG79: 4 | AH79: 2021-09-14 | AI79: 2 | AJ79: 2021-10-12 | AK79: 2 | AL79: 2021-11-14 | AM79: 7 | AN79: 2021-12-12 | AO79: 7
R80: 2021-01-13 | S80: 3 | T80: 2021-02-17 | U80: 3 | V80: 2021-03-13 | W80: 6 | X80: 2021-04-15 | Y80: 4 | Z80: 2021-05-13 | AA80: 4 | AB80: 2021-06-15 | AC80: 2 | AD80: 2021-07-13 | AE80: 2 | AF80: 2021-08-13 | AG80: 5 | AH80: 2021-09-15 | AI80: 3 | AJ80: 2021-10-13 | AK80: 3 | AL80: 2021-11-15 | AM80: 1 | AN80: 2021-12-13 | AO80: 1
R81: 2021-01-14 | S81: 4 | T81: 2021-02-18 | U81: 4 | V81: 2021-03-14 | W81: 7 | X81: 2021-04-16 | Y81: 5 | Z81: 2021-05-14 | AA81: 5 | AB81: 2021-06-16 | AC81: 3 | AD81: 2021-07-14 | AE81: 3 | AF81: 2021-08-14 | AG81: 6 | AH81: 2021-09-16 | AI81: 4 | AJ81: 2021-10-14 | AK81: 4 | AL81: 2021-11-16 | AM81: 2 | AN81: 2021-12-14 | AO81: 2
R82: 2021-01-15 | S82: 5 | T82: 2021-02-19 | U82: 5 | V82: 2021-03-15 | W82: 1 | X82: 2021-04-17 | Y82: 6 | Z82: 2021-05-15 | AA82: 6 | AB82: 2021-06-17 | AC82: 4 | AD82: 2021-07-15 | AE82: 4 | AF82: 2021-08-15 | AG82: 7 | AH82: 2021-09-17 | AI82: 5 | AJ82: 2021-10-15 | AK82: 5 | AL82: 2021-11-17 | AM82: 3 | AN82: 2021-12-15 | AO82: 3
R83: 2021-01-16 | S83: 6 | T83: 2021-02-20 | U83: 6 | V83: 2021-03-16 | W83: 2 | X83: 2021-04-18 | Y83: 7 | Z83: 2021-05-16 | AA83: 7 | AB83: 2021-06-18 | AC83: 5 | AD83: 2021-07-16 | AE83: 5 | AF83: 2021-08-16 | AG83: 1 | AH83: 2021-09-18 | AI83: 6 | AJ83: 2021-10-16 | AK83: 6 | AL83: 2021-11-18 | AM83: 4 | AN83: 2021-12-16 | AO83: 4
R84: 2021-01-17 | S84: 7 | T84: 2021-02-21 | U84: 7 | V84: 2021-03-17 | W84: 3 | X84: 2021-04-19 | Y84: 1 | Z84: 2021-05-17 | AA84: 1 | AB84: 2021-06-19 | AC84: 6 | AD84: 2021-07-17 | AE84: 6 | AF84: 2021-08-17 | AG84: 2 | AH84: 2021-09-19 | AI84: 7 | AJ84: 2021-10-17 | AK84: 7 | AL84: 2021-11-19 | AM84: 5 | AN84: 2021-12-17 | AO84: 5
R85: 2021-01-18 | S85: 1 | T85: 2021-02-22 | U85: 1 | V85: 2021-03-18 | W85: 4 | X85: 2021-04-20 | Y85: 2 | Z85: 2021-05-18 | AA85: 2 | AB85: 2021-06-20 | AC85: 7 | AD85: 2021-07-18 | AE85: 7 | AF85: 2021-08-18 | AG85: 3 | AH85: 2021-09-20 | AI85: 1 | AJ85: 2021-10-18 | AK85: 1 | AL85: 2021-11-20 | AM85: 6 | AN85: 2021-12-18 | AO85: 6
R86: 2021-01-19 | S86: 2 | T86: 2021-02-23 | U86: 2 | V86: 2021-03-19 | W86: 5 | X86: 2021-04-21 | Y86: 3 | Z86: 2021-05-19 | AA86: 3 | AB86: 2021-06-21 | AC86: 1 | AD86: 2021-07-19 | AE86: 1 | AF86: 2021-08-19 | AG86: 4 | AH86: 2021-09-21 | AI86: 2 | AJ86: 2021-10-19 | AK86: 2 | AL86: 2021-11-21 | AM86: 7 | AN86: 2021-12-19 | AO86: 7
R87: 2021-01-20 | S87: 3 | T87: 2021-02-24 | U87: 3 | V87: 2021-03-20 | W87: 6 | X87: 2021-04-22 | Y87: 4 | Z87: 2021-05-20 | AA87: 4 | AB87: 2021-06-22 | AC87: 2 | AD87: 2021-07-20 | AE87: 2 | AF87: 2021-08-20 | AG87: 5 | AH87: 2021-09-22 | AI87: 3 | AJ87: 2021-10-20 | AK87: 3 | AL87: 2021-11-22 | AM87: 1 | AN87: 2021-12-20 | AO87: 1
R88: 2021-01-21 | S88: 4 | T88: 2021-02-25 | U88: 4 | V88: 2021-03-21 | W88: 7 | X88: 2021-04-23 | Y88: 5 | Z88: 2021-05-21 | AA88: 5 | AB88: 2021-06-23 | AC88: 3 | AD88: 2021-07-21 | AE88: 3 | AF88: 2021-08-21 | AG88: 6 | AH88: 2021-09-23 | AI88: 4 | AJ88: 2021-10-21 | AK88: 4 | AL88: 2021-11-23 | AM88: 2 | AN88: 2021-12-21 | AO88: 2
R89: 2021-01-22 | S89: 5 | T89: =+T88+1 -> 2021-02-26 | U89: 5 | V89: 2021-03-22 | W89: 1 | X89: 2021-04-24 | Y89: 6 | Z89: 2021-05-22 | AA89: 6 | AB89: 2021-06-24 | AC89: 4 | AD89: 2021-07-22 | AE89: 4 | AF89: 2021-08-22 | AG89: 7 | AH89: 2021-09-24 | AI89: 5 | AJ89: 2021-10-22 | AK89: 5 | AL89: 2021-11-24 | AM89: 3 | AN89: 2021-12-22 | AO89: 3
R90: 2021-01-23 | S90: 6 | T90: 2021-02-27 | U90: 6 | V90: 2021-03-23 | W90: 2 | X90: 2021-04-25 | Y90: 7 | Z90: 2021-05-23 | AA90: 7 | AB90: 2021-06-25 | AC90: 5 | AD90: 2021-07-23 | AE90: 5 | AF90: 2021-08-23 | AG90: 1 | AH90: 2021-09-25 | AI90: 6 | AJ90: 2021-10-23 | AK90: 6 | AL90: 2021-11-25 | AM90: 4 | AN90: 2021-12-23 | AO90: 4
R91: 2021-01-24 | S91: 7 | T91: 2021-02-28 | U91: 7 | V91: 2021-03-24 | W91: 3 | X91: 2021-04-26 | Y91: 1 | Z91: 2021-05-24 | AA91: 1 | AB91: 2021-06-26 | AC91: 6 | AD91: 2021-07-24 | AE91: 6 | AF91: 2021-08-24 | AG91: 2 | AH91: 2021-09-26 | AI91: 7 | AJ91: 2021-10-24 | AK91: 7 | AL91: 2021-11-26 | AM91: 5 | AN91: 2021-12-24 | AO91: 5
R92: 2021-01-25 | S92: 1 | V92: 2021-03-25 | W92: 4 | X92: 2021-04-27 | Y92: 2 | Z92: 2021-05-25 | AA92: 2 | AB92: 2021-06-27 | AC92: 7 | AD92: 2021-07-25 | AE92: 7 | AF92: 2021-08-25 | AG92: 3 | AH92: 2021-09-27 | AI92: 1 | AJ92: 2021-10-25 | AK92: 1 | AL92: 2021-11-27 | AM92: 6 | AN92: 2021-12-25 | AO92: 6
R93: 2021-01-26 | S93: 2 | T93: Saturday | U93: =COUNTIF(U64:U91,6) -> 4 | V93: 2021-03-26 | W93: 5 | X93: 2021-04-28 | Y93: 3 | Z93: 2021-05-26 | AA93: 3 | AB93: 2021-06-28 | AC93: 1 | AD93: 2021-07-26 | AE93: 1 | AF93: 2021-08-26 | AG93: 4 | AH93: 2021-09-28 | AI93: 2 | AJ93: 2021-10-26 | AK93: 2 | AL93: 2021-11-28 | AM93: 7 | AN93: 2021-12-26 | AO93: 7
R94: 2021-01-27 | S94: 3 | T94: Sunday | U94: =COUNTIF(U64:U91,7) -> 4 | V94: 2021-03-27 | W94: 6 | X94: 2021-04-29 | Y94: 4 | Z94: 2021-05-27 | AA94: 4 | AB94: 2021-06-29 | AC94: 2 | AD94: 2021-07-27 | AE94: 2 | AF94: 2021-08-27 | AG94: 5 | AH94: 2021-09-29 | AI94: 3 | AJ94: 2021-10-27 | AK94: 3 | AL94: 2021-11-29 | AM94: 1 | AN94: 2021-12-27 | AO94: 1
R95: 2021-01-28 | S95: 4 | V95: 2021-03-28 | W95: 7 | X95: 2021-04-30 | Y95: 5 | Z95: 2021-05-28 | AA95: 5 | AB95: 2021-06-30 | AC95: 3 | AD95: 2021-07-28 | AE95: 3 | AF95: 2021-08-28 | AG95: 6 | AH95: 2021-09-30 | AI95: 4 | AJ95: 2021-10-28 | AK95: 4 | AL95: 2021-11-30 | AM95: 2 | AN95: 2021-12-28 | AO95: 2
R96: 2021-01-29 | S96: 5 | V96: 2021-03-29 | W96: 1 | X96: Saturday | Y96: =COUNTIF(Y66:Y95,6) -> 4 | Z96: 2021-05-29 | AA96: 6 | AB96: Saturday | AC96: =COUNTIF(AC66:AC95,6) -> 4 | AD96: 2021-07-29 | AE96: 4 | AF96: 2021-08-29 | AG96: 7 | AH96: Saturday | AI96: =COUNTIF(AI66:AI95,6) -> 4 | AJ96: 2021-10-29 | AK96: 5 | AL96: Saturday | AM96: =COUNTIF(AM66:AM95,6) -> 4 | AN96: 2021-12-29 | AO96: 3
R97: 2021-01-30 | S97: 6 | V97: 2021-03-30 | W97: 2 | X97: Sunday | Y97: =COUNTIF(Y66:Y95,7) -> 4 | Z97: 2021-05-30 | AA97: 7 | AB97: Sunday | AC97: =COUNTIF(AC66:AC95,7) -> 4 | AD97: 2021-07-30 | AE97: 5 | AF97: 2021-08-30 | AG97: 1 | AH97: Sunday | AI97: =COUNTIF(AI66:AI95,7) -> 4 | AJ97: 2021-10-30 | AK97: 6 | AL97: Sunday | AM97: =COUNTIF(AM66:AM95,7) -> 4 | AN97: 2021-12-30 | AO97: 4
R98: 2021-01-31 | S98: 7 | V98: 2021-03-31 | W98: 3 | Z98: 2021-05-31 | AA98: 1 | AD98: 2021-07-31 | AE98: 6 | AF98: 2021-08-31 | AG98: 2 | AJ98: 2021-10-31 | AK98: 7 | AN98: 2021-12-31 | AO98: 5
R99: Saturday | S99: =COUNTIF(S68:S98,6) -> 5 | V99: Saturday | W99: =COUNTIF(W68:W98,6) -> 4 | Z99: Saturday | AA99: =COUNTIF(AA68:AA98,6) -> 5 | AD99: Saturday | AE99: =COUNTIF(AE68:AE98,6) -> 5 | AF99: Saturday | AG99: =COUNTIF(AG68:AG98,6) -> 4 | AJ99: Saturday | AK99: =COUNTIF(AK68:AK98,6) -> 5 | AN99: Saturday | AO99: =COUNTIF(AO68:AO98,6) -> 4
R100: Sunday | S100: =COUNTIF(S68:S98,7) -> 5 | V100: Sunday | W100: =COUNTIF(W68:W98,7) -> 4 | Z100: Sunday | AA100: =COUNTIF(AA68:AA98,7) -> 5 | AD100: Sunday | AE100: =COUNTIF(AE68:AE98,7) -> 4 | AF100: Sunday | AG100: =COUNTIF(AG68:AG98,7) -> 5 | AJ100: Sunday | AK100: =COUNTIF(AK68:AK98,7) -> 5 | AN100: Sunday | AO100: =COUNTIF(AO68:AO98,7) -> 4

Sheet Bridge
B1: 2019-04-11 | R1: January | T1: February | V1: March | X1: April | Z1: May | AB1: June | AD1: July | AF1: August | AH1: September | AJ1: October | AL1: November | AN1: December
D2: =DATE(YEAR(B1),1,1) -> 2019-01-01 | K2: Bridge & Traffic (B,T) | R2: =DATE(YEAR('Time Set'!$B$5),1,1) -> 2019-01-01 | S2: =WEEKDAY(R2,2) -> 2 | T2: =DATE(YEAR('Time Set'!$B$5),2,1) -> 2019-02-01 | U2: =WEEKDAY(T2,2) -> 5 | V2: =DATE(YEAR('Time Set'!$B$5),3,1) -> 2019-03-01 | W2: =WEEKDAY(V2,2) -> 5 | X2: =DATE(YEAR('Time Set'!$B$5),4,1) -> 2019-04-01 | Y2: =WEEKDAY(X2,2) -> 1 | Z2: =DATE(YEAR('Time Set'!$B$5),5,1) -> 2019-05-01 | AA2: =WEEKDAY(Z2,2) -> 3 | AB2: =DATE(YEAR('Time Set'!$B$5),6,1) -> 2019-06-01 | AC2: =WEEKDAY(AB2,2) -> 6 | AD2: =DATE(YEAR('Time Set'!$B$5),7,1) -> 2019-07-01 | AE2: =WEEKDAY(AD2,2) -> 1 | AF2: =DATE(YEAR('Time Set'!$B$5),8,1) -> 2019-08-01 | AG2: =WEEKDAY(AF2,2) -> 4 | AH2: =DATE(YEAR('Time Set'!$B$5),9,1) -> 2019-09-01 | AI2: =WEEKDAY(AH2,2) -> 7 | AJ2: =DATE(YEAR('Time Set'!$B$5),10,1) -> 2019-10-01 | AK2: =WEEKDAY(AJ2,2) -> 2 | AL2: =DATE(YEAR('Time Set'!$B$5),11,1) -> 2019-11-01 | AM2: =WEEKDAY(AL2,2) -> 5 | AN2: =DATE(YEAR('Time Set'!$B$5),12,1) -> 2019-12-01 | AO2: =WEEKDAY(AN2,2) -> 7
B3: 0 | C3: =DATE(YEAR(B1),1,1) -> 2019-01-01 | E3: =DATE(YEAR(D2),2,1) -> 2019-02-01 | R3: =+R2+1 -> 2019-01-02 | S3: =WEEKDAY(R3,2) -> 3 | T3: =+T2+1 -> 2019-02-02 | U3: =WEEKDAY(T3,2) -> 6 | V3: =+V2+1 -> 2019-03-02 | W3: =WEEKDAY(V3,2) -> 6 | X3: =+X2+1 -> 2019-04-02 | Y3: =WEEKDAY(X3,2) -> 2 | Z3: =+Z2+1 -> 2019-05-02 | AA3: =WEEKDAY(Z3,2) -> 4 | AB3: =+AB2+1 -> 2019-06-02 | AC3: =WEEKDAY(AB3,2) -> 7 | AD3: =+AD2+1 -> 2019-07-02 | AE3: =WEEKDAY(AD3,2) -> 2 | AF3: =+AF2+1 -> 2019-08-02 | AG3: =WEEKDAY(AF3,2) -> 5 | AH3: =+AH2+1 -> 2019-09-02 | AI3: =WEEKDAY(AH3,2) -> 1 | AJ3: =+AJ2+1 -> 2019-10-02 | AK3: =WEEKDAY(AJ3,2) -> 3 | AL3: =+AL2+1 -> 2019-11-02 | AM3: =WEEKDAY(AL3,2) -> 6 | AN3: =+AN2+1 -> 2019-12-02 | AO3: =WEEKDAY(AN3,2) -> 1
B4: 0 | C4: =DATE(YEAR(C3),MONTH(C3)+1,1) -> 2019-02-01 | F4: =DATE(YEAR(D2),3,1) -> 2019-03-01 | J4: Distribution of Working Days by | R4: =+R3+1 -> 2019-01-03 | S4: 4 | T4: =+T3+1 -> 2019-02-03 | U4: 7 | V4: =+V3+1 -> 2019-03-03 | W4: 7 | X4: =+X3+1 -> 2019-04-03 | Y4: 3 | Z4: =+Z3+1 -> 2019-05-03 | AA4: 5 | AB4: =+AB3+1 -> 2019-06-03 | AC4: 1 | AD4: =+AD3+1 -> 2019-07-03 | AE4: 3 | AF4: =+AF3+1 -> 2019-08-03 | AG4: 6 | AH4: =+AH3+1 -> 2019-09-03 | AI4: 2 | AJ4: =+AJ3+1 -> 2019-10-03 | AK4: 4 | AL4: =+AL3+1 -> 2019-11-03 | AM4: 7 | AN4: =+AN3+1 -> 2019-12-03 | AO4: 2
B5: 0 | C5: =DATE(YEAR(C4),MONTH(C4)+1,1) -> 2019-03-01 | G5: =DATE(YEAR(D2),4,1) -> 2019-04-01 | J5: Months, Cumulative Total per Month | R5: 2019-01-04 | S5: 5 | T5: 2019-02-04 | U5: 1 | V5: 2019-03-04 | W5: 1 | X5: 2019-04-04 | Y5: 4 | Z5: 2019-05-04 | AA5: 6 | AB5: 2019-06-04 | AC5: 2 | AD5: 2019-07-04 | AE5: 4 | AF5: 2019-08-04 | AG5: 7 | AH5: 2019-09-04 | AI5: 3 | AJ5: 2019-10-04 | AK5: 5 | AL5: 2019-11-04 | AM5: 1 | AN5: 2019-12-04 | AO5: 3
A6: 14 | B6: =+IF('Time Set'!$B$6=5,A6,IF('Time Set'!$B$6=6,A6+Y32, IF('Time Set'!$B$6=7, A6+Y32+Y33, 0))) -> 14 | C6: 2019-04-01 | D6: =+D5+$B6 -> 14 | E6: =+E5+$B6 -> 14 | F6: =+F5+$B6 -> 14 | G6: =+B6 -> 14 | H6: =DATE(YEAR(D2),5,1) -> 2019-05-01 | R6: 2019-01-05 | S6: 6 | T6: 2019-02-05 | U6: 2 | V6: 2019-03-05 | W6: 2 | X6: 2019-04-05 | Y6: 5 | Z6: 2019-05-05 | AA6: 7 | AB6: 2019-06-05 | AC6: 3 | AD6: 2019-07-05 | AE6: 5 | AF6: 2019-08-05 | AG6: 1 | AH6: 2019-09-05 | AI6: 4 | AJ6: 2019-10-05 | AK6: 6 | AL6: 2019-11-05 | AM6: 2 | AN6: 2019-12-05 | AO6: 4
A7: 17 | B7: =+IF('Time Set'!$B$6=5,A7,IF('Time Set'!$B$6=6,A7+AA33, IF('Time Set'!$B$6=7, A7+AA33+AA34, 0))) -> 17 | C7: 2019-05-01 | D7: =+D6+$B7 -> 31 | E7: =+E6+$B7 -> 31 | F7: 31 | G7: 31 | H7: =+B7 -> 17 | I7: =DATE(YEAR(D2),6,1) -> 2019-06-01 | R7: 2019-01-06 | S7: 7 | T7: 2019-02-06 | U7: 3 | V7: 2019-03-06 | W7: 3 | X7: 2019-04-06 | Y7: 6 | Z7: 2019-05-06 | AA7: 1 | AB7: 2019-06-06 | AC7: 4 | AD7: 2019-07-06 | AE7: 6 | AF7: 2019-08-06 | AG7: 2 | AH7: 2019-09-06 | AI7: 5 | AJ7: 2019-10-06 | AK7: 7 | AL7: 2019-11-06 | AM7: 3 | AN7: 2019-12-06 | AO7: 5
A8: 18 | B8: =+IF('Time Set'!$B$6=5,A8,IF('Time Set'!$B$6=6,A8+AC32, IF('Time Set'!$B$6=7, A8+AC32+AC33, 0))) -> 18 | C8: 2019-06-01 | D8: 49 | E8: 49 | F8: 49 | G8: 49 | H8: =+H7+$B8 -> 35 | I8: =+B8 -> 18 | J8: =DATE(YEAR(D2),7,1) -> 2019-07-01 | R8: 2019-01-07 | S8: 1 | T8: 2019-02-07 | U8: 4 | V8: 2019-03-07 | W8: 4 | X8: 2019-04-07 | Y8: 7 | Z8: 2019-05-07 | AA8: 2 | AB8: 2019-06-07 | AC8: 5 | AD8: 2019-07-07 | AE8: 7 | AF8: 2019-08-07 | AG8: 3 | AH8: 2019-09-07 | AI8: 6 | AJ8: 2019-10-07 | AK8: 1 | AL8: 2019-11-07 | AM8: 4 | AN8: 2019-12-07 | AO8: 6
A9: 19 | B9: =+IF('Time Set'!$B$6=5,A9,IF('Time Set'!$B$6=6,A9+AE33, IF('Time Set'!$B$6=7, A9+AE33+AE34, 0))) -> 19 | C9: 2019-07-01 | D9: 68 | E9: =+E8+$B9 -> 68 | F9: 68 | G9: 68 | H9: 54 | I9: 37 | J9: =+B9 -> 19 | K9: =DATE(YEAR(D2),8,1) -> 2019-08-01 | R9: 2019-01-08 | S9: 2 | T9: 2019-02-08 | U9: 5 | V9: 2019-03-08 | W9: 5 | X9: 2019-04-08 | Y9: 1 | Z9: 2019-05-08 | AA9: 3 | AB9: 2019-06-08 | AC9: 6 | AD9: 2019-07-08 | AE9: 1 | AF9: 2019-08-08 | AG9: 4 | AH9: 2019-09-08 | AI9: 7 | AJ9: 2019-10-08 | AK9: 2 | AL9: 2019-11-08 | AM9: 5 | AN9: 2019-12-08 | AO9: 7
A10: 19 | B10: =+IF('Time Set'!$B$6=5,A10,IF('Time Set'!$B$6=6,A10+AG33, IF('Time Set'!$B$6=7, A10+AG33+AG34, 0))) -> 19 | C10: 2019-08-01 | D10: 87 | E10: 87 | F10: 87 | G10: 87 | H10: 73 | I10: 56 | J10: 38 | K10: =+B10 -> 19 | L10: =DATE(YEAR(D2),9,1) -> 2019-09-01 | R10: 2019-01-09 | S10: 3 | T10: 2019-02-09 | U10: 6 | V10: 2019-03-09 | W10: 6 | X10: 2019-04-09 | Y10: 2 | Z10: 2019-05-09 | AA10: 4 | AB10: 2019-06-09 | AC10: 7 | AD10: 2019-07-09 | AE10: 2 | AF10: 2019-08-09 | AG10: 5 | AH10: 2019-09-09 | AI10: 1 | AJ10: 2019-10-09 | AK10: 3 | AL10: 2019-11-09 | AM10: 6 | AN10: 2019-12-09 | AO10: 1
A11: 16 | B11: =+IF('Time Set'!$B$6=5,A11,IF('Time Set'!$B$6=6,A11+AI32, IF('Time Set'!$B$6=7, A11+AI32+AI33, 0))) -> 16 | C11: 2019-09-01 | D11: 103 | E11: 103 | F11: 103 | G11: 103 | H11: 89 | I11: 72 | J11: 54 | K11: 35 | L11: =+B11 -> 16 | M11: =DATE(YEAR(D2),10,1) -> 2019-10-01 | R11: 2019-01-10 | S11: 4 | T11: 2019-02-10 | U11: 7 | V11: 2019-03-10 | W11: 7 | X11: 2019-04-10 | Y11: 3 | Z11: 2019-05-10 | AA11: 5 | AB11: 2019-06-10 | AC11: 1 | AD11: 2019-07-10 | AE11: 3 | AF11: 2019-08-10 | AG11: 6 | AH11: 2019-09-10 | AI11: 2 | AJ11: 2019-10-10 | AK11: 4 | AL11: 2019-11-10 | AM11: 7 | AN11: 2019-12-10 | AO11: 2
A12: 17 | B12: =+IF('Time Set'!$B$6=5,A12,IF('Time Set'!$B$6=6,A12+AK33, IF('Time Set'!$B$6=7, A12+AK33+AK34,0))) -> 17 | C12: 2019-10-01 | D12: 120 | E12: 120 | F12: 120 | G12: 120 | H12: 106 | I12: 89 | J12: 71 | K12: 52 | L12: 33 | M12: =+B12 -> 17 | N12: =DATE(YEAR(D2),11,1) -> 2019-11-01 | R12: 2019-01-11 | S12: 5 | T12: 2019-02-11 | U12: 1 | V12: 2019-03-11 | W12: 1 | X12: 2019-04-11 | Y12: 4 | Z12: 2019-05-11 | AA12: 6 | AB12: 2019-06-11 | AC12: 2 | AD12: 2019-07-11 | AE12: 4 | AF12: 2019-08-11 | AG12: 7 | AH12: 2019-09-11 | AI12: 3 | AJ12: 2019-10-11 | AK12: 5 | AL12: 2019-11-11 | AM12: 1 | AN12: 2019-12-11 | AO12: 3
A13: 15 | B13: =+IF('Time Set'!$B$6=5,A13,IF('Time Set'!$B$6=6,A13+AM32, IF('Time Set'!$B$6=7, A13+AM32+AM33, 0))) -> 15 | C13: 2019-11-01 | D13: 135 | E13: 135 | F13: 135 | G13: 135 | H13: 121 | I13: 104 | J13: 86 | K13: 67 | L13: 48 | M13: 32 | N13: =+B13 -> 15 | O13: =DATE(YEAR(D2),12,1) -> 2019-12-01 | R13: 2019-01-12 | S13: 6 | T13: 2019-02-12 | U13: 2 | V13: 2019-03-12 | W13: 2 | X13: 2019-04-12 | Y13: 5 | Z13: 2019-05-12 | AA13: 7 | AB13: 2019-06-12 | AC13: 3 | AD13: 2019-07-12 | AE13: 5 | AF13: 2019-08-12 | AG13: 1 | AH13: 2019-09-12 | AI13: 4 | AJ13: 2019-10-12 | AK13: 6 | AL13: 2019-11-12 | AM13: 2 | AN13: 2019-12-12 | AO13: 4
B14: 0 | C14: 2019-12-01 | D14: 135 | E14: =+E13+$B14 -> 135 | F14: 135 | G14: 135 | H14: 121 | I14: 104 | J14: 86 | K14: 67 | L14: 48 | M14: 32 | N14: =+N13+B14 -> 15 | O14: 0 | R14: 2019-01-13 | S14: 7 | T14: 2019-02-13 | U14: 3 | V14: 2019-03-13 | W14: 3 | X14: 2019-04-13 | Y14: 6 | Z14: 2019-05-13 | AA14: 1 | AB14: 2019-06-13 | AC14: 4 | AD14: 2019-07-13 | AE14: 6 | AF14: 2019-08-13 | AG14: 2 | AH14: 2019-09-13 | AI14: 5 | AJ14: 2019-10-13 | AK14: 7 | AL14: 2019-11-13 | AM14: 3 | AN14: 2019-12-13 | AO14: 5
B15: 0 | C15: 2020-01-01 | D15: 135 | E15: 135 | F15: 135 | G15: 135 | H15: 121 | I15: 104 | J15: 86 | K15: 67 | L15: 48 | M15: 32 | N15: =+N14+B15 -> 15 | O15: 0 | R15: 2019-01-14 | S15: 1 | T15: 2019-02-14 | U15: 4 | V15: 2019-03-14 | W15: 4 | X15: 2019-04-14 | Y15: 7 | Z15: 2019-05-14 | AA15: 2 | AB15: 2019-06-14 | AC15: 5 | AD15: 2019-07-14 | AE15: 7 | AF15: 2019-08-14 | AG15: 3 | AH15: 2019-09-14 | AI15: 6 | AJ15: 2019-10-14 | AK15: 1 | AL15: 2019-11-14 | AM15: 4 | AN15: 2019-12-14 | AO15: 6
B16: =+B4 -> 0 | C16: 2020-02-01 | D16: 135 | E16: 135 | F16: 135 | G16: 135 | H16: 121 | I16: 104 | J16: 86 | K16: 67 | L16: 48 | M16: 32 | N16: =+N15+B16 -> 15 | O16: 0 | R16: 2019-01-15 | S16: 2 | T16: 2019-02-15 | U16: 5 | V16: 2019-03-15 | W16: 5 | X16: 2019-04-15 | Y16: 1 | Z16: 2019-05-15 | AA16: 3 | AB16: 2019-06-15 | AC16: 6 | AD16: 2019-07-15 | AE16: 1 | AF16: 2019-08-15 | AG16: 4 | AH16: 2019-09-15 | AI16: 7 | AJ16: 2019-10-15 | AK16: 2 | AL16: 2019-11-15 | AM16: 5 | AN16: 2019-12-15 | AO16: 7
B17: =+B5 -> 0 | C17: 2020-03-01 | D17: 135 | E17: 135 | F17: 135 | G17: 135 | H17: 121 | I17: 104 | J17: 86 | K17: 67 | L17: 48 | M17: 32 | N17: =+N16+B17 -> 15 | O17: 0 | R17: 2019-01-16 | S17: 3 | T17: 2019-02-16 | U17: 6 | V17: 2019-03-16 | W17: 6 | X17: 2019-04-16 | Y17: 2 | Z17: 2019-05-16 | AA17: 4 | AB17: 2019-06-16 | AC17: 7 | AD17: 2019-07-16 | AE17: 2 | AF17: 2019-08-16 | AG17: 5 | AH17: 2019-09-16 | AI17: 1 | AJ17: 2019-10-16 | AK17: 3 | AL17: 2019-11-16 | AM17: 6 | AN17: 2019-12-16 | AO17: 1
A18: 14 | B18: =+IF('Time Set'!$B$6=5,A18,IF('Time Set'!$B$6=6,A18+Y64, IF('Time Set'!$B$6=7, A18+Y64+Y65, 0))) -> 14 | C18: 2020-04-01 | D18: 149 | E18: 149 | F18: 149 | G18: 149 | H18: 135 | I18: 118 | J18: 100 | K18: 81 | L18: 62 | M18: 46 | N18: =+N17+B18 -> 29 | O18: =+B18 -> 14 | R18: 2019-01-17 | S18: 4 | T18: 2019-02-17 | U18: 7 | V18: 2019-03-17 | W18: 7 | X18: 2019-04-17 | Y18: 3 | Z18: 2019-05-17 | AA18: 5 | AB18: 2019-06-17 | AC18: 1 | AD18: 2019-07-17 | AE18: 3 | AF18: 2019-08-17 | AG18: 6 | AH18: 2019-09-17 | AI18: 2 | AJ18: 2019-10-17 | AK18: 4 | AL18: 2019-11-17 | AM18: 7 | AN18: 2019-12-17 | AO18: 2
A19: 17 | B19: =+IF('Time Set'!$B$6=5,A19,IF('Time Set'!$B$6=6,A19+AA66, IF('Time Set'!$B$6=7, A19+AA66+AA67, 0))) -> 17 | C19: 2020-05-01 | D19: 166 | E19: =+E18+$B19 -> 166 | F19: 166 | G19: 166 | H19: 152 | I19: 135 | J19: 117 | K19: 98 | L19: 79 | M19: 63 | N19: 46 | O19: 31 | R19: 2019-01-18 | S19: 5 | T19: 2019-02-18 | U19: 1 | V19: 2019-03-18 | W19: 1 | X19: 2019-04-18 | Y19: 4 | Z19: 2019-05-18 | AA19: 6 | AB19: 2019-06-18 | AC19: 2 | AD19: 2019-07-18 | AE19: 4 | AF19: 2019-08-18 | AG19: 7 | AH19: 2019-09-18 | AI19: 3 | AJ19: 2019-10-18 | AK19: 5 | AL19: 2019-11-18 | AM19: 1 | AN19: 2019-12-18 | AO19: 3
A20: 18 | B20: =+IF('Time Set'!$B$6=5,A20,IF('Time Set'!$B$6=6,A20+AC64, IF('Time Set'!$B$6=7, A20+AC64+AC65, 0))) -> 18 | C20: 2020-06-01 | D20: 184 | E20: 184 | F20: 184 | G20: 184 | H20: 170 | I20: 153 | J20: 135 | K20: 116 | L20: 97 | M20: 81 | N20: 64 | O20: 49 | R20: 2019-01-19 | S20: 6 | T20: 2019-02-19 | U20: 2 | V20: 2019-03-19 | W20: 2 | X20: 2019-04-19 | Y20: 5 | Z20: 2019-05-19 | AA20: 7 | AB20: 2019-06-19 | AC20: 3 | AD20: 2019-07-19 | AE20: 5 | AF20: 2019-08-19 | AG20: 1 | AH20: 2019-09-19 | AI20: 4 | AJ20: 2019-10-19 | AK20: 6 | AL20: 2019-11-19 | AM20: 2 | AN20: 2019-12-19 | AO20: 4
A21: 19 | B21: =+IF('Time Set'!$B$6=5,A21,IF('Time Set'!$B$6=6,A21+AE66, IF('Time Set'!$B$6=7, A21+AE66+AE67, 0))) -> 19 | C21: 2020-07-01 | D21: 203 | E21: 203 | F21: 203 | G21: 203 | H21: 189 | I21: 172 | J21: 154 | K21: 135 | L21: 116 | M21: 100 | N21: 83 | O21: 68 | R21: 2019-01-20 | S21: 7 | T21: 2019-02-20 | U21: 3 | V21: 2019-03-20 | W21: 3 | X21: 2019-04-20 | Y21: 6 | Z21: 2019-05-20 | AA21: 1 | AB21: 2019-06-20 | AC21: 4 | AD21: 2019-07-20 | AE21: 6 | AF21: 2019-08-20 | AG21: 2 | AH21: 2019-09-20 | AI21: 5 | AJ21: 2019-10-20 | AK21: 7 | AL21: 2019-11-20 | AM21: 3 | AN21: 2019-12-20 | AO21: 5
A22: 19 | B22: =+IF('Time Set'!$B$6=5,A22,IF('Time Set'!$B$6=6,A22+AG66, IF('Time Set'!$B$6=7, A22+AG66+AG67, 0))) -> 19 | C22: 2020-08-01 | D22: 222 | E22: 222 | F22: 222 | G22: 222 | H22: 208 | I22: 191 | J22: 173 | K22: 154 | L22: 135 | M22: 119 | N22: 102 | O22: 87 | R22: 2019-01-21 | S22: 1 | T22: 2019-02-21 | U22: 4 | V22: 2019-03-21 | W22: 4 | X22: 2019-04-21 | Y22: 7 | Z22: 2019-05-21 | AA22: 2 | AB22: 2019-06-21 | AC22: 5 | AD22: 2019-07-21 | AE22: 7 | AF22: 2019-08-21 | AG22: 3 | AH22: 2019-09-21 | AI22: 6 | AJ22: 2019-10-21 | AK22: 1 | AL22: 2019-11-21 | AM22: 4 | AN22: 2019-12-21 | AO22: 6
A23: 16 | B23: =+IF('Time Set'!$B$6=5,A23,IF('Time Set'!$B$6=6,A23+AI64, IF('Time Set'!$B$6=7, A23+AI64+AI65, 0))) -> 16 | C23: 2020-09-01 | D23: 238 | E23: 238 | F23: 238 | G23: 238 | H23: 224 | I23: 207 | J23: 189 | K23: 170 | L23: 151 | M23: 135 | N23: 118 | O23: 103 | R23: 2019-01-22 | S23: 2 | T23: 2019-02-22 | U23: 5 | V23: 2019-03-22 | W23: 5 | X23: 2019-04-22 | Y23: 1 | Z23: 2019-05-22 | AA23: 3 | AB23: 2019-06-22 | AC23: 6 | AD23: 2019-07-22 | AE23: 1 | AF23: 2019-08-22 | AG23: 4 | AH23: 2019-09-22 | AI23: 7 | AJ23: 2019-10-22 | AK23: 2 | AL23: 2019-11-22 | AM23: 5 | AN23: 2019-12-22 | AO23: 7
A24: 17 | B24: =+IF('Time Set'!$B$6=5,A24,IF('Time Set'!$B$6=6,A24+AK66, IF('Time Set'!$B$6=7, A24+AK66+AK67,0))) -> 17 | C24: 2020-10-01 | D24: 255 | E24: 255 | F24: 255 | G24: 255 | H24: 241 | I24: 224 | J24: 206 | K24: 187 | L24: 168 | M24: 152 | N24: 135 | O24: 120 | R24: =+R23+1 -> 2019-01-23 | S24: 3 | T24: 2019-02-23 | U24: 6 | V24: 2019-03-23 | W24: 6 | X24: 2019-04-23 | Y24: 2 | Z24: 2019-05-23 | AA24: 4 | AB24: 2019-06-23 | AC24: 7 | AD24: 2019-07-23 | AE24: 2 | AF24: 2019-08-23 | AG24: 5 | AH24: 2019-09-23 | AI24: 1 | AJ24: 2019-10-23 | AK24: 3 | AL24: 2019-11-23 | AM24: 6 | AN24: 2019-12-23 | AO24: 1
A25: 15 | B25: =+IF('Time Set'!$B$6=5,A25,IF('Time Set'!$B$6=6,A25+AM64, IF('Time Set'!$B$6=7, A25+AM64+AM65, 0))) -> 15 | C25: 2020-11-01 | D25: 270 | E25: 270 | F25: 270 | G25: 270 | H25: 256 | I25: 239 | J25: 221 | K25: 202 | L25: 183 | M25: 167 | N25: 150 | O25: 135 | R25: 2019-01-24 | S25: 4 | T25: 2019-02-24 | U25: 7 | V25: 2019-03-24 | W25: 7 | X25: 2019-04-24 | Y25: 3 | Z25: 2019-05-24 | AA25: 5 | AB25: 2019-06-24 | AC25: 1 | AD25: 2019-07-24 | AE25: 3 | AF25: 2019-08-24 | AG25: 6 | AH25: 2019-09-24 | AI25: 2 | AJ25: 2019-10-24 | AK25: 4 | AL25: 2019-11-24 | AM25: 7 | AN25: 2019-12-24 | AO25: 2
B26: =+B14 -> 0 | C26: 2020-12-01 | D26: 270 | E26: =+E25+$B26 -> 270 | F26: 270 | G26: 270 | H26: 256 | I26: 239 | J26: 221 | K26: 202 | L26: 183 | M26: 167 | N26: 150 | O26: 135 | R26: 2019-01-25 | S26: 5 | T26: 2019-02-25 | U26: 1 | V26: 2019-03-25 | W26: 1 | X26: 2019-04-25 | Y26: 4 | Z26: 2019-05-25 | AA26: 6 | AB26: 2019-06-25 | AC26: 2 | AD26: 2019-07-25 | AE26: 4 | AF26: 2019-08-25 | AG26: 7 | AH26: 2019-09-25 | AI26: 3 | AJ26: 2019-10-25 | AK26: 5 | AL26: 2019-11-25 | AM26: 1 | AN26: 2019-12-25 | AO26: 3
B27: =+B15 -> 0 | C27: 2021-01-01 | D27: 270 | E27: 270 | F27: 270 | G27: 270 | H27: 256 | I27: 239 | J27: 221 | K27: 202 | L27: 183 | M27: 167 | N27: 150 | O27: 135 | R27: 2019-01-26 | S27: 6 | T27: 2019-02-26 | U27: 2 | V27: 2019-03-26 | W27: 2 | X27: 2019-04-26 | Y27: 5 | Z27: 2019-05-26 | AA27: 7 | AB27: 2019-06-26 | AC27: 3 | AD27: 2019-07-26 | AE27: 5 | AF27: 2019-08-26 | AG27: 1 | AH27: 2019-09-26 | AI27: 4 | AJ27: 2019-10-26 | AK27: 6 | AL27: 2019-11-26 | AM27: 2 | AN27: 2019-12-26 | AO27: 4
B28: =+B16 -> 0 | C28: 2021-02-01 | D28: 270 | E28: 270 | F28: 270 | G28: 270 | H28: 256 | I28: 239 | J28: 221 | K28: 202 | L28: 183 | M28: 167 | N28: 150 | O28: 135 | R28: 2019-01-27 | S28: 7 | T28: 2019-02-27 | U28: 3 | V28: 2019-03-27 | W28: 3 | X28: 2019-04-27 | Y28: 6 | Z28: 2019-05-27 | AA28: 1 | AB28: 2019-06-27 | AC28: 4 | AD28: 2019-07-27 | AE28: 6 | AF28: 2019-08-27 | AG28: 2 | AH28: 2019-09-27 | AI28: 5 | AJ28: 2019-10-27 | AK28: 7 | AL28: 2019-11-27 | AM28: 3 | AN28: 2019-12-27 | AO28: 5
B29: =+B17 -> 0 | C29: 2021-03-01 | D29: 270 | E29: 270 | F29: 270 | G29: 270 | H29: 256 | I29: 239 | J29: 221 | K29: 202 | L29: 183 | M29: 167 | N29: 150 | O29: 135 | R29: 2019-01-28 | S29: 1 | T29: 2019-02-28 | U29: 4 | V29: 2019-03-28 | W29: 4 | X29: 2019-04-28 | Y29: 7 | Z29: 2019-05-28 | AA29: 2 | AB29: 2019-06-28 | AC29: 5 | AD29: 2019-07-28 | AE29: 7 | AF29: 2019-08-28 | AG29: 3 | AH29: 2019-09-28 | AI29: 6 | AJ29: 2019-10-28 | AK29: 1 | AL29: 2019-11-28 | AM29: 4 | AN29: 2019-12-28 | AO29: 6
A30: 14 | B30: =+IF('Time Set'!$B$6=5,A30,IF('Time Set'!$B$6=6,A30+Y96, IF('Time Set'!$B$6=7, A30+Y96+Y97, 0))) -> 14 | C30: 2021-04-01 | D30: 284 | E30: 284 | F30: 284 | G30: 284 | H30: 270 | I30: 253 | J30: 235 | K30: 216 | L30: 197 | M30: 181 | N30: 164 | O30: 149 | R30: =+R29+1 -> 2019-01-29 | S30: 2 | V30: 2019-03-29 | W30: 5 | X30: 2019-04-29 | Y30: 1 | Z30: 2019-05-29 | AA30: 3 | AB30: 2019-06-29 | AC30: 6 | AD30: 2019-07-29 | AE30: 1 | AF30: 2019-08-29 | AG30: 4 | AH30: 2019-09-29 | AI30: 7 | AJ30: 2019-10-29 | AK30: 2 | AL30: 2019-11-29 | AM30: 5 | AN30: 2019-12-29 | AO30: 7
A31: 17 | B31: =+IF('Time Set'!$B$6=5,A31,IF('Time Set'!$B$6=6,A31+Y99, IF('Time Set'!$B$6=7, A31+Y99+Y100, 0))) -> 17 | C31: 2021-05-01 | D31: =+D30+$B31 -> 301 | E31: 301 | F31: 301 | G31: 301 | H31: 287 | I31: 270 | J31: 252 | K31: 233 | L31: 214 | M31: 198 | N31: 181 | O31: 166 | R31: =+R30+1 -> 2019-01-30 | S31: 3 | T31: Saturday | U31: =COUNTIF(U2:U29,6) -> 4 | V31: 2019-03-30 | W31: 6 | X31: 2019-04-30 | Y31: 2 | Z31: 2019-05-30 | AA31: 4 | AB31: 2019-06-30 | AC31: 7 | AD31: 2019-07-30 | AE31: 2 | AF31: 2019-08-30 | AG31: 5 | AH31: 2019-09-30 | AI31: 1 | AJ31: 2019-10-30 | AK31: 3 | AL31: 2019-11-30 | AM31: 6 | AN31: 2019-12-30 | AO31: 1
A32: 18 | B32: =+IF('Time Set'!$B$6=5,A32,IF('Time Set'!$B$6=6,A32+Y96, IF('Time Set'!$B$6=7, A32+Y96+Y97, 0))) -> 18 | C32: 2021-06-01 | D32: 319 | E32: 319 | F32: 319 | G32: 319 | H32: 305 | I32: 288 | J32: 270 | K32: 251 | L32: 232 | M32: 216 | N32: 199 | O32: 184 | R32: =+R31+1 -> 2019-01-31 | S32: 4 | T32: Sunday | U32: =COUNTIF(U2:U29,7) -> 4 | V32: 2019-03-31 | W32: 7 | X32: Saturday | Y32: =COUNTIF(Y2:Y31,6) -> 4 | Z32: 2019-05-31 | AA32: 5 | AB32: Saturday | AC32: =COUNTIF(AC2:AC31,6) -> 5 | AD32: 2019-07-31 | AE32: 3 | AF32: 2019-08-31 | AG32: 6 | AH32: Saturday | AI32: =COUNTIF(AI2:AI31,6) -> 4 | AJ32: 2019-10-31 | AK32: 4 | AL32: Saturday | AM32: =COUNTIF(AM2:AM31,6) -> 5 | AN32: 2019-12-31 | AO32: 2
A33: 19 | B33: =+IF('Time Set'!$B$6=5,A33,IF('Time Set'!$B$6=6,A33+Y99, IF('Time Set'!$B$6=7, A33+Y99+Y100, 0))) -> 19 | C33: 2021-07-01 | D33: 338 | E33: 338 | F33: 338 | G33: 338 | H33: 324 | I33: 307 | J33: 289 | K33: 270 | L33: 251 | M33: 235 | N33: 218 | O33: 203 | R33: Saturday | S33: =COUNTIF(S2:S32,6) -> 4 | T33: =DATE(YEAR('Time Set'!$B$5)+1,2,1) -> 2020-02-01 | U33: =WEEKDAY(T33,2) -> 6 | V33: Saturday | W33: =COUNTIF(W2:W32,6) -> 5 | X33: Sunday | Y33: =COUNTIF(Y2:Y31,7) -> 4 | Z33: Saturday | AA33: =COUNTIF(AA2:AA32,6) -> 4 | AB33: Sunday | AC33: =COUNTIF(AC2:AC31,7) -> 5 | AD33: Saturday | AE33: =COUNTIF(AE2:AE32,6) -> 4 | AF33: Saturday | AG33: =COUNTIF(AG2:AG32,6) -> 5 | AH33: Sunday | AI33: =COUNTIF(AI2:AI31,7) -> 5 | AJ33: Saturday | AK33: =COUNTIF(AK2:AK32,6) -> 4 | AL33: Sunday | AM33: =COUNTIF(AM2:AM31,7) -> 4 | AN33: Saturday | AO33: =COUNTIF(AO2:AO32,6) -> 4
A34: 19 | B34: =+IF('Time Set'!$B$6=5,A34,IF('Time Set'!$B$6=6,A34+Y199, IF('Time Set'!$B$6=7, A34+Y99+Y100, 0))) -> 19 | C34: 2021-08-01 | D34: 357 | E34: 357 | F34: 357 | G34: 357 | H34: 343 | I34: 326 | J34: 308 | K34: 289 | L34: 270 | M34: 254 | N34: 237 | O34: 222 | R34: Sunday | S34: =COUNTIF(S2:S32,7) -> 4 | T34: =+T33+1 -> 2020-02-02 | U34: 7 | V34: Sunday | W34: =COUNTIF(W2:W32,7) -> 5 | X34: =DATE(YEAR('Time Set'!$B$5)+1,4,1) -> 2020-04-01 | Y34: =WEEKDAY(X34,2) -> 3 | Z34: Sunday | AA34: =COUNTIF(AA2:AA32,7) -> 4 | AB34: =DATE(YEAR('Time Set'!$B$5)+1,6,1) -> 2020-06-01 | AC34: =WEEKDAY(AB34,2) -> 1 | AD34: Sunday | AE34: =COUNTIF(AE2:AE32,7) -> 4 | AF34: Sunday | AG34: =COUNTIF(AG2:AG32,7) -> 4 | AH34: =DATE(YEAR('Time Set'!$B$5)+1,9,1) -> 2020-09-01 | AI34: =WEEKDAY(AH34,2) -> 2 | AJ34: Sunday | AK34: =COUNTIF(AK2:AK32,7) -> 4 | AL34: =DATE(YEAR('Time Set'!$B$5)+1,11,1) -> 2020-11-01 | AM34: =WEEKDAY(AL34,2) -> 7 | AN34: Sunday | AO34: =COUNTIF(AO2:AO32,7) -> 5
A35: 16 | B35: =+IF('Time Set'!$B$6=5,A35,IF('Time Set'!$B$6=6,A35+Y96, IF('Time Set'!$B$6=7, A35+Y96+Y97, 0))) -> 16 | C35: 2021-09-01 | D35: 373 | E35: 373 | F35: 373 | G35: 373 | H35: 359 | I35: 342 | J35: 324 | K35: 305 | L35: 286 | M35: 270 | N35: 253 | O35: 238 | R35: =DATE(YEAR('Time Set'!B5)+1,1,1) -> 2020-01-01 | S35: =WEEKDAY(R35,2) -> 3 | T35: =+T34+1 -> 2020-02-03 | U35: 1 | V35: =DATE(YEAR('Time Set'!$B$5)+1,3,1) -> 2020-03-01 | W35: =WEEKDAY(V35,2) -> 7 | X35: =+X34+1 -> 2020-04-02 | Y35: =WEEKDAY(X35,2) -> 4 | Z35: =DATE(YEAR('Time Set'!$B$5)+1,5,1) -> 2020-05-01 | AA35: =WEEKDAY(Z35,2) -> 5 | AB35: =+AB34+1 -> 2020-06-02 | AC35: =WEEKDAY(AB35,2) -> 2 | AD35: =DATE(YEAR('Time Set'!$B$5)+1,7,1) -> 2020-07-01 | AE35: =WEEKDAY(AD35,2) -> 3 | AF35: =DATE(YEAR('Time Set'!$B$5)+1,8,1) -> 2020-08-01 | AG35: =WEEKDAY(AF35,2) -> 6 | AH35: =+AH34+1 -> 2020-09-02 | AI35: =WEEKDAY(AH35,2) -> 3 | AJ35: =DATE(YEAR('Time Set'!$B$5)+1,10,1) -> 2020-10-01 | AK35: =WEEKDAY(AJ35,2) -> 4 | AL35: =+AL34+1 -> 2020-11-02 | AM35: =WEEKDAY(AL35,2) -> 1 | AN35: =DATE(YEAR('Time Set'!$B$5)+1,12,1) -> 2020-12-01 | AO35: =WEEKDAY(AN35,2) -> 2
A36: 17 | B36: =+IF('Time Set'!$B$6=5,A36,IF('Time Set'!$B$6=6,A36+Y99, IF('Time Set'!$B$6=7, A36+Y99+Y100, 0))) -> 17 | C36: 2021-10-01 | D36: =+D35+$B36 -> 390 | E36: 390 | F36: 390 | G36: 390 | H36: 376 | I36: 359 | J36: 341 | K36: 322 | L36: 303 | M36: 287 | N36: 270 | O36: 255 | R36: =+R35+1 -> 2020-01-02 | S36: =WEEKDAY(R36,2) -> 4 | T36: 2020-02-04 | U36: 2 | V36: =+V35+1 -> 2020-03-02 | W36: =WEEKDAY(V36,2) -> 1 | X36: =+X35+1 -> 2020-04-03 | Y36: 5 | Z36: =+Z35+1 -> 2020-05-02 | AA36: =WEEKDAY(Z36,2) -> 6 | AB36: =+AB35+1 -> 2020-06-03 | AC36: 3 | AD36: =+AD35+1 -> 2020-07-02 | AE36: =WEEKDAY(AD36,2) -> 4 | AF36: =+AF35+1 -> 2020-08-02 | AG36: =WEEKDAY(AF36,2) -> 7 | AH36: =+AH35+1 -> 2020-09-03 | AI36: 4 | AJ36: =+AJ35+1 -> 2020-10-02 | AK36: =WEEKDAY(AJ36,2) -> 5 | AL36: =+AL35+1 -> 2020-11-03 | AM36: 2 | AN36: =+AN35+1 -> 2020-12-02 | AO36: =WEEKDAY(AN36,2) -> 3
A37: 15 | B37: =+IF('Time Set'!$B$6=5,A37,IF('Time Set'!$B$6=6,A37+Y96, IF('Time Set'!$B$6=7, A37+Y96+Y97, 0))) -> 15 | C37: 2021-11-01 | D37: 405 | E37: 405 | F37: 405 | G37: 405 | H37: 391 | I37: 374 | J37: 356 | K37: 337 | L37: 318 | M37: 302 | N37: 285 | O37: 270 | R37: =+R36+1 -> 2020-01-03 | S37: =WEEKDAY(R37,2) -> 5 | T37: 2020-02-05 | U37: 3 | V37: =+V36+1 -> 2020-03-03 | W37: 2 | X37: 2020-04-04 | Y37: 6 | Z37: =+Z36+1 -> 2020-05-03 | AA37: 7 | AB37: 2020-06-04 | AC37: 4 | AD37: =+AD36+1 -> 2020-07-03 | AE37: 5 | AF37: =+AF36+1 -> 2020-08-03 | AG37: 1 | AH37: 2020-09-04 | AI37: 5 | AJ37: =+AJ36+1 -> 2020-10-03 | AK37: 6 | AL37: 2020-11-04 | AM37: 3 | AN37: =+AN36+1 -> 2020-12-03 | AO37: 4
B38: =+B26 -> 0 | C38: 2021-12-01 | R38: 2020-01-04 | S38: 6 | T38: 2020-02-06 | U38: 4 | V38: 2020-03-04 | W38: 3 | X38: 2020-04-05 | Y38: 7 | Z38: 2020-05-04 | AA38: 1 | AB38: 2020-06-05 | AC38: 5 | AD38: 2020-07-04 | AE38: 6 | AF38: 2020-08-04 | AG38: 2 | AH38: 2020-09-05 | AI38: 6 | AJ38: 2020-10-04 | AK38: 7 | AL38: 2020-11-05 | AM38: 4 | AN38: 2020-12-04 | AO38: 5
R39: 2020-01-05 | S39: 7 | T39: 2020-02-07 | U39: 5 | V39: 2020-03-05 | W39: 4 | X39: 2020-04-06 | Y39: 1 | Z39: 2020-05-05 | AA39: 2 | AB39: 2020-06-06 | AC39: 6 | AD39: 2020-07-05 | AE39: 7 | AF39: 2020-08-05 | AG39: 3 | AH39: 2020-09-06 | AI39: 7 | AJ39: 2020-10-05 | AK39: 1 | AL39: 2020-11-06 | AM39: 5 | AN39: 2020-12-05 | AO39: 6
R40: 2020-01-06 | S40: 1 | T40: 2020-02-08 | U40: 6 | V40: 2020-03-06 | W40: 5 | X40: 2020-04-07 | Y40: 2 | Z40: 2020-05-06 | AA40: 3 | AB40: 2020-06-07 | AC40: 7 | AD40: 2020-07-06 | AE40: 1 | AF40: 2020-08-06 | AG40: 4 | AH40: 2020-09-07 | AI40: 1 | AJ40: 2020-10-06 | AK40: 2 | AL40: 2020-11-07 | AM40: 6 | AN40: 2020-12-06 | AO40: 7
R41: 2020-01-07 | S41: 2 | T41: 2020-02-09 | U41: 7 | V41: 2020-03-07 | W41: 6 | X41: 2020-04-08 | Y41: 3 | Z41: 2020-05-07 | AA41: 4 | AB41: 2020-06-08 | AC41: 1 | AD41: 2020-07-07 | AE41: 2 | AF41: 2020-08-07 | AG41: 5 | AH41: 2020-09-08 | AI41: 2 | AJ41: 2020-10-07 | AK41: 3 | AL41: 2020-11-08 | AM41: 7 | AN41: 2020-12-07 | AO41: 1
R42: 2020-01-08 | S42: 3 | T42: 2020-02-10 | U42: 1 | V42: 2020-03-08 | W42: 7 | X42: 2020-04-09 | Y42: 4 | Z42: 2020-05-08 | AA42: 5 | AB42: 2020-06-09 | AC42: 2 | AD42: 2020-07-08 | AE42: 3 | AF42: 2020-08-08 | AG42: 6 | AH42: 2020-09-09 | AI42: 3 | AJ42: 2020-10-08 | AK42: 4 | AL42: 2020-11-09 | AM42: 1 | AN42: 2020-12-08 | AO42: 2
R43: 2020-01-09 | S43: 4 | T43: 2020-02-11 | U43: 2 | V43: 2020-03-09 | W43: 1 | X43: 2020-04-10 | Y43: 5 | Z43: 2020-05-09 | AA43: 6 | AB43: 2020-06-10 | AC43: 3 | AD43: 2020-07-09 | AE43: 4 | AF43: 2020-08-09 | AG43: 7 | AH43: 2020-09-10 | AI43: 4 | AJ43: 2020-10-09 | AK43: 5 | AL43: 2020-11-10 | AM43: 2 | AN43: 2020-12-09 | AO43: 3
R44: 2020-01-10 | S44: 5 | T44: 2020-02-12 | U44: 3 | V44: 2020-03-10 | W44: 2 | X44: 2020-04-11 | Y44: 6 | Z44: 2020-05-10 | AA44: 7 | AB44: 2020-06-11 | AC44: 4 | AD44: 2020-07-10 | AE44: 5 | AF44: 2020-08-10 | AG44: 1 | AH44: 2020-09-11 | AI44: 5 | AJ44: 2020-10-10 | AK44: 6 | AL44: 2020-11-11 | AM44: 3 | AN44: 2020-12-10 | AO44: 4
R45: 2020-01-11 | S45: 6 | T45: 2020-02-13 | U45: 4 | V45: 2020-03-11 | W45: 3 | X45: 2020-04-12 | Y45: 7 | Z45: 2020-05-11 | AA45: 1 | AB45: 2020-06-12 | AC45: 5 | AD45: 2020-07-11 | AE45: 6 | AF45: 2020-08-11 | AG45: 2 | AH45: 2020-09-12 | AI45: 6 | AJ45: 2020-10-11 | AK45: 7 | AL45: 2020-11-12 | AM45: 4 | AN45: 2020-12-11 | AO45: 5
R46: 2020-01-12 | S46: 7 | T46: 2020-02-14 | U46: 5 | V46: 2020-03-12 | W46: 4 | X46: 2020-04-13 | Y46: 1 | Z46: 2020-05-12 | AA46: 2 | AB46: 2020-06-13 | AC46: 6 | AD46: 2020-07-12 | AE46: 7 | AF46: 2020-08-12 | AG46: 3 | AH46: 2020-09-13 | AI46: 7 | AJ46: 2020-10-12 | AK46: 1 | AL46: 2020-11-13 | AM46: 5 | AN46: 2020-12-12 | AO46: 6
R47: 2020-01-13 | S47: 1 | T47: 2020-02-15 | U47: 6 | V47: 2020-03-13 | W47: 5 | X47: 2020-04-14 | Y47: 2 | Z47: 2020-05-13 | AA47: 3 | AB47: 2020-06-14 | AC47: 7 | AD47: 2020-07-13 | AE47: 1 | AF47: 2020-08-13 | AG47: 4 | AH47: 2020-09-14 | AI47: 1 | AJ47: 2020-10-13 | AK47: 2 | AL47: 2020-11-14 | AM47: 6 | AN47: 2020-12-13 | AO47: 7
R48: 2020-01-14 | S48: 2 | T48: 2020-02-16 | U48: 7 | V48: 2020-03-14 | W48: 6 | X48: 2020-04-15 | Y48: 3 | Z48: 2020-05-14 | AA48: 4 | AB48: 2020-06-15 | AC48: 1 | AD48: 2020-07-14 | AE48: 2 | AF48: 2020-08-14 | AG48: 5 | AH48: 2020-09-15 | AI48: 2 | AJ48: 2020-10-14 | AK48: 3 | AL48: 2020-11-15 | AM48: 7 | AN48: 2020-12-14 | AO48: 1
R49: 2020-01-15 | S49: 3 | T49: 2020-02-17 | U49: 1 | V49: 2020-03-15 | W49: 7 | X49: 2020-04-16 | Y49: 4 | Z49: 2020-05-15 | AA49: 5 | AB49: 2020-06-16 | AC49: 2 | AD49: 2020-07-15 | AE49: 3 | AF49: 2020-08-15 | AG49: 6 | AH49: 2020-09-16 | AI49: 3 | AJ49: 2020-10-15 | AK49: 4 | AL49: 2020-11-16 | AM49: 1 | AN49: 2020-12-15 | AO49: 2
R50: 2020-01-16 | S50: 4 | T50: 2020-02-18 | U50: 2 | V50: 2020-03-16 | W50: 1 | X50: 2020-04-17 | Y50: 5 | Z50: 2020-05-16 | AA50: 6 | AB50: 2020-06-17 | AC50: 3 | AD50: 2020-07-16 | AE50: 4 | AF50: 2020-08-16 | AG50: 7 | AH50: 2020-09-17 | AI50: 4 | AJ50: 2020-10-16 | AK50: 5 | AL50: 2020-11-17 | AM50: 2 | AN50: 2020-12-16 | AO50: 3
R51: 2020-01-17 | S51: 5 | T51: 2020-02-19 | U51: 3 | V51: 2020-03-17 | W51: 2 | X51: 2020-04-18 | Y51: 6 | Z51: 2020-05-17 | AA51: 7 | AB51: 2020-06-18 | AC51: 4 | AD51: 2020-07-17 | AE51: 5 | AF51: 2020-08-17 | AG51: 1 | AH51: 2020-09-18 | AI51: 5 | AJ51: 2020-10-17 | AK51: 6 | AL51: 2020-11-18 | AM51: 3 | AN51: 2020-12-17 | AO51: 4
R52: 2020-01-18 | S52: 6 | T52: 2020-02-20 | U52: 4 | V52: 2020-03-18 | W52: 3 | X52: 2020-04-19 | Y52: 7 | Z52: 2020-05-18 | AA52: 1 | AB52: 2020-06-19 | AC52: 5 | AD52: 2020-07-18 | AE52: 6 | AF52: 2020-08-18 | AG52: 2 | AH52: 2020-09-19 | AI52: 6 | AJ52: 2020-10-18 | AK52: 7 | AL52: 2020-11-19 | AM52: 4 | AN52: 2020-12-18 | AO52: 5
R53: 2020-01-19 | S53: 7 | T53: 2020-02-21 | U53: 5 | V53: 2020-03-19 | W53: 4 | X53: 2020-04-20 | Y53: 1 | Z53: 2020-05-19 | AA53: 2 | AB53: 2020-06-20 | AC53: 6 | AD53: 2020-07-19 | AE53: 7 | AF53: 2020-08-19 | AG53: 3 | AH53: 2020-09-20 | AI53: 7 | AJ53: 2020-10-19 | AK53: 1 | AL53: 2020-11-20 | AM53: 5 | AN53: 2020-12-19 | AO53: 6
R54: 2020-01-20 | S54: 1 | T54: 2020-02-22 | U54: 6 | V54: 2020-03-20 | W54: 5 | X54: 2020-04-21 | Y54: 2 | Z54: 2020-05-20 | AA54: 3 | AB54: 2020-06-21 | AC54: 7 | AD54: 2020-07-20 | AE54: 1 | AF54: 2020-08-20 | AG54: 4 | AH54: 2020-09-21 | AI54: 1 | AJ54: 2020-10-20 | AK54: 2 | AL54: 2020-11-21 | AM54: 6 | AN54: 2020-12-20 | AO54: 7
R55: 2020-01-21 | S55: 2 | T55: 2020-02-23 | U55: 7 | V55: 2020-03-21 | W55: 6 | X55: 2020-04-22 | Y55: 3 | Z55: 2020-05-21 | AA55: 4 | AB55: 2020-06-22 | AC55: 1 | AD55: 2020-07-21 | AE55: 2 | AF55: 2020-08-21 | AG55: 5 | AH55: 2020-09-22 | AI55: 2 | AJ55: 2020-10-21 | AK55: 3 | AL55: 2020-11-22 | AM55: 7 | AN55: 2020-12-21 | AO55: 1
R56: 2020-01-22 | S56: 3 | T56: 2020-02-24 | U56: 1 | V56: 2020-03-22 | W56: 7 | X56: 2020-04-23 | Y56: 4 | Z56: 2020-05-22 | AA56: 5 | AB56: 2020-06-23 | AC56: 2 | AD56: 2020-07-22 | AE56: 3 | AF56: 2020-08-22 | AG56: 6 | AH56: 2020-09-23 | AI56: 3 | AJ56: 2020-10-22 | AK56: 4 | AL56: 2020-11-23 | AM56: 1 | AN56: 2020-12-22 | AO56: 2
R57: 2020-01-23 | S57: 4 | T57: 2020-02-25 | U57: 2 | V57: 2020-03-23 | W57: 1 | X57: 2020-04-24 | Y57: 5 | Z57: 2020-05-23 | AA57: 6 | AB57: 2020-06-24 | AC57: 3 | AD57: 2020-07-23 | AE57: 4 | AF57: 2020-08-23 | AG57: 7 | AH57: 2020-09-24 | AI57: 4 | AJ57: 2020-10-23 | AK57: 5 | AL57: 2020-11-24 | AM57: 2 | AN57: 2020-12-23 | AO57: 3
R58: 2020-01-24 | S58: 5 | T58: 2020-02-26 | U58: 3 | V58: 2020-03-24 | W58: 2 | X58: 2020-04-25 | Y58: 6 | Z58: 2020-05-24 | AA58: 7 | AB58: 2020-06-25 | AC58: 4 | AD58: 2020-07-24 | AE58: 5 | AF58: 2020-08-24 | AG58: 1 | AH58: 2020-09-25 | AI58: 5 | AJ58: 2020-10-24 | AK58: 6 | AL58: 2020-11-25 | AM58: 3 | AN58: 2020-12-24 | AO58: 4
R59: 2020-01-25 | S59: 6 | T59: 2020-02-27 | U59: 4 | V59: 2020-03-25 | W59: 3 | X59: 2020-04-26 | Y59: 7 | Z59: 2020-05-25 | AA59: 1 | AB59: 2020-06-26 | AC59: 5 | AD59: 2020-07-25 | AE59: 6 | AF59: 2020-08-25 | AG59: 2 | AH59: 2020-09-26 | AI59: 6 | AJ59: 2020-10-25 | AK59: 7 | AL59: 2020-11-26 | AM59: 4 | AN59: 2020-12-25 | AO59: 5
R60: 2020-01-26 | S60: 7 | T60: 2020-02-28 | U60: 5 | V60: 2020-03-26 | W60: 4 | X60: 2020-04-27 | Y60: 1 | Z60: 2020-05-26 | AA60: 2 | AB60: 2020-06-27 | AC60: 6 | AD60: 2020-07-26 | AE60: 7 | AF60: 2020-08-26 | AG60: 3 | AH60: 2020-09-27 | AI60: 7 | AJ60: 2020-10-26 | AK60: 1 | AL60: 2020-11-27 | AM60: 5 | AN60: 2020-12-26 | AO60: 6
R61: 2020-01-27 | S61: 1 | T61: 2020-02-29 | U61: 6 | V61: 2020-03-27 | W61: 5 | X61: 2020-04-28 | Y61: 2 | Z61: 2020-05-27 | AA61: 3 | AB61: 2020-06-28 | AC61: 7 | AD61: 2020-07-27 | AE61: 1 | AF61: 2020-08-27 | AG61: 4 | AH61: 2020-09-28 | AI61: 1 | AJ61: 2020-10-27 | AK61: 2 | AL61: 2020-11-28 | AM61: 6 | AN61: 2020-12-27 | AO61: 7
R62: 2020-01-28 | S62: 2 | T62: Saturday | U62: =COUNTIF(U33:U60,6) -> 4 | V62: 2020-03-28 | W62: 6 | X62: 2020-04-29 | Y62: 3 | Z62: 2020-05-28 | AA62: 4 | AB62: 2020-06-29 | AC62: 1 | AD62: 2020-07-28 | AE62: 2 | AF62: 2020-08-28 | AG62: 5 | AH62: 2020-09-29 | AI62: 2 | AJ62: 2020-10-28 | AK62: 3 | AL62: 2020-11-29 | AM62: 7 | AN62: 2020-12-28 | AO62: 1
R63: 2020-01-29 | S63: 3 | T63: Sunday | U63: =COUNTIF(U33:U60,7) -> 4 | V63: 2020-03-29 | W63: 7 | X63: 2020-04-30 | Y63: 4 | Z63: 2020-05-29 | AA63: 5 | AB63: 2020-06-30 | AC63: 2 | AD63: 2020-07-29 | AE63: 3 | AF63: 2020-08-29 | AG63: 6 | AH63: 2020-09-30 | AI63: 3 | AJ63: 2020-10-29 | AK63: 4 | AL63: 2020-11-30 | AM63: 1 | AN63: 2020-12-29 | AO63: 2
R64: 2020-01-30 | S64: 4 | T64: =DATE(YEAR('Time Set'!$B$5)+2,2,1) -> 2021-02-01 | U64: 1 | V64: 2020-03-30 | W64: 1 | X64: Saturday | Y64: =COUNTIF(Y34:Y63,6) -> 4 | Z64: 2020-05-30 | AA64: 6 | AB64: Saturday | AC64: =COUNTIF(AC34:AC63,6) -> 4 | AD64: 2020-07-30 | AE64: 4 | AF64: 2020-08-30 | AG64: 7 | AH64: Saturday | AI64: =COUNTIF(AI34:AI63,6) -> 4 | AJ64: 2020-10-30 | AK64: 5 | AL64: Saturday | AM64: =COUNTIF(AM34:AM63,6) -> 4 | AN64: 2020-12-30 | AO64: 3
R65: 2020-01-31 | S65: 5 | T65: =+T64+1 -> 2021-02-02 | U65: 2 | V65: 2020-03-31 | W65: 2 | X65: Sunday | Y65: =COUNTIF(Y34:Y63,7) -> 4 | Z65: 2020-05-31 | AA65: 7 | AB65: Sunday | AC65: =COUNTIF(AC34:AC63,7) -> 4 | AD65: 2020-07-31 | AE65: 5 | AF65: 2020-08-31 | AG65: 1 | AH65: Sunday | AI65: =COUNTIF(AI34:AI63,7) -> 4 | AJ65: 2020-10-31 | AK65: 6 | AL65: Sunday | AM65: =COUNTIF(AM34:AM63,7) -> 5 | AN65: 2020-12-31 | AO65: 4
R66: Saturday | S66: =COUNTIF(S35:S65,6) -> 4 | T66: =+T65+1 -> 2021-02-03 | U66: 3 | V66: Saturday | W66: =COUNTIF(W35:W65,6) -> 4 | X66: =DATE(YEAR('Time Set'!$B$5)+2,4,1) -> 2021-04-01 | Y66: =WEEKDAY(X66,2) -> 4 | Z66: Saturday | AA66: =COUNTIF(AA35:AA65,6) -> 5 | AB66: =DATE(YEAR('Time Set'!$B$5)+2,6,1) -> 2021-06-01 | AC66: =WEEKDAY(AB66,2) -> 2 | AD66: Saturday | AE66: =COUNTIF(AE35:AE65,6) -> 4 | AF66: Saturday | AG66: =COUNTIF(AG35:AG65,6) -> 5 | AH66: =DATE(YEAR('Time Set'!$B$5)+2,9,1) -> 2021-09-01 | AI66: =WEEKDAY(AH66,2) -> 3 | AJ66: Saturday | AK66: =COUNTIF(AK35:AK65,6) -> 5 | AL66: =DATE(YEAR('Time Set'!$B$5)+2,11,1) -> 2021-11-01 | AM66: =WEEKDAY(AL66,2) -> 1 | AN66: Saturday | AO66: =COUNTIF(AO35:AO65,6) -> 4
R67: Sunday | S67: =COUNTIF(S35:S65,7) -> 4 | T67: 2021-02-04 | U67: 4 | V67: Sunday | W67: =COUNTIF(W35:W65,7) -> 5 | X67: =+X66+1 -> 2021-04-02 | Y67: =WEEKDAY(X67,2) -> 5 | Z67: Sunday | AA67: =COUNTIF(AA35:AA65,7) -> 5 | AB67: =+AB66+1 -> 2021-06-02 | AC67: =WEEKDAY(AB67,2) -> 3 | AD67: Sunday | AE67: =COUNTIF(AE35:AE65,7) -> 4 | AF67: Sunday | AG67: =COUNTIF(AG35:AG65,7) -> 5 | AH67: =+AH66+1 -> 2021-09-02 | AI67: =WEEKDAY(AH67,2) -> 4 | AJ67: Sunday | AK67: =COUNTIF(AK35:AK65,7) -> 4 | AL67: =+AL66+1 -> 2021-11-02 | AM67: =WEEKDAY(AL67,2) -> 2 | AN67: Sunday | AO67: =COUNTIF(AO35:AO65,7) -> 4
R68: =DATE(YEAR('Time Set'!B5)+2,1,1) -> 2021-01-01 | S68: =WEEKDAY(R68,2) -> 5 | T68: 2021-02-05 | U68: 5 | V68: =DATE(YEAR('Time Set'!$B$5)+2,3,1) -> 2021-03-01 | W68: =WEEKDAY(V68,2) -> 1 | X68: =+X67+1 -> 2021-04-03 | Y68: 6 | Z68: =DATE(YEAR('Time Set'!$B$5)+2,5,1) -> 2021-05-01 | AA68: =WEEKDAY(Z68,2) -> 6 | AB68: =+AB67+1 -> 2021-06-03 | AC68: 4 | AD68: =DATE(YEAR('Time Set'!$B$5)+2,7,1) -> 2021-07-01 | AE68: =WEEKDAY(AD68,2) -> 4 | AF68: =DATE(YEAR('Time Set'!$B$5)+2,8,1) -> 2021-08-01 | AG68: =WEEKDAY(AF68,2) -> 7 | AH68: =+AH67+1 -> 2021-09-03 | AI68: 5 | AJ68: =DATE(YEAR('Time Set'!$B$5)+2,10,1) -> 2021-10-01 | AK68: =WEEKDAY(AJ68,2) -> 5 | AL68: =+AL67+1 -> 2021-11-03 | AM68: 3 | AN68: =DATE(YEAR('Time Set'!$B$5)+2,12,1) -> 2021-12-01 | AO68: =WEEKDAY(AN68,2) -> 3
R69: =+R68+1 -> 2021-01-02 | S69: =WEEKDAY(R69,2) -> 6 | T69: 2021-02-06 | U69: 6 | V69: =+V68+1 -> 2021-03-02 | W69: =WEEKDAY(V69,2) -> 2 | X69: 2021-04-04 | Y69: 7 | Z69: =+Z68+1 -> 2021-05-02 | AA69: =WEEKDAY(Z69,2) -> 7 | AB69: 2021-06-04 | AC69: 5 | AD69: =+AD68+1 -> 2021-07-02 | AE69: =WEEKDAY(AD69,2) -> 5 | AF69: =+AF68+1 -> 2021-08-02 | AG69: =WEEKDAY(AF69,2) -> 1 | AH69: 2021-09-04 | AI69: 6 | AJ69: =+AJ68+1 -> 2021-10-02 | AK69: =WEEKDAY(AJ69,2) -> 6 | AL69: 2021-11-04 | AM69: 4 | AN69: =+AN68+1 -> 2021-12-02 | AO69: =WEEKDAY(AN69,2) -> 4
R70: =+R69+1 -> 2021-01-03 | S70: 7 | T70: 2021-02-07 | U70: 7 | V70: =+V69+1 -> 2021-03-03 | W70: 3 | X70: 2021-04-05 | Y70: 1 | Z70: =+Z69+1 -> 2021-05-03 | AA70: 1 | AB70: 2021-06-05 | AC70: 6 | AD70: =+AD69+1 -> 2021-07-03 | AE70: 6 | AF70: =+AF69+1 -> 2021-08-03 | AG70: 2 | AH70: 2021-09-05 | AI70: 7 | AJ70: =+AJ69+1 -> 2021-10-03 | AK70: 7 | AL70: 2021-11-05 | AM70: 5 | AN70: =+AN69+1 -> 2021-12-03 | AO70: 5
R71: 2021-01-04 | S71: 1 | T71: 2021-02-08 | U71: 1 | V71: 2021-03-04 | W71: 4 | X71: 2021-04-06 | Y71: 2 | Z71: 2021-05-04 | AA71: 2 | AB71: 2021-06-06 | AC71: 7 | AD71: 2021-07-04 | AE71: 7 | AF71: 2021-08-04 | AG71: 3 | AH71: 2021-09-06 | AI71: 1 | AJ71: 2021-10-04 | AK71: 1 | AL71: 2021-11-06 | AM71: 6 | AN71: 2021-12-04 | AO71: 6
R72: 2021-01-05 | S72: 2 | T72: 2021-02-09 | U72: 2 | V72: 2021-03-05 | W72: 5 | X72: 2021-04-07 | Y72: 3 | Z72: 2021-05-05 | AA72: 3 | AB72: 2021-06-07 | AC72: 1 | AD72: 2021-07-05 | AE72: 1 | AF72: 2021-08-05 | AG72: 4 | AH72: 2021-09-07 | AI72: 2 | AJ72: 2021-10-05 | AK72: 2 | AL72: 2021-11-07 | AM72: 7 | AN72: 2021-12-05 | AO72: 7
R73: 2021-01-06 | S73: 3 | T73: 2021-02-10 | U73: 3 | V73: 2021-03-06 | W73: 6 | X73: 2021-04-08 | Y73: 4 | Z73: 2021-05-06 | AA73: 4 | AB73: 2021-06-08 | AC73: 2 | AD73: 2021-07-06 | AE73: 2 | AF73: 2021-08-06 | AG73: 5 | AH73: 2021-09-08 | AI73: 3 | AJ73: 2021-10-06 | AK73: 3 | AL73: 2021-11-08 | AM73: 1 | AN73: 2021-12-06 | AO73: 1
R74: 2021-01-07 | S74: 4 | T74: 2021-02-11 | U74: 4 | V74: 2021-03-07 | W74: 7 | X74: 2021-04-09 | Y74: 5 | Z74: 2021-05-07 | AA74: 5 | AB74: 2021-06-09 | AC74: 3 | AD74: 2021-07-07 | AE74: 3 | AF74: 2021-08-07 | AG74: 6 | AH74: 2021-09-09 | AI74: 4 | AJ74: 2021-10-07 | AK74: 4 | AL74: 2021-11-09 | AM74: 2 | AN74: 2021-12-07 | AO74: 2
R75: 2021-01-08 | S75: 5 | T75: 2021-02-12 | U75: 5 | V75: 2021-03-08 | W75: 1 | X75: 2021-04-10 | Y75: 6 | Z75: 2021-05-08 | AA75: 6 | AB75: 2021-06-10 | AC75: 4 | AD75: 2021-07-08 | AE75: 4 | AF75: 2021-08-08 | AG75: 7 | AH75: 2021-09-10 | AI75: 5 | AJ75: 2021-10-08 | AK75: 5 | AL75: 2021-11-10 | AM75: 3 | AN75: 2021-12-08 | AO75: 3
R76: 2021-01-09 | S76: 6 | T76: 2021-02-13 | U76: 6 | V76: 2021-03-09 | W76: 2 | X76: 2021-04-11 | Y76: 7 | Z76: 2021-05-09 | AA76: 7 | AB76: 2021-06-11 | AC76: 5 | AD76: 2021-07-09 | AE76: 5 | AF76: 2021-08-09 | AG76: 1 | AH76: 2021-09-11 | AI76: 6 | AJ76: 2021-10-09 | AK76: 6 | AL76: 2021-11-11 | AM76: 4 | AN76: 2021-12-09 | AO76: 4
R77: 2021-01-10 | S77: 7 | T77: 2021-02-14 | U77: 7 | V77: 2021-03-10 | W77: 3 | X77: 2021-04-12 | Y77: 1 | Z77: 2021-05-10 | AA77: 1 | AB77: 2021-06-12 | AC77: 6 | AD77: 2021-07-10 | AE77: 6 | AF77: 2021-08-10 | AG77: 2 | AH77: 2021-09-12 | AI77: 7 | AJ77: 2021-10-10 | AK77: 7 | AL77: 2021-11-12 | AM77: 5 | AN77: 2021-12-10 | AO77: 5
R78: 2021-01-11 | S78: 1 | T78: 2021-02-15 | U78: 1 | V78: 2021-03-11 | W78: 4 | X78: 2021-04-13 | Y78: 2 | Z78: 2021-05-11 | AA78: 2 | AB78: 2021-06-13 | AC78: 7 | AD78: 2021-07-11 | AE78: 7 | AF78: 2021-08-11 | AG78: 3 | AH78: 2021-09-13 | AI78: 1 | AJ78: 2021-10-11 | AK78: 1 | AL78: 2021-11-13 | AM78: 6 | AN78: 2021-12-11 | AO78: 6
R79: 2021-01-12 | S79: 2 | T79: 2021-02-16 | U79: 2 | V79: 2021-03-12 | W79: 5 | X79: 2021-04-14 | Y79: 3 | Z79: 2021-05-12 | AA79: 3 | AB79: 2021-06-14 | AC79: 1 | AD79: 2021-07-12 | AE79: 1 | AF79: 2021-08-12 | AG79: 4 | AH79: 2021-09-14 | AI79: 2 | AJ79: 2021-10-12 | AK79: 2 | AL79: 2021-11-14 | AM79: 7 | AN79: 2021-12-12 | AO79: 7
R80: 2021-01-13 | S80: 3 | T80: 2021-02-17 | U80: 3 | V80: 2021-03-13 | W80: 6 | X80: 2021-04-15 | Y80: 4 | Z80: 2021-05-13 | AA80: 4 | AB80: 2021-06-15 | AC80: 2 | AD80: 2021-07-13 | AE80: 2 | AF80: 2021-08-13 | AG80: 5 | AH80: 2021-09-15 | AI80: 3 | AJ80: 2021-10-13 | AK80: 3 | AL80: 2021-11-15 | AM80: 1 | AN80: 2021-12-13 | AO80: 1
R81: 2021-01-14 | S81: 4 | T81: 2021-02-18 | U81: 4 | V81: 2021-03-14 | W81: 7 | X81: 2021-04-16 | Y81: 5 | Z81: 2021-05-14 | AA81: 5 | AB81: 2021-06-16 | AC81: 3 | AD81: 2021-07-14 | AE81: 3 | AF81: 2021-08-14 | AG81: 6 | AH81: 2021-09-16 | AI81: 4 | AJ81: 2021-10-14 | AK81: 4 | AL81: 2021-11-16 | AM81: 2 | AN81: 2021-12-14 | AO81: 2
R82: 2021-01-15 | S82: 5 | T82: 2021-02-19 | U82: 5 | V82: 2021-03-15 | W82: 1 | X82: 2021-04-17 | Y82: 6 | Z82: 2021-05-15 | AA82: 6 | AB82: 2021-06-17 | AC82: 4 | AD82: 2021-07-15 | AE82: 4 | AF82: 2021-08-15 | AG82: 7 | AH82: 2021-09-17 | AI82: 5 | AJ82: 2021-10-15 | AK82: 5 | AL82: 2021-11-17 | AM82: 3 | AN82: 2021-12-15 | AO82: 3
R83: 2021-01-16 | S83: 6 | T83: 2021-02-20 | U83: 6 | V83: 2021-03-16 | W83: 2 | X83: 2021-04-18 | Y83: 7 | Z83: 2021-05-16 | AA83: 7 | AB83: 2021-06-18 | AC83: 5 | AD83: 2021-07-16 | AE83: 5 | AF83: 2021-08-16 | AG83: 1 | AH83: 2021-09-18 | AI83: 6 | AJ83: 2021-10-16 | AK83: 6 | AL83: 2021-11-18 | AM83: 4 | AN83: 2021-12-16 | AO83: 4
R84: 2021-01-17 | S84: 7 | T84: 2021-02-21 | U84: 7 | V84: 2021-03-17 | W84: 3 | X84: 2021-04-19 | Y84: 1 | Z84: 2021-05-17 | AA84: 1 | AB84: 2021-06-19 | AC84: 6 | AD84: 2021-07-17 | AE84: 6 | AF84: 2021-08-17 | AG84: 2 | AH84: 2021-09-19 | AI84: 7 | AJ84: 2021-10-17 | AK84: 7 | AL84: 2021-11-19 | AM84: 5 | AN84: 2021-12-17 | AO84: 5
R85: 2021-01-18 | S85: 1 | T85: 2021-02-22 | U85: 1 | V85: 2021-03-18 | W85: 4 | X85: 2021-04-20 | Y85: 2 | Z85: 2021-05-18 | AA85: 2 | AB85: 2021-06-20 | AC85: 7 | AD85: 2021-07-18 | AE85: 7 | AF85: 2021-08-18 | AG85: 3 | AH85: 2021-09-20 | AI85: 1 | AJ85: 2021-10-18 | AK85: 1 | AL85: 2021-11-20 | AM85: 6 | AN85: 2021-12-18 | AO85: 6
R86: 2021-01-19 | S86: 2 | T86: 2021-02-23 | U86: 2 | V86: 2021-03-19 | W86: 5 | X86: 2021-04-21 | Y86: 3 | Z86: 2021-05-19 | AA86: 3 | AB86: 2021-06-21 | AC86: 1 | AD86: 2021-07-19 | AE86: 1 | AF86: 2021-08-19 | AG86: 4 | AH86: 2021-09-21 | AI86: 2 | AJ86: 2021-10-19 | AK86: 2 | AL86: 2021-11-21 | AM86: 7 | AN86: 2021-12-19 | AO86: 7
R87: 2021-01-20 | S87: 3 | T87: 2021-02-24 | U87: 3 | V87: 2021-03-20 | W87: 6 | X87: 2021-04-22 | Y87: 4 | Z87: 2021-05-20 | AA87: 4 | AB87: 2021-06-22 | AC87: 2 | AD87: 2021-07-20 | AE87: 2 | AF87: 2021-08-20 | AG87: 5 | AH87: 2021-09-22 | AI87: 3 | AJ87: 2021-10-20 | AK87: 3 | AL87: 2021-11-22 | AM87: 1 | AN87: 2021-12-20 | AO87: 1
R88: 2021-01-21 | S88: 4 | T88: 2021-02-25 | U88: 4 | V88: 2021-03-21 | W88: 7 | X88: 2021-04-23 | Y88: 5 | Z88: 2021-05-21 | AA88: 5 | AB88: 2021-06-23 | AC88: 3 | AD88: 2021-07-21 | AE88: 3 | AF88: 2021-08-21 | AG88: 6 | AH88: 2021-09-23 | AI88: 4 | AJ88: 2021-10-21 | AK88: 4 | AL88: 2021-11-23 | AM88: 2 | AN88: 2021-12-21 | AO88: 2
R89: 2021-01-22 | S89: 5 | T89: =+T88+1 -> 2021-02-26 | U89: 5 | V89: 2021-03-22 | W89: 1 | X89: 2021-04-24 | Y89: 6 | Z89: 2021-05-22 | AA89: 6 | AB89: 2021-06-24 | AC89: 4 | AD89: 2021-07-22 | AE89: 4 | AF89: 2021-08-22 | AG89: 7 | AH89: 2021-09-24 | AI89: 5 | AJ89: 2021-10-22 | AK89: 5 | AL89: 2021-11-24 | AM89: 3 | AN89: 2021-12-22 | AO89: 3
R90: 2021-01-23 | S90: 6 | T90: 2021-02-27 | U90: 6 | V90: 2021-03-23 | W90: 2 | X90: 2021-04-25 | Y90: 7 | Z90: 2021-05-23 | AA90: 7 | AB90: 2021-06-25 | AC90: 5 | AD90: 2021-07-23 | AE90: 5 | AF90: 2021-08-23 | AG90: 1 | AH90: 2021-09-25 | AI90: 6 | AJ90: 2021-10-23 | AK90: 6 | AL90: 2021-11-25 | AM90: 4 | AN90: 2021-12-23 | AO90: 4
R91: 2021-01-24 | S91: 7 | T91: 2021-02-28 | U91: 7 | V91: 2021-03-24 | W91: 3 | X91: 2021-04-26 | Y91: 1 | Z91: 2021-05-24 | AA91: 1 | AB91: 2021-06-26 | AC91: 6 | AD91: 2021-07-24 | AE91: 6 | AF91: 2021-08-24 | AG91: 2 | AH91: 2021-09-26 | AI91: 7 | AJ91: 2021-10-24 | AK91: 7 | AL91: 2021-11-26 | AM91: 5 | AN91: 2021-12-24 | AO91: 5
R92: 2021-01-25 | S92: 1 | V92: 2021-03-25 | W92: 4 | X92: 2021-04-27 | Y92: 2 | Z92: 2021-05-25 | AA92: 2 | AB92: 2021-06-27 | AC92: 7 | AD92: 2021-07-25 | AE92: 7 | AF92: 2021-08-25 | AG92: 3 | AH92: 2021-09-27 | AI92: 1 | AJ92: 2021-10-25 | AK92: 1 | AL92: 2021-11-27 | AM92: 6 | AN92: 2021-12-25 | AO92: 6
R93: 2021-01-26 | S93: 2 | T93: Saturday | U93: =COUNTIF(U64:U91,6) -> 4 | V93: 2021-03-26 | W93: 5 | X93: 2021-04-28 | Y93: 3 | Z93: 2021-05-26 | AA93: 3 | AB93: 2021-06-28 | AC93: 1 | AD93: 2021-07-26 | AE93: 1 | AF93: 2021-08-26 | AG93: 4 | AH93: 2021-09-28 | AI93: 2 | AJ93: 2021-10-26 | AK93: 2 | AL93: 2021-11-28 | AM93: 7 | AN93: 2021-12-26 | AO93: 7
R94: 2021-01-27 | S94: 3 | T94: Sunday | U94: =COUNTIF(U64:U91,7) -> 4 | V94: 2021-03-27 | W94: 6 | X94: 2021-04-29 | Y94: 4 | Z94: 2021-05-27 | AA94: 4 | AB94: 2021-06-29 | AC94: 2 | AD94: 2021-07-27 | AE94: 2 | AF94: 2021-08-27 | AG94: 5 | AH94: 2021-09-29 | AI94: 3 | AJ94: 2021-10-27 | AK94: 3 | AL94: 2021-11-29 | AM94: 1 | AN94: 2021-12-27 | AO94: 1
R95: 2021-01-28 | S95: 4 | V95: 2021-03-28 | W95: 7 | X95: 2021-04-30 | Y95: 5 | Z95: 2021-05-28 | AA95: 5 | AB95: 2021-06-30 | AC95: 3 | AD95: 2021-07-28 | AE95: 3 | AF95: 2021-08-28 | AG95: 6 | AH95: 2021-09-30 | AI95: 4 | AJ95: 2021-10-28 | AK95: 4 | AL95: 2021-11-30 | AM95: 2 | AN95: 2021-12-28 | AO95: 2
R96: 2021-01-29 | S96: 5 | V96: 2021-03-29 | W96: 1 | X96: Saturday | Y96: =COUNTIF(Y66:Y95,6) -> 4 | Z96: 2021-05-29 | AA96: 6 | AB96: Saturday | AC96: =COUNTIF(AC66:AC95,6) -> 4 | AD96: 2021-07-29 | AE96: 4 | AF96: 2021-08-29 | AG96: 7 | AH96: Saturday | AI96: =COUNTIF(AI66:AI95,6) -> 4 | AJ96: 2021-10-29 | AK96: 5 | AL96: Saturday | AM96: =COUNTIF(AM66:AM95,6) -> 4 | AN96: 2021-12-29 | AO96: 3
R97: 2021-01-30 | S97: 6 | V97: 2021-03-30 | W97: 2 | X97: Sunday | Y97: =COUNTIF(Y66:Y95,7) -> 4 | Z97: 2021-05-30 | AA97: 7 | AB97: Sunday | AC97: =COUNTIF(AC66:AC95,7) -> 4 | AD97: 2021-07-30 | AE97: 5 | AF97: 2021-08-30 | AG97: 1 | AH97: Sunday | AI97: =COUNTIF(AI66:AI95,7) -> 4 | AJ97: 2021-10-30 | AK97: 6 | AL97: Sunday | AM97: =COUNTIF(AM66:AM95,7) -> 4 | AN97: 2021-12-30 | AO97: 4
R98: 2021-01-31 | S98: 7 | V98: 2021-03-31 | W98: 3 | Z98: 2021-05-31 | AA98: 1 | AD98: 2021-07-31 | AE98: 6 | AF98: 2021-08-31 | AG98: 2 | AJ98: 2021-10-31 | AK98: 7 | AN98: 2021-12-31 | AO98: 5
R99: Saturday | S99: =COUNTIF(S68:S98,6) -> 5 | V99: Saturday | W99: =COUNTIF(W68:W98,6) -> 4 | Z99: Saturday | AA99: =COUNTIF(AA68:AA98,6) -> 5 | AD99: Saturday | AE99: =COUNTIF(AE68:AE98,6) -> 5 | AF99: Saturday | AG99: =COUNTIF(AG68:AG98,6) -> 4 | AJ99: Saturday | AK99: =COUNTIF(AK68:AK98,6) -> 5 | AN99: Saturday | AO99: =COUNTIF(AO68:AO98,6) -> 4
R100: Sunday | S100: =COUNTIF(S68:S98,7) -> 5 | V100: Sunday | W100: =COUNTIF(W68:W98,7) -> 4 | Z100: Sunday | AA100: =COUNTIF(AA68:AA98,7) -> 5 | AD100: Sunday | AE100: =COUNTIF(AE68:AE98,7) -> 4 | AF100: Sunday | AG100: =COUNTIF(AG68:AG98,7) -> 5 | AJ100: Sunday | AK100: =COUNTIF(AK68:AK98,7) -> 5 | AN100: Sunday | AO100: =COUNTIF(AO68:AO98,7) -> 4

Sheet #Mean Rates#
A1: ALL
A2: CONSTRUCTION ACTIVITY | B2: Work Type | C2: UNIT | D2: MEAN VALUE | E2: STANDARD DEVIATION
A3: Aggregate shoulder | B3: H | C3: TON | D3: 840 | E3: 102
A4: Backfill, Rock | B4: B | C4: TON | D4: 580 | E4: 50
A5: Barrier Delineator | B5: B | C5: EACH | D5: 20 | E5: 2
A6: Barrier Wall | B6: B | C6: TON | D6: 200 | E6: 12
A7: Beam Erection-Precast | B7: B | C7: LFT | D7: 400 | E7: 38
A8: Beam Erection-Steel | B8: B | C8: LFT | D8: 150 | E8: 12
A9: Bent Cofferdams | B9: B | C9: SYS | D9: 300 | E9: 35
A10: Box Culverts | B10: H | C10: LFT | D10: 50 | E10: 1
A11: Bridge Deck Overlay | B11: B | C11: SYS | D11: 360 | E11: 140
A12: Bridge Handrails | B12: B | C12: LFT | D12: 230 | E12: 21
A13: Bridge Rail | B13: B | C13: LFT | D13: 600 | E13: 86
A14: Chain Link Fence | B14: B | C14: LFT | D14: 1330 | E14: 225
A15: Common (Excavation) | B15: H | C15: CYS | D15: 990 | E15: 394
A16: Common Small Areas | B16: H | C16: CYS | D16: 520 | E16: 106
A17: Compacted Aggregate Base | B17: H | C17: TON | D17: 350 | E17: 126
A18: Compacted Aggregate for Shoulder | B18: H | C18: TON | D18: 490 | E18: 159
A19: Concrete A Substructure | B19: B | C19: CYS | D19: 170 | E19: 26
A20: Concrete B Substructure | B20: B | C20: CYS | D20: 110 | E20: 19
A21: Concrete C Superstructure | B21: B | C21: CYS | D21: 80 | E21: 11
A22: Concrete Driveways | B22: B | C22: SYS | D22: 250 | E22: 48
A23: Concrete Gutter | B23: B | C23: LFT | D23: 590 | E23: 96
A24: Concrete Median Barrier | B24: B | C24: LFT | D24: 910 | E24: 221
A25: Concrete Patching | B25: B | C25: SYS | D25: 120 | E25: 24
A26: Construct Fill (MSE) | B26: H | C26: CYS | D26: 300 | E26: 62
A27: Contraction Joint | B27: B | C27: LFT | D27: 290 | E27: 115
A28: Crack and Seating Pavement | B28: B | C28: SYS | D28: 6580 | E28: 526
A29: Cracks, Transverse, Rout Clean and Seal | B29: B | C29: LFT | D29: 9180 | E29: 5636
A30: Curb & Gutter (Removal) | B30: B | C30: LFT | D30: 860 | E30: 188
A31: Curb and Gutter | B31: B | C31: LFT | D31: 330 | E31: 464
A32: Curb Ramp, Concrete | B32: B | C32: LFT | D32: 24 | E32: 6
A33: Curb, Intergral, C, Concrete | B33: B | C33: LFT | D33: 200 | E33: 79
A34: Demobilization | B34: C | C34: DAYS | D34: 1 | E34: 0
A35: Ditch or Channel | B35: H | C35: CYS | D35: 650 | E35: 92
A36: Drilled Holes | B36: B | C36: EACH | D36: 270 | E36: 38
A37: Electric Cable | B37: H | C37: LFT | D37: 2600 | E37: 219
A38: Embankment | B38: H | C38: CYS | D38: 2380 | E38: 189
A39: Erecting Handrail | B39: B | C39: LFT | D39: 80 | E39: 3
A40: Erecting Structural Steel | B40: B | C40: LBS | D40: 27500 | E40: 2678
A41: Expansion Bolts | B41: B | C41: EACH | D41: 27 | E41: 2
A42: Extra Work | B42: B | C42: DAYS | D42: 1 | E42: 0
A43: Fence (Removal) | B43: B | C43: LFT | D43: 150 | E43: 21
A44: Flowable Mortar | B44: B | C44: CYS | D44: 150 | E44: 23
A45: Footings | B45: B | C45: CYS | D45: 30 | E45: 4
A46: Gabions | B46: B | C46: CYS | D46: 80 | E46: 17
A47: Geotextiles | B47: H | C47: SYS | D47: 500 | E47: 151
A48: Geotextiles for Underdrain | B48: B | C48: SYS | D48: 150 | E48: 28
A49: Granular Backfill | B49: B | C49: CYS | D49: 330 | E49: 46
A50: Ground or Crushed Stone | B50: H | C50: TON | D50: 860 | E50: 87
A51: Guardrail | B51: B | C51: LFT | D51: 520 | E51: 169
A52: Guardrail, Reset | B52: B | C52: LFT | D52: 380 | E52: 147
A53: HMA Approaches | B53: H | C53: TON | D53: 230 | E53: 111
A54: HMA Base | B54: H | C54: TON | D54: 820 | E54: 519
A55: HMA Intermediate, Mainline | B55: H | C55: TON | D55: 1400 | E55: 282
A56: HMA Patching | B56: H | C56: TON | D56: 70 | E56: 8
A57: HMA Shoulders | B57: H | C57: TON | D57: 750 | E57: 92
A58: HMA Surface | B58: H | C58: TON | D58: 1060 | E58: 113
A59: HMA Surface, Mainline | B59: H | C59: TON | D59: 980 | E59: 349
A60: HMA w/ Fibers | B60: H | C60: TON | D60: 1840 | E60: 776
A61: HMA Wedge and Level | B61: H | C61: TON | D61: 530 | E61: 273
A62: HMA Widening | B62: H | C62: TON | D62: 940 | E62: 366
A63: Material Lead Time | B63: C | C63: DAYS | D63: 1 | E63: 0
A64: Milling, Surface (Removal) | B64: B | C64: SYS | D64: 10900 | E64: 1062
A65: Mobilization | B65: C | C65: DAYS | D65: 1 | E65: 0
A66: MOT Change | B66: C | C66: DAYS | D66: 1 | E66: 0
A67: Other, Additional | B67: C | C67: DAYS | D67: 1 | E67: 0
A68: Parapet | B68: B | C68: LFT | D68: 100 | E68: 16
A69: Paved Side Ditch | B69: H | C69: LFT | D69: 380 | E69: 47
A70: Pavement (Removal) | B70: B | C70: SYS | D70: 920 | E70: 185
A71: Pavement Markings* | B71: B | C71: LFT | D71: 7200 | E71: 876
A72: PCCP | B72: B | C72: SYS | D72: 2870 | E72: 286
A73: Piling, Bent | B73: B | C73: LFT | D73: 500 | E73: 46
A74: Piling, Concrete | B74: B | C74: LFT | D74: 300 | E74: 27
A75: Piling, Steel | B75: B | C75: LFT | D75: 400 | E75: 29
A76: Piling, Timber | B76: B | C76: LFT | D76: 350 | E76: 26
A77: Pipes, Culvert | B77: H | C77: LFT | D77: 220 | E77: 18
A78: Pipes, Underdrains | B78: B | C78: LFT | D78: 1090 | E78: 137
A79: Place Deck w/o Support Cutouts | B79: B | C79: CYS | D79: 150 | E79: 18
A80: Pristmatic Reflectors | B80: B | C80: EACH | D80: 930 | E80: 132
A81: Reinforced Concrete Approaches | B81: B | C81: CYS | D81: 30 | E81: 6
A82: Reinforced Concrete pavement | B82: B | C82: SYS | D82: 160 | E82: 14
A83: Reinforcement Bars (Substructure) | B83: B | C83: LBS | D83: 5000 | E83: 473
A84: Reinforcing Steel | B84: B | C84: LBS | D84: 9220 | E84: 1670
A85: Reinforcing Steel, Epoxy Coated | B85: B | C85: LBS | D85: 14780 | E85: 2230
A86: Retaining Walls (MSE) | B86: H | C86: SFT | D86: 250 | E86: =4*9 -> 36
A87: Riprap | B87: H | C87: TON | D87: 240 | E87: 134
A88: Rock (Excavation) | B88: B | C88: CYS | D88: 1130 | E88: 139
A89: Rubblizing Pavement | B89: B | C89: SYS | D89: 3200 | E89: 227
A90: Seal Coat | B90: B | C90: SYS | D90: 12030 | E90: 6024
A91: Sidewalk | B91: B | C91: SYS | D91: 1080 | E91: 109
A92: Sidewalk (Removal) | B92: H | C92: SYS | D92: 1690 | E92: 80
A93: Sign Small | B93: B | C93: EACH | D93: 20 | E93: 3
A94: Signal Conduit | B94: H | C94: LFT | D94: 220 | E94: 34
A95: Slope Wall | B95: H | C95: SYS | D95: 50 | E95: 7
A96: Snowplowable Raised Pvmt Markings | B96: B | C96: EACH | D96: 150 | E96: 50
A97: Sodding | B97: H | C97: SYS | D97: 1020 | E97: 1136
A98: Soil Stabilization | B98: H | C98: CYS | D98: 4870 | E98: 396
A99: Storm sewers | B99: H | C99: LFT | D99: 200 | E99: 19
A100: Stump (Removal) | B100: B | C100: EACH | D100: 12 | E100: 8
A101: Subballast | B101: B | C101: TONS | D101: 270 | E101: 149
A102: Subbase | B102: H | C102: TON | D102: 860 | E102: 169
A103: Subgrade Treatment IC (Excavation) | B103: H | C103: CYS | D103: 1160 | E103: 270
A104: Temporary Concete Barrier | B104: B | C104: LFT | D104: 2590 | E104: 271
A105: Top Soil (Removal) | B105: H | C105: CYS | D105: 380 | E105: 29
A106: Trench and Backfill | B106: H | C106: LFT | D106: 450 | E106: 53
A107: Unclassified (Excavation) | B107: H | C107: CYS | D107: 3460 | E107: 305
A108: Underseal | B108: B | C108: TON | D108: 45 | E108: 6
A109: Waterway (Excavation) | B109: H | C109: CYS | D109: 660 | E109: 290
A110: Wet (Removal) | B110: H | C110: CYS | D110: 80 | E110: 23
A111: Wingwalls | B111: B | C111: EACH | D111: 17 | E111: 2
